{"text_format":"1","workbook":"xlsx","n_sheets":11,"sheets":["Instructions","Pesticide Plan (Corn)","Pesticide Plan (Soybeans)","Pesticide Plan (Wheat)","Adjuvant Help Guide","Chemical List (Corn)","Chemical List (Soys)","Chemical List (Wheat)","Product Purchase List (Corn)","Product Purchase List (Soys)","Product Purchase List (Wheat)"],"not_rendered":{"charts":0,"images":13,"macros":1,"external_links":0,"defined_names":73,"comments":0,"pivot_tables":0},"unopened":[],"bounds":{"document_bytes":16777216,"sheet_cells":100000,"rows_first":2000,"rows_last":500,"rows_between":2000,"halvings":0,"cell_chars":16384,"cell_head_chars":4096},"cells_cut":0,"cells_raw":0,"read":"whole","date_system":"1900"}

{"sheet":"Instructions","index":0,"n_rows":32,"n_cols":8,"rows_kept":32,"cut":false,"hidden":false,"merged":[[0,0,2,17],[19,4,19,17],[15,4,15,17],[16,4,16,17],[12,2,12,17],[14,4,14,17],[6,0,6,17],[5,0,5,17],[3,0,3,17],[13,2,13,17],[4,0,4,17],[17,4,17,17],[18,4,18,17],[24,4,25,17],[26,4,27,17],[8,5,8,13],[22,4,23,17],[21,4,21,17],[20,4,20,17]]}
["Pesticide Cost Comparison Decision Tool"]
[]
[]
["Template by: Jon LaPorte, Farm Business Management Educator"]
["Michigan State University Extension"]
["120 N. Broadway, Suite 116, Cassopolis, MI 49031"]
["Phone: (269) 445-4356          Email: laportej@msu.edu"]
[]
[null,null,null,null,null,"Version 2.0"]
[]
["1)","Each TAB represents a different expense area for the given farm operation.  Click on a TAB to enter specific expense (or income) information."]
[null,"These include:"]
[]
[null,null,"Pesticide Cost Comparison Decision Tool"]
[null,null,"Pesticide Plan (per crop)","-","Choose the Herbicide/Adjuvant being used in the drop-down menu.  "]
[null,null,"(Corn, Soybeans, and Wheat)",null,"Insecticides & Fungicides are also included further down this page."]
[null,null,null,null,"Rate/Acre and price paid per package (i.e. $$/Gallon) need to be input manually."]
[null,null,null,null,"NOTE: Includes a quick guide to Sites-of-Action or Active Ingredients used by the farm's pesticide program for evaluating resistance management."]
[null,null,null,null,"PRINTABLE FORMAT: List your Farm Name, Field Tract, Farm Number, and Plan Year to save in farm records"]
[null,null,"Adjuvant Help Guide","-","Adjuvant rates are based on gallons of water/acre.  The help guide will assist in calculating the rate/acre needed for the Chemical Plan tabs."]
[null,null,null,null,"Adjuvant Products: This tab includes an area to add additional adjuvants for use in the Pesticide Plan tabs."]
[null,null,null,null,"NOTE: Includes links to the MSU Weed Control Guide & MSU Bulletin E-1581 (Insecticide Recommendations)"]
[null,null,"Chemical List Tabs (per crop)","-","The list of chemicals provided in this tool are based on the MSU Weed Guide, MSU/OSU Insect Management Guide, and MSU Field Pathology for Fungicides.  Additional entry spaces are available to include other chemicals not listed (i.e. generics, pre-mixes, etc.)"]
[]
[null,null,"Product Purchase List (per crop)","-","These are a series of tabs that will total the amount of product you will need to complete your Chemical Plans. The intent is that these tabs can be printed and taken to your local farm retailer to help in securing your farm's chemical needs. "]
[null,null,"New In This Version"]
[null,null,null,null,"Note: Includes an option to choose between the two comparison plans within each crop, so products listed reflect the comparison plan the farm selects as the best choice to pursue for the growing season. Must supply number of acres to populate accurate product totals. "]
[]
[]
["2)","Only items that are colored in BLUE should be altered in each TAB.  Changing the value of an item not marked BLUE can cause the formulas in the spreadsheet to stop working."]
[]
[null,null,null,null,null,null,null,"`"]

{"sheet":"Pesticide Plan (Corn)","index":1,"n_rows":93,"n_cols":38,"rows_kept":93,"cut":false,"hidden":false,"merged":[[0,2,0,18],[22,2,22,9],[1,2,1,18],[2,2,2,18],[21,2,21,18],[3,11,3,18],[22,11,22,18],[83,30,84,37],[83,11,84,18],[51,21,51,28],[3,2,3,9],[51,30,51,37],[50,2,50,18],[51,11,51,18],[40,11,41,18],[21,21,21,37],[22,21,22,28],[22,30,22,37],[40,30,41,37],[50,21,50,37],[67,11,67,18],[67,2,67,9],[51,2,51,9],[67,21,67,28],[67,30,67,37],[0,21,0,37],[1,21,1,37],[2,21,2,37],[3,21,3,28],[3,30,3,37]]}
[null,null,"Corn Pesticide Plan",null,null,null,null,null,null,null,null,null,null,null,null,null,null,null,null,null,null,"Corn Pesticide Plan"]
[null,null,"Comparison Plan #1",null,null,null,null,null,null,null,null,null,null,null,null,null,null,null,null,null,null,"Comparison Plan #2"]
[null,null,"Burndown/Pre-Plant/Early Post Emergence Herbicides",null,null,null,null,null,null,null,null,null,null,null,null,null,null,null,null,null,null,"Burndown/Pre-Plant/Early Post Emergence Herbicides"]
[null,null,"1st Application of Burndown/Pre-Plant/Early Post Emergencen Herbicides",null,null,null,null,null,null,null,null,"2nd Application of Burndown/Pre-Plant/Early Post Emergence Herbicides",null,null,null,null,null,null,null,null,null,"1st Application of Burndown/Pre-Plant/Early Post Emergencen Herbicides",null,null,null,null,null,null,null,null,"2nd Application of Burndown/Pre-Plant/Early Post Emergence Herbicides"]
[null,null,"Brand","Site of Action","Purchase Units","Package Price (Gals, Lbs, etc.)","Units/Pkg","Rate/Acre","Rate Units","Cost",null,"Brand","Site of Action","Purchase Units","Package Price (Gals, Lbs, etc.)","Units/Pkg","Rate/Acre","Rate Units","Cost",null,null,"Brand","Site of Action","Purchase Units","Package Price (Gals, Lbs, etc.)","Units/Pkg","Rate/Acre","Rate Units","Cost",null,"Brand","Site of Action","Purchase Units","Package Price (Gals, Lbs, etc.)","Units/Pkg","Rate/Acre","Rate Units","Cost"]
[null,null,"Herbicides (drop down menu)",null,null,"(Enter Below)",null,"(Enter Below)",null,null,null,"Herbicides (drop down menu)",null,null,"(Enter Below)",null,"(Enter Below)",null,null,null,null,"Herbicides (drop down menu)",null,null,"(Enter Below)",null,"(Enter Below)",null,null,null,"Herbicides (drop down menu)",null,null,"(Enter Below)",null,"(Enter Below)"]
[null,null,"None",{"$f":"VLOOKUP($C7,CornPreChemicals,6,FALSE)","v":0},{"$f":"VLOOKUP($C7,CornPreChemicals,4,FALSE)","v":"None"},0,{"$f":"VLOOKUP(C7,CornPreChemicals,3,FALSE)","v":1},0,{"$f":"VLOOKUP(C7,CornPreChemicals,2,FALSE)","v":0},{"$f":"H7/G7*F7","v":0},null,"None",{"$f":"VLOOKUP($L7,CornPreChemicals,6,FALSE)","v":0},{"$f":"VLOOKUP($L7,CornPreChemicals,4,FALSE)","v":"None"},0,{"$f":"VLOOKUP(L7,CornPreChemicals,3,FALSE)","v":1},0,{"$f":"VLOOKUP(L7,CornPreChemicals,2,FALSE)","v":0},{"$f":"Q7/P7*O7","v":0},null,null,"None",{"$f":"VLOOKUP($C7,CornPreChemicals,6,FALSE)","v":0},{"$f":"VLOOKUP($C7,CornPreChemicals,4,FALSE)","v":"None"},0,{"$f":"VLOOKUP(V7,CornPreChemicals,3,FALSE)","v":1},0,{"$f":"VLOOKUP(V7,CornPreChemicals,2,FALSE)","v":0},{"$f":"AA7/Z7*Y7","v":0},null,"None",0,0,0,{"$f":"VLOOKUP(AE7,CornPreChemicals,3,FALSE)","v":1},0,{"$f":"VLOOKUP(AE7,CornPreChemicals,2,FALSE)","v":0},{"$f":"AJ7/AI7*AH7","v":0}]
[null,null,"None",{"$f":"VLOOKUP($C8,CornPreChemicals,6,FALSE)","v":0},{"$f":"VLOOKUP($C8,CornPreChemicals,4,FALSE)","v":"None"},0,{"$f":"VLOOKUP(C8,CornPreChemicals,3,FALSE)","v":1},0,{"$f":"VLOOKUP(C8,CornPreChemicals,2,FALSE)","v":0},{"$f":"H8/G8*F8","v":0},null,"None",{"$f":"VLOOKUP($L8,CornPreChemicals,6,FALSE)","v":0},{"$f":"VLOOKUP($L8,CornPreChemicals,4,FALSE)","v":"None"},0,{"$f":"VLOOKUP(L8,CornPreChemicals,3,FALSE)","v":1},0,{"$f":"VLOOKUP(L8,CornPreChemicals,2,FALSE)","v":0},{"$f":"Q8/P8*O8","v":0},null,null,"None",{"$f":"VLOOKUP($C8,CornPreChemicals,6,FALSE)","v":0},{"$f":"VLOOKUP($C8,CornPreChemicals,4,FALSE)","v":"None"},0,{"$f":"VLOOKUP(V8,CornPreChemicals,3,FALSE)","v":1},0,{"$f":"VLOOKUP(V8,CornPreChemicals,2,FALSE)","v":0},{"$f":"AA8/Z8*Y8","v":0},null,"None",0,0,0,{"$f":"VLOOKUP(AE8,CornPreChemicals,3,FALSE)","v":1},0,{"$f":"VLOOKUP(AE8,CornPreChemicals,2,FALSE)","v":0},{"$f":"AJ8/AI8*AH8","v":0}]
[null,null,"None",{"$f":"VLOOKUP($C9,CornPreChemicals,6,FALSE)","v":0},{"$f":"VLOOKUP($C9,CornPreChemicals,4,FALSE)","v":"None"},0,{"$f":"VLOOKUP(C9,CornPreChemicals,3,FALSE)","v":1},0,{"$f":"VLOOKUP(C9,CornPreChemicals,2,FALSE)","v":0},0,null,"None",{"$f":"VLOOKUP($L9,CornPreChemicals,6,FALSE)","v":0},{"$f":"VLOOKUP($L9,CornPreChemicals,4,FALSE)","v":"None"},0,{"$f":"VLOOKUP(L9,CornPreChemicals,3,FALSE)","v":1},0,{"$f":"VLOOKUP(L9,CornPreChemicals,2,FALSE)","v":0},0,null,null,"None",{"$f":"VLOOKUP($C9,CornPreChemicals,6,FALSE)","v":0},{"$f":"VLOOKUP($C9,CornPreChemicals,4,FALSE)","v":"None"},0,{"$f":"VLOOKUP(V9,CornPreChemicals,3,FALSE)","v":1},0,{"$f":"VLOOKUP(V9,CornPreChemicals,2,FALSE)","v":0},0,null,"None",0,0,0,{"$f":"VLOOKUP(AE9,CornPreChemicals,3,FALSE)","v":1},0,{"$f":"VLOOKUP(AE9,CornPreChemicals,2,FALSE)","v":0},0]
[null,null,"None",{"$f":"VLOOKUP($C10,CornPreChemicals,6,FALSE)","v":0},{"$f":"VLOOKUP($C10,CornPreChemicals,4,FALSE)","v":"None"},0,{"$f":"VLOOKUP(C10,CornPreChemicals,3,FALSE)","v":1},0,{"$f":"VLOOKUP(C10,CornPreChemicals,2,FALSE)","v":0},0,null,"None",{"$f":"VLOOKUP($L10,CornPreChemicals,6,FALSE)","v":0},{"$f":"VLOOKUP($L10,CornPreChemicals,4,FALSE)","v":"None"},0,{"$f":"VLOOKUP(L10,CornPreChemicals,3,FALSE)","v":1},0,{"$f":"VLOOKUP(L10,CornPreChemicals,2,FALSE)","v":0},0,null,null,"None",{"$f":"VLOOKUP($C10,CornPreChemicals,6,FALSE)","v":0},{"$f":"VLOOKUP($C10,CornPreChemicals,4,FALSE)","v":"None"},0,{"$f":"VLOOKUP(V10,CornPreChemicals,3,FALSE)","v":1},0,{"$f":"VLOOKUP(V10,CornPreChemicals,2,FALSE)","v":0},0,null,"None",0,0,0,{"$f":"VLOOKUP(AE10,CornPreChemicals,3,FALSE)","v":1},0,{"$f":"VLOOKUP(AE10,CornPreChemicals,2,FALSE)","v":0},0]
[null,null,"None",{"$f":"VLOOKUP($C11,CornPreChemicals,6,FALSE)","v":0},{"$f":"VLOOKUP($C11,CornPreChemicals,4,FALSE)","v":"None"},0,{"$f":"VLOOKUP(C11,CornPreChemicals,3,FALSE)","v":1},0,{"$f":"VLOOKUP(C11,CornPreChemicals,2,FALSE)","v":0},0,null,"None",{"$f":"VLOOKUP($L11,CornPreChemicals,6,FALSE)","v":0},{"$f":"VLOOKUP($L11,CornPreChemicals,4,FALSE)","v":"None"},0,{"$f":"VLOOKUP(L11,CornPreChemicals,3,FALSE)","v":1},0,{"$f":"VLOOKUP(L11,CornPreChemicals,2,FALSE)","v":0},0,null,null,"None",{"$f":"VLOOKUP($C11,CornPreChemicals,6,FALSE)","v":0},{"$f":"VLOOKUP($C11,CornPreChemicals,4,FALSE)","v":"None"},0,{"$f":"VLOOKUP(V11,CornPreChemicals,3,FALSE)","v":1},0,{"$f":"VLOOKUP(V11,CornPreChemicals,2,FALSE)","v":0},0,null,"None",0,0,0,{"$f":"VLOOKUP(AE11,CornPreChemicals,3,FALSE)","v":1},0,{"$f":"VLOOKUP(AE11,CornPreChemicals,2,FALSE)","v":0},0]
[]
[null,null,"Adjuvants (drop down menu)",null,null,"(Enter Below)",null,"(Enter Below)",null,null,null,"Adjuvants (drop down menu)",null,null,"(Enter Below)",null,"(Enter Below)",null,null,null,null,"Adjuvants (drop down menu)",null,null,"(Enter Below)",null,"(Enter Below)",null,null,null,"Adjuvants (drop down menu)",null,null,"(Enter Below)",null,"(Enter Below)"]
[null,null,"None",null,{"$f":"VLOOKUP($C14,Adjuvants,4,FALSE)","v":"None"},0,{"$f":"VLOOKUP(C14,Adjuvants,3,FALSE)","v":1},0,{"$f":"VLOOKUP(C14,Adjuvants,2,FALSE)","v":0},{"$f":"H14/G14*F14","v":0},null,"None",null,{"$f":"VLOOKUP($L14,Adjuvants,4,FALSE)","v":"None"},0,{"$f":"VLOOKUP(L14,Adjuvants,3,FALSE)","v":1},0,{"$f":"VLOOKUP(L14,Adjuvants,2,FALSE)","v":0},{"$f":"Q14/P14*O14","v":0},null,null,"None",null,{"$f":"VLOOKUP($C14,Adjuvants,4,FALSE)","v":"None"},0,{"$f":"VLOOKUP(V14,Adjuvants,3,FALSE)","v":1},0,{"$f":"VLOOKUP(V14,Adjuvants,2,FALSE)","v":0},{"$f":"AA14/Z14*Y14","v":0},null,"None",null,{"$f":"VLOOKUP($L14,Adjuvants,4,FALSE)","v":"None"},0,{"$f":"VLOOKUP(AE14,Adjuvants,3,FALSE)","v":1},0,{"$f":"VLOOKUP(AE14,Adjuvants,2,FALSE)","v":0},{"$f":"AJ14/AI14*AH14","v":0}]
[null,null,"None",null,{"$f":"VLOOKUP($C15,Adjuvants,4,FALSE)","v":"None"},0,{"$f":"VLOOKUP(C15,Adjuvants,3,FALSE)","v":1},0,{"$f":"VLOOKUP(C15,Adjuvants,2,FALSE)","v":0},{"$f":"H15/G15*F15","v":0},null,"None",null,{"$f":"VLOOKUP($L15,Adjuvants,4,FALSE)","v":"None"},0,{"$f":"VLOOKUP(L15,Adjuvants,3,FALSE)","v":1},0,{"$f":"VLOOKUP(L15,Adjuvants,2,FALSE)","v":0},{"$f":"Q15/P15*O15","v":0},null,null,"None",null,{"$f":"VLOOKUP($C15,Adjuvants,4,FALSE)","v":"None"},0,{"$f":"VLOOKUP(V15,Adjuvants,3,FALSE)","v":1},0,{"$f":"VLOOKUP(V15,Adjuvants,2,FALSE)","v":0},{"$f":"AA15/Z15*Y15","v":0},null,"None",null,{"$f":"VLOOKUP($L15,Adjuvants,4,FALSE)","v":"None"},0,{"$f":"VLOOKUP(AE15,Adjuvants,3,FALSE)","v":1},0,{"$f":"VLOOKUP(AE15,Adjuvants,2,FALSE)","v":0},{"$f":"AJ15/AI15*AH15","v":0}]
[null,null,"None",null,{"$f":"VLOOKUP($C16,Adjuvants,4,FALSE)","v":"None"},0,{"$f":"VLOOKUP(C16,Adjuvants,3,FALSE)","v":1},0,{"$f":"VLOOKUP(C16,Adjuvants,2,FALSE)","v":0},0,null,"None",null,{"$f":"VLOOKUP($L16,Adjuvants,4,FALSE)","v":"None"},0,{"$f":"VLOOKUP(L16,Adjuvants,3,FALSE)","v":1},0,{"$f":"VLOOKUP(L16,Adjuvants,2,FALSE)","v":0},0,null,null,"None",null,{"$f":"VLOOKUP($C16,Adjuvants,4,FALSE)","v":"None"},0,{"$f":"VLOOKUP(V16,Adjuvants,3,FALSE)","v":1},0,{"$f":"VLOOKUP(V16,Adjuvants,2,FALSE)","v":0},0,null,"None",null,{"$f":"VLOOKUP($L16,Adjuvants,4,FALSE)","v":"None"},0,{"$f":"VLOOKUP(AE16,Adjuvants,3,FALSE)","v":1},0,{"$f":"VLOOKUP(AE16,Adjuvants,2,FALSE)","v":0},0]
[null,null,"None",null,{"$f":"VLOOKUP($C17,Adjuvants,4,FALSE)","v":"None"},0,{"$f":"VLOOKUP(C17,Adjuvants,3,FALSE)","v":1},0,{"$f":"VLOOKUP(C17,Adjuvants,2,FALSE)","v":0},0,null,"None",null,{"$f":"VLOOKUP($L17,Adjuvants,4,FALSE)","v":"None"},0,{"$f":"VLOOKUP(L17,Adjuvants,3,FALSE)","v":1},0,{"$f":"VLOOKUP(L17,Adjuvants,2,FALSE)","v":0},0,null,null,"None",null,{"$f":"VLOOKUP($C17,Adjuvants,4,FALSE)","v":"None"},0,{"$f":"VLOOKUP(V17,Adjuvants,3,FALSE)","v":1},0,{"$f":"VLOOKUP(V17,Adjuvants,2,FALSE)","v":0},0,null,"None",null,{"$f":"VLOOKUP($L17,Adjuvants,4,FALSE)","v":"None"},0,{"$f":"VLOOKUP(AE17,Adjuvants,3,FALSE)","v":1},0,{"$f":"VLOOKUP(AE17,Adjuvants,2,FALSE)","v":0},0]
[null,null,"None",null,{"$f":"VLOOKUP($C18,Adjuvants,4,FALSE)","v":"None"},0,{"$f":"VLOOKUP(C18,Adjuvants,3,FALSE)","v":1},0,{"$f":"VLOOKUP(C18,Adjuvants,2,FALSE)","v":0},0,null,"None",null,{"$f":"VLOOKUP($L18,Adjuvants,4,FALSE)","v":"None"},0,{"$f":"VLOOKUP(L18,Adjuvants,3,FALSE)","v":1},0,{"$f":"VLOOKUP(L18,Adjuvants,2,FALSE)","v":0},0,null,null,"None",null,{"$f":"VLOOKUP($C18,Adjuvants,4,FALSE)","v":"None"},0,{"$f":"VLOOKUP(V18,Adjuvants,3,FALSE)","v":1},0,{"$f":"VLOOKUP(V18,Adjuvants,2,FALSE)","v":0},0,null,"None",null,{"$f":"VLOOKUP($L18,Adjuvants,4,FALSE)","v":"None"},0,{"$f":"VLOOKUP(AE18,Adjuvants,3,FALSE)","v":1},0,{"$f":"VLOOKUP(AE18,Adjuvants,2,FALSE)","v":0},0]
[]
[null,null,"1st Application Pre-plan/Pre-Emergence Herbicide Cost/Acre",null,null,null,null,null,null,{"$f":"SUM(J7:J18)","v":0},null,"2nd Application Pre-plan/Pre-Emergence Herbicide Cost/Acre",null,null,null,null,null,null,{"$f":"SUM(S7:S18)","v":0},null,null,"1st Application Pre-plan/Pre-Emergence Herbicide Cost/Acre",null,null,null,null,null,null,{"$f":"SUM(AC7:AC18)","v":0},null,"2nd Application Pre-plan/Pre-Emergence Herbicide Cost/Acre",null,null,null,null,null,null,{"$f":"SUM(AL7:AL18)","v":0}]
[]
[null,null,"Post-Emergence Herbicides",null,null,null,null,null,null,null,null,null,null,null,null,null,null,null,null,null,null,"Post-Emergence Herbicides"]
[null,null,"1st Application of Post-Emergence Herbicides",null,null,null,null,null,null,null,null,"2nd Application of Post-Emergence Herbicides",null,null,null,null,null,null,null,null,null,"1st Application of Post-Emergence Herbicides",null,null,null,null,null,null,null,null,"2nd Application of Post-Emergence Herbicides"]
[null,null,"Brand","Site of Action","Purchase Units","Package Price (Gals, Lbs, etc.)","Units/Pkg","Rate/Acre","Rate Units","Cost",null,"Brand","Site of Action","Purchase Units","Package Price (Gals, Lbs, etc.)","Units/Pkg","Rate/Acre","Rate Units","Cost",null,null,"Brand","Site of Action","Purchase Units","Package Price (Gals, Lbs, etc.)","Units/Pkg","Rate/Acre","Rate Units","Cost",null,"Brand","Site of Action","Purchase Units","Package Price (Gals, Lbs, etc.)","Units/Pkg","Rate/Acre","Rate Units","Cost"]
[null,null,"Herbicides (drop down menu)",null,null,"(Enter Below)",null,"(Enter Below)",null,null,null,"Herbicides (drop down menu)",null,null,"(Enter Below)",null,"(Enter Below)",null,null,null,null,"Herbicides (drop down menu)",null,null,"(Enter Below)",null,"(Enter Below)",null,null,null,"Herbicides (drop down menu)",null,null,"(Enter Below)",null,"(Enter Below)"]
[null,null,"None",{"$f":"VLOOKUP($C26,CornPostChemicals,6,FALSE)","v":0},{"$f":"VLOOKUP($C26,CornPostChemicals,4,FALSE)","v":"None"},0,{"$f":"VLOOKUP(C26,CornPostChemicals,3,FALSE)","v":1},0,{"$f":"VLOOKUP(C26,CornPostChemicals,2,FALSE)","v":0},{"$f":"H26/G26*F26","v":0},null,"None",{"$f":"VLOOKUP($L26,CornPostChemicals,6,FALSE)","v":0},{"$f":"VLOOKUP($L26,CornPostChemicals,4,FALSE)","v":"None"},0,{"$f":"VLOOKUP(L26,CornPostChemicals,3,FALSE)","v":1},0,{"$f":"VLOOKUP(L26,CornPostChemicals,2,FALSE)","v":0},{"$f":"Q26/P26*O26","v":0},null,null,"None",{"$f":"VLOOKUP($C26,CornPostChemicals,6,FALSE)","v":0},{"$f":"VLOOKUP($C26,CornPostChemicals,4,FALSE)","v":"None"},0,{"$f":"VLOOKUP(V26,CornPostChemicals,3,FALSE)","v":1},0,{"$f":"VLOOKUP(V26,CornPostChemicals,2,FALSE)","v":0},{"$f":"AA26/Z26*Y26","v":0},null,"None",{"$f":"VLOOKUP($L26,CornPostChemicals,6,FALSE)","v":0},{"$f":"VLOOKUP($L26,CornPostChemicals,4,FALSE)","v":"None"},0,{"$f":"VLOOKUP(AE26,CornPostChemicals,3,FALSE)","v":1},0,{"$f":"VLOOKUP(AE26,CornPostChemicals,2,FALSE)","v":0},{"$f":"AJ26/AI26*AH26","v":0}]
[null,null,"None",{"$f":"VLOOKUP($C27,CornPostChemicals,6,FALSE)","v":0},{"$f":"VLOOKUP($C27,CornPostChemicals,4,FALSE)","v":"None"},0,{"$f":"VLOOKUP(C27,CornPostChemicals,3,FALSE)","v":1},0,{"$f":"VLOOKUP(C27,CornPostChemicals,2,FALSE)","v":0},{"$f":"H27/G27*F27","v":0},null,"None",{"$f":"VLOOKUP($L27,CornPostChemicals,6,FALSE)","v":0},{"$f":"VLOOKUP($L27,CornPostChemicals,4,FALSE)","v":"None"},0,{"$f":"VLOOKUP(L27,CornPostChemicals,3,FALSE)","v":1},0,{"$f":"VLOOKUP(L27,CornPostChemicals,2,FALSE)","v":0},{"$f":"Q27/P27*O27","v":0},null,null,"None",{"$f":"VLOOKUP($C27,CornPostChemicals,6,FALSE)","v":0},{"$f":"VLOOKUP($C27,CornPostChemicals,4,FALSE)","v":"None"},0,{"$f":"VLOOKUP(V27,CornPostChemicals,3,FALSE)","v":1},0,{"$f":"VLOOKUP(V27,CornPostChemicals,2,FALSE)","v":0},{"$f":"AA27/Z27*Y27","v":0},null,"None",{"$f":"VLOOKUP($L27,CornPostChemicals,6,FALSE)","v":0},{"$f":"VLOOKUP($L27,CornPostChemicals,4,FALSE)","v":"None"},0,{"$f":"VLOOKUP(AE27,CornPostChemicals,3,FALSE)","v":1},0,{"$f":"VLOOKUP(AE27,CornPostChemicals,2,FALSE)","v":0},{"$f":"AJ27/AI27*AH27","v":0}]
[null,null,"None",{"$f":"VLOOKUP($C28,CornPostChemicals,6,FALSE)","v":0},{"$f":"VLOOKUP($C28,CornPostChemicals,4,FALSE)","v":"None"},0,{"$f":"VLOOKUP(C28,CornPostChemicals,3,FALSE)","v":1},0,{"$f":"VLOOKUP(C28,CornPostChemicals,2,FALSE)","v":0},0,null,"None",{"$f":"VLOOKUP($L28,CornPostChemicals,6,FALSE)","v":0},{"$f":"VLOOKUP($L28,CornPostChemicals,4,FALSE)","v":"None"},0,{"$f":"VLOOKUP(L28,CornPostChemicals,3,FALSE)","v":1},0,{"$f":"VLOOKUP(L28,CornPostChemicals,2,FALSE)","v":0},0,null,null,"None",{"$f":"VLOOKUP($C28,CornPostChemicals,6,FALSE)","v":0},{"$f":"VLOOKUP($C28,CornPostChemicals,4,FALSE)","v":"None"},0,{"$f":"VLOOKUP(V28,CornPostChemicals,3,FALSE)","v":1},0,{"$f":"VLOOKUP(V28,CornPostChemicals,2,FALSE)","v":0},0,null,"None",{"$f":"VLOOKUP($L28,CornPostChemicals,6,FALSE)","v":0},{"$f":"VLOOKUP($L28,CornPostChemicals,4,FALSE)","v":"None"},0,{"$f":"VLOOKUP(AE28,CornPostChemicals,3,FALSE)","v":1},0,{"$f":"VLOOKUP(AE28,CornPostChemicals,2,FALSE)","v":0},0]
[null,null,"None",{"$f":"VLOOKUP($C29,CornPostChemicals,6,FALSE)","v":0},{"$f":"VLOOKUP($C29,CornPostChemicals,4,FALSE)","v":"None"},0,{"$f":"VLOOKUP(C29,CornPostChemicals,3,FALSE)","v":1},0,{"$f":"VLOOKUP(C29,CornPostChemicals,2,FALSE)","v":0},0,null,"None",{"$f":"VLOOKUP($L29,CornPostChemicals,6,FALSE)","v":0},{"$f":"VLOOKUP($L29,CornPostChemicals,4,FALSE)","v":"None"},0,{"$f":"VLOOKUP(L29,CornPostChemicals,3,FALSE)","v":1},0,{"$f":"VLOOKUP(L29,CornPostChemicals,2,FALSE)","v":0},0,null,null,"None",{"$f":"VLOOKUP($C29,CornPostChemicals,6,FALSE)","v":0},{"$f":"VLOOKUP($C29,CornPostChemicals,4,FALSE)","v":"None"},0,{"$f":"VLOOKUP(V29,CornPostChemicals,3,FALSE)","v":1},0,{"$f":"VLOOKUP(V29,CornPostChemicals,2,FALSE)","v":0},0,null,"None",{"$f":"VLOOKUP($L29,CornPostChemicals,6,FALSE)","v":0},{"$f":"VLOOKUP($L29,CornPostChemicals,4,FALSE)","v":"None"},0,{"$f":"VLOOKUP(AE29,CornPostChemicals,3,FALSE)","v":1},0,{"$f":"VLOOKUP(AE29,CornPostChemicals,2,FALSE)","v":0},0]
[null,null,"None",{"$f":"VLOOKUP($C30,CornPostChemicals,6,FALSE)","v":0},{"$f":"VLOOKUP($C30,CornPostChemicals,4,FALSE)","v":"None"},0,{"$f":"VLOOKUP(C30,CornPostChemicals,3,FALSE)","v":1},0,{"$f":"VLOOKUP(C30,CornPostChemicals,2,FALSE)","v":0},0,null,"None",{"$f":"VLOOKUP($L30,CornPostChemicals,6,FALSE)","v":0},{"$f":"VLOOKUP($L30,CornPostChemicals,4,FALSE)","v":"None"},0,{"$f":"VLOOKUP(L30,CornPostChemicals,3,FALSE)","v":1},0,{"$f":"VLOOKUP(L30,CornPostChemicals,2,FALSE)","v":0},0,null,null,"None",{"$f":"VLOOKUP($C30,CornPostChemicals,6,FALSE)","v":0},{"$f":"VLOOKUP($C30,CornPostChemicals,4,FALSE)","v":"None"},0,{"$f":"VLOOKUP(V30,CornPostChemicals,3,FALSE)","v":1},0,{"$f":"VLOOKUP(V30,CornPostChemicals,2,FALSE)","v":0},0,null,"None",{"$f":"VLOOKUP($L30,CornPostChemicals,6,FALSE)","v":0},{"$f":"VLOOKUP($L30,CornPostChemicals,4,FALSE)","v":"None"},0,{"$f":"VLOOKUP(AE30,CornPostChemicals,3,FALSE)","v":1},0,{"$f":"VLOOKUP(AE30,CornPostChemicals,2,FALSE)","v":0},0]
[]
[null,null,"Adjuvants (drop down menu)",null,null,"(Enter Below)",null,"(Enter Below)",null,null,null,"Adjuvants (drop down menu)",null,null,"(Enter Below)",null,"(Enter Below)",null,null,null,null,"Adjuvants (drop down menu)",null,null,"(Enter Below)",null,"(Enter Below)",null,null,null,"Adjuvants (drop down menu)",null,null,"(Enter Below)",null,"(Enter Below)"]
[null,null,"None",null,{"$f":"VLOOKUP($C33,Adjuvants,4,FALSE)","v":"None"},0,{"$f":"VLOOKUP(C33,Adjuvants,3,FALSE)","v":1},0,{"$f":"VLOOKUP(C33,Adjuvants,2,FALSE)","v":0},{"$f":"H33/G33*F33","v":0},null,"None",null,{"$f":"VLOOKUP($L33,Adjuvants,4,FALSE)","v":"None"},0,{"$f":"VLOOKUP(L33,Adjuvants,3,FALSE)","v":1},0,{"$f":"VLOOKUP(L33,Adjuvants,2,FALSE)","v":0},{"$f":"Q33/P33*O33","v":0},null,null,"None",null,{"$f":"VLOOKUP($C33,Adjuvants,4,FALSE)","v":"None"},0,{"$f":"VLOOKUP(V33,Adjuvants,3,FALSE)","v":1},0,{"$f":"VLOOKUP(V33,Adjuvants,2,FALSE)","v":0},{"$f":"AA33/Z33*Y33","v":0},null,"None",null,{"$f":"VLOOKUP($L33,Adjuvants,4,FALSE)","v":"None"},0,{"$f":"VLOOKUP(AE33,Adjuvants,3,FALSE)","v":1},0,{"$f":"VLOOKUP(AE33,Adjuvants,2,FALSE)","v":0},{"$f":"AJ33/AI33*AH33","v":0}]
[null,null,"None",null,{"$f":"VLOOKUP($C34,Adjuvants,4,FALSE)","v":"None"},0,{"$f":"VLOOKUP(C34,Adjuvants,3,FALSE)","v":1},0,{"$f":"VLOOKUP(C34,Adjuvants,2,FALSE)","v":0},{"$f":"H34/G34*F34","v":0},null,"None",null,{"$f":"VLOOKUP($L34,Adjuvants,4,FALSE)","v":"None"},0,{"$f":"VLOOKUP(L34,Adjuvants,3,FALSE)","v":1},0,{"$f":"VLOOKUP(L34,Adjuvants,2,FALSE)","v":0},{"$f":"Q34/P34*O34","v":0},null,null,"None",null,{"$f":"VLOOKUP($C34,Adjuvants,4,FALSE)","v":"None"},0,{"$f":"VLOOKUP(V34,Adjuvants,3,FALSE)","v":1},0,{"$f":"VLOOKUP(V34,Adjuvants,2,FALSE)","v":0},{"$f":"AA34/Z34*Y34","v":0},null,"None",null,{"$f":"VLOOKUP($L34,Adjuvants,4,FALSE)","v":"None"},0,{"$f":"VLOOKUP(AE34,Adjuvants,3,FALSE)","v":1},0,{"$f":"VLOOKUP(AE34,Adjuvants,2,FALSE)","v":0},{"$f":"AJ34/AI34*AH34","v":0}]
[null,null,"None",null,{"$f":"VLOOKUP($C35,Adjuvants,4,FALSE)","v":"None"},0,{"$f":"VLOOKUP(C35,Adjuvants,3,FALSE)","v":1},0,{"$f":"VLOOKUP(C35,Adjuvants,2,FALSE)","v":0},0,null,"None",null,{"$f":"VLOOKUP($L35,Adjuvants,4,FALSE)","v":"None"},0,{"$f":"VLOOKUP(L35,Adjuvants,3,FALSE)","v":1},0,{"$f":"VLOOKUP(L35,Adjuvants,2,FALSE)","v":0},0,null,null,"None",null,{"$f":"VLOOKUP($C35,Adjuvants,4,FALSE)","v":"None"},0,{"$f":"VLOOKUP(V35,Adjuvants,3,FALSE)","v":1},0,{"$f":"VLOOKUP(V35,Adjuvants,2,FALSE)","v":0},0,null,"None",null,{"$f":"VLOOKUP($L35,Adjuvants,4,FALSE)","v":"None"},0,{"$f":"VLOOKUP(AE35,Adjuvants,3,FALSE)","v":1},0,{"$f":"VLOOKUP(AE35,Adjuvants,2,FALSE)","v":0},0]
[null,null,"None",null,{"$f":"VLOOKUP($C36,Adjuvants,4,FALSE)","v":"None"},0,{"$f":"VLOOKUP(C36,Adjuvants,3,FALSE)","v":1},0,{"$f":"VLOOKUP(C36,Adjuvants,2,FALSE)","v":0},0,null,"None",null,{"$f":"VLOOKUP($L36,Adjuvants,4,FALSE)","v":"None"},0,{"$f":"VLOOKUP(L36,Adjuvants,3,FALSE)","v":1},0,{"$f":"VLOOKUP(L36,Adjuvants,2,FALSE)","v":0},0,null,null,"None",null,{"$f":"VLOOKUP($C36,Adjuvants,4,FALSE)","v":"None"},0,{"$f":"VLOOKUP(V36,Adjuvants,3,FALSE)","v":1},0,{"$f":"VLOOKUP(V36,Adjuvants,2,FALSE)","v":0},0,null,"None",null,{"$f":"VLOOKUP($L36,Adjuvants,4,FALSE)","v":"None"},0,{"$f":"VLOOKUP(AE36,Adjuvants,3,FALSE)","v":1},0,{"$f":"VLOOKUP(AE36,Adjuvants,2,FALSE)","v":0},0]
[null,null,"None",null,{"$f":"VLOOKUP($C37,Adjuvants,4,FALSE)","v":"None"},0,{"$f":"VLOOKUP(C37,Adjuvants,3,FALSE)","v":1},0,{"$f":"VLOOKUP(C37,Adjuvants,2,FALSE)","v":0},0,null,"None",null,{"$f":"VLOOKUP($L37,Adjuvants,4,FALSE)","v":"None"},0,{"$f":"VLOOKUP(L37,Adjuvants,3,FALSE)","v":1},0,{"$f":"VLOOKUP(L37,Adjuvants,2,FALSE)","v":0},0,null,null,"None",null,{"$f":"VLOOKUP($C37,Adjuvants,4,FALSE)","v":"None"},0,{"$f":"VLOOKUP(V37,Adjuvants,3,FALSE)","v":1},0,{"$f":"VLOOKUP(V37,Adjuvants,2,FALSE)","v":0},0,null,"None",null,{"$f":"VLOOKUP($L37,Adjuvants,4,FALSE)","v":"None"},0,{"$f":"VLOOKUP(AE37,Adjuvants,3,FALSE)","v":1},0,{"$f":"VLOOKUP(AE37,Adjuvants,2,FALSE)","v":0},0]
[]
[null,null,"1st Application of Post-Emergence Herbicides Cost/Acre",null,null,null,null,null,null,{"$f":"SUM(J26:J37)","v":0},null,"2nd Application of Post-Emergence Herbicides Cost/Acre",null,null,null,null,null,null,{"$f":"SUM(S26:S37)","v":0},null,null,"1st Application of Post-Emergence Herbicides Cost/Acre",null,null,null,null,null,null,{"$f":"SUM(AC26:AC37)","v":0},null,"2nd Application of Post-Emergence Herbicides Cost/Acre",null,null,null,null,null,null,{"$f":"SUM(AL26:AL37)","v":0}]
[]
[null,null,null,null,null,null,null,null,null,null,null,"Summary Cost/Acre (Herbicides Only)",null,null,null,null,null,null,null,null,null,null,null,null,null,null,null,null,null,null,"Summary Cost/Acre (Herbicides Only)"]
[null,null,"Plan Year",null,null,null,null,null,null,null,null,null,null,null,null,null,null,null,null,null,null,{"$f":"C42","v":"Plan Year"}]
[null,null,"Farm Name",null,null,null,null,null,null,null,null,null,null,null,null,null,null,null,null,null,null,{"$f":"C43","v":"Farm Name"}]
[null,null,"Farm Tract",null,null,null,null,null,null,null,null,"Pre-plant/Pre-emergence/Burndown Total Cost/Acre",null,null,null,null,null,null,{"$f":"J20+S20","v":0},null,null,{"$f":"C44","v":"Farm Tract"},null,null,null,null,null,null,null,null,"Pre-plant/Pre-emergence/Burndown Total Cost/Acre",null,null,null,null,null,null,{"$f":"AC20+AL20","v":0}]
[null,null,"Farm Number",null,null,null,null,null,null,null,null,null,null,null,null,null,null,null,null,null,null,"Farm Number"]
[null,null,null,null,null,null,null,null,null,null,null,"Post-emergence Total Cost/Acre",null,null,null,null,null,null,{"$f":"J39+S39","v":0},null,null,null,null,null,null,null,null,null,null,null,"Post-emergence Total Cost/Acre",null,null,null,null,null,null,{"$f":"AC39+AL39","v":0}]
[]
[null,null,null,null,null,null,null,null,null,null,null,"Total Herbicide Cost/Acre",null,null,null,null,null,null,{"$f":"S39+J39+S20+J20","v":0},null,null,null,null,null,null,null,null,null,null,null,"Total Herbicide Cost/Acre",null,null,null,null,null,null,{"$f":"AL39+AC39+AL20+AC20","v":0}]
[]
[]
[null,null,"Fungicide & Insecticide Chemicals",null,null,null,null,null,null,null,null,null,null,null,null,null,null,null,null,null,null,"Fungicide & Insecticide Chemicals"]
[null,null,"1st Application of Fungicides",null,null,null,null,null,null,null,null,"2nd Application of Fungicides",null,null,null,null,null,null,null,null,null,"None",null,null,null,null,null,null,null,null,"2nd Application of Fungicides"]
[null,null,"Brand","Active Ingredient(s)","Purchase Units","Package Price (Gals, Lbs, etc.)","Units/Pkg","Rate/Acre","Rate Units","Cost",null,"Brand","Active Ingredient(s)","Purchase Units","Package Price (Gals, Lbs, etc.)","Units/Pkg","Rate/Acre","Rate Units","Cost",null,null,"Brand","Active Ingredient(s)","Purchase Units","Package Price (Gals, Lbs, etc.)","Units/Pkg","Rate/Acre","Rate Units","Cost",null,"Brand","Active Ingredient(s)","Purchase Units","Package Price (Gals, Lbs, etc.)","Units/Pkg","Rate/Acre","Rate Units","Cost"]
[null,null,"Fungicides (drop down menu)",null,null,"(Enter Below)",null,"(Enter Below)",null,null,null,"Fungicides (drop down menu)",null,null,"(Enter Below)",null,"(Enter Below)",null,null,null,null,"Fungicides (drop down menu)",null,null,"(Enter Below)",null,"(Enter Below)",null,null,null,"Fungicides (drop down menu)",null,null,"(Enter Below)",null,"(Enter Below)"]
[null,null,"None",{"$f":"VLOOKUP(C55,CornFungicides,6,FALSE)","v":"None"},{"$f":"VLOOKUP($C55,CornFungicides,4,FALSE)","v":"None"},0,{"$f":"VLOOKUP(C55,CornFungicides,3,FALSE)","v":1},0,{"$f":"VLOOKUP(C55,CornFungicides,2,FALSE)","v":0},{"$f":"H55/G55*F55","v":0},null,"None",{"$f":"VLOOKUP(L55,CornFungicides,6,FALSE)","v":"None"},{"$f":"VLOOKUP($L55,CornFungicides,4,FALSE)","v":"None"},0,{"$f":"VLOOKUP(L55,CornFungicides,3,FALSE)","v":1},0,{"$f":"VLOOKUP(L55,CornFungicides,2,FALSE)","v":0},{"$f":"Q55/P55*O55","v":0},null,null,"None",{"$f":"VLOOKUP(V55,CornFungicides,6,FALSE)","v":"None"},{"$f":"VLOOKUP($C55,CornFungicides,4,FALSE)","v":"None"},0,{"$f":"VLOOKUP(V55,CornFungicides,3,FALSE)","v":1},0,{"$f":"VLOOKUP(V55,CornFungicides,2,FALSE)","v":0},{"$f":"AA55/Z55*Y55","v":0},null,"None",{"$f":"VLOOKUP(AE55,CornFungicides,6,FALSE)","v":"None"},{"$f":"VLOOKUP($C55,CornFungicides,4,FALSE)","v":"None"},0,{"$f":"VLOOKUP(AE55,CornFungicides,3,FALSE)","v":1},0,{"$f":"VLOOKUP(AE55,CornFungicides,2,FALSE)","v":0},{"$f":"AJ55/AI55*AH55","v":0}]
[null,null,"None",{"$f":"VLOOKUP(C56,CornFungicides,6,FALSE)","v":"None"},{"$f":"VLOOKUP($C56,CornFungicides,4,FALSE)","v":"None"},0,{"$f":"VLOOKUP(C56,CornFungicides,3,FALSE)","v":1},0,{"$f":"VLOOKUP(C56,CornFungicides,2,FALSE)","v":0},{"$f":"H56/G56*F56","v":0},null,"None",{"$f":"VLOOKUP(L56,CornFungicides,6,FALSE)","v":"None"},{"$f":"VLOOKUP($L56,CornFungicides,4,FALSE)","v":"None"},0,{"$f":"VLOOKUP(L56,CornFungicides,3,FALSE)","v":1},0,{"$f":"VLOOKUP(L56,CornFungicides,2,FALSE)","v":0},{"$f":"Q56/P56*O56","v":0},null,null,"None",{"$f":"VLOOKUP(V56,CornFungicides,6,FALSE)","v":"None"},{"$f":"VLOOKUP($C56,CornFungicides,4,FALSE)","v":"None"},0,{"$f":"VLOOKUP(V56,CornFungicides,3,FALSE)","v":1},0,{"$f":"VLOOKUP(V56,CornFungicides,2,FALSE)","v":0},{"$f":"AA56/Z56*Y56","v":0},null,"None",{"$f":"VLOOKUP(AE56,CornFungicides,6,FALSE)","v":"None"},{"$f":"VLOOKUP($C56,CornFungicides,4,FALSE)","v":"None"},0,{"$f":"VLOOKUP(AE56,CornFungicides,3,FALSE)","v":1},0,{"$f":"VLOOKUP(AE56,CornFungicides,2,FALSE)","v":0},{"$f":"AJ56/AI56*AH56","v":0}]
[null,null,"None",{"$f":"VLOOKUP(C57,CornFungicides,6,FALSE)","v":"None"},{"$f":"VLOOKUP($C57,CornFungicides,4,FALSE)","v":"None"},0,{"$f":"VLOOKUP(C57,CornFungicides,3,FALSE)","v":1},0,{"$f":"VLOOKUP(C57,CornFungicides,2,FALSE)","v":0},0,null,"None",{"$f":"VLOOKUP(L57,CornFungicides,6,FALSE)","v":"None"},{"$f":"VLOOKUP($L57,CornFungicides,4,FALSE)","v":"None"},0,{"$f":"VLOOKUP(L57,CornFungicides,3,FALSE)","v":1},0,{"$f":"VLOOKUP(L57,CornFungicides,2,FALSE)","v":0},0,null,null,"None",{"$f":"VLOOKUP(V57,CornFungicides,6,FALSE)","v":"None"},{"$f":"VLOOKUP($C57,CornFungicides,4,FALSE)","v":"None"},0,{"$f":"VLOOKUP(V57,CornFungicides,3,FALSE)","v":1},0,{"$f":"VLOOKUP(V57,CornFungicides,2,FALSE)","v":0},0,null,"None",{"$f":"VLOOKUP(AE57,CornFungicides,6,FALSE)","v":"None"},{"$f":"VLOOKUP($C57,CornFungicides,4,FALSE)","v":"None"},0,{"$f":"VLOOKUP(AE57,CornFungicides,3,FALSE)","v":1},0,{"$f":"VLOOKUP(AE57,CornFungicides,2,FALSE)","v":0},0]
[]
[null,null,"Adjuvants (drop down menu)",null,null,"(Enter Below)",null,"(Enter Below)",null,null,null,"Adjuvants (drop down menu)",null,null,"(Enter Below)",null,"(Enter Below)",null,null,null,null,"Adjuvants (drop down menu)",null,null,"(Enter Below)",null,"(Enter Below)",null,null,null,"Adjuvants (drop down menu)",null,null,"(Enter Below)",null,"(Enter Below)"]
[null,null,"None",null,{"$f":"VLOOKUP($C60,Adjuvants,4,FALSE)","v":"None"},0,{"$f":"VLOOKUP(C60,Adjuvants,3,FALSE)","v":1},0,{"$f":"VLOOKUP(C60,Adjuvants,2,FALSE)","v":0},{"$f":"H60/G60*F60","v":0},null,"None",null,{"$f":"VLOOKUP($L60,Adjuvants,4,FALSE)","v":"None"},0,{"$f":"VLOOKUP(L60,Adjuvants,3,FALSE)","v":1},0,{"$f":"VLOOKUP(L60,Adjuvants,2,FALSE)","v":0},{"$f":"Q60/P60*O60","v":0},null,null,"None",null,{"$f":"VLOOKUP($C60,Adjuvants,4,FALSE)","v":"None"},0,{"$f":"VLOOKUP(V60,Adjuvants,3,FALSE)","v":1},0,{"$f":"VLOOKUP(V60,Adjuvants,2,FALSE)","v":0},{"$f":"AA60/Z60*Y60","v":0},null,"None",null,{"$f":"VLOOKUP($C60,Adjuvants,4,FALSE)","v":"None"},0,{"$f":"VLOOKUP(AE60,Adjuvants,3,FALSE)","v":1},0,{"$f":"VLOOKUP(AE60,Adjuvants,2,FALSE)","v":0},{"$f":"AJ60/AI60*AH60","v":0}]
[null,null,"None",null,{"$f":"VLOOKUP($C61,Adjuvants,4,FALSE)","v":"None"},0,{"$f":"VLOOKUP(C61,Adjuvants,3,FALSE)","v":1},0,{"$f":"VLOOKUP(C61,Adjuvants,2,FALSE)","v":0},{"$f":"H61/G61*F61","v":0},null,"None",null,{"$f":"VLOOKUP($L61,Adjuvants,4,FALSE)","v":"None"},0,{"$f":"VLOOKUP(L61,Adjuvants,3,FALSE)","v":1},0,{"$f":"VLOOKUP(L61,Adjuvants,2,FALSE)","v":0},{"$f":"Q61/P61*O61","v":0},null,null,"None",null,{"$f":"VLOOKUP($C61,Adjuvants,4,FALSE)","v":"None"},0,{"$f":"VLOOKUP(V61,Adjuvants,3,FALSE)","v":1},0,{"$f":"VLOOKUP(V61,Adjuvants,2,FALSE)","v":0},{"$f":"AA61/Z61*Y61","v":0},null,"None",null,{"$f":"VLOOKUP($C61,Adjuvants,4,FALSE)","v":"None"},0,{"$f":"VLOOKUP(AE61,Adjuvants,3,FALSE)","v":1},0,{"$f":"VLOOKUP(AE61,Adjuvants,2,FALSE)","v":0},{"$f":"AJ61/AI61*AH61","v":0}]
[null,null,"None",null,{"$f":"VLOOKUP($C62,Adjuvants,4,FALSE)","v":"None"},0,{"$f":"VLOOKUP(C62,Adjuvants,3,FALSE)","v":1},0,{"$f":"VLOOKUP(C62,Adjuvants,2,FALSE)","v":0},0,null,"None",null,{"$f":"VLOOKUP($L62,Adjuvants,4,FALSE)","v":"None"},0,{"$f":"VLOOKUP(L62,Adjuvants,3,FALSE)","v":1},0,{"$f":"VLOOKUP(L62,Adjuvants,2,FALSE)","v":0},0,null,null,"None",null,{"$f":"VLOOKUP($C62,Adjuvants,4,FALSE)","v":"None"},0,{"$f":"VLOOKUP(V62,Adjuvants,3,FALSE)","v":1},0,{"$f":"VLOOKUP(V62,Adjuvants,2,FALSE)","v":0},0,null,"None",null,{"$f":"VLOOKUP($C62,Adjuvants,4,FALSE)","v":"None"},0,{"$f":"VLOOKUP(AE62,Adjuvants,3,FALSE)","v":1},0,{"$f":"VLOOKUP(AE62,Adjuvants,2,FALSE)","v":0},0]
[null,null,"None",null,{"$f":"VLOOKUP($C63,Adjuvants,4,FALSE)","v":"None"},0,{"$f":"VLOOKUP(C63,Adjuvants,3,FALSE)","v":1},0,{"$f":"VLOOKUP(C63,Adjuvants,2,FALSE)","v":0},0,null,"None",null,{"$f":"VLOOKUP($L63,Adjuvants,4,FALSE)","v":"None"},0,{"$f":"VLOOKUP(L63,Adjuvants,3,FALSE)","v":1},0,{"$f":"VLOOKUP(L63,Adjuvants,2,FALSE)","v":0},0,null,null,"None",null,{"$f":"VLOOKUP($C63,Adjuvants,4,FALSE)","v":"None"},0,{"$f":"VLOOKUP(V63,Adjuvants,3,FALSE)","v":1},0,{"$f":"VLOOKUP(V63,Adjuvants,2,FALSE)","v":0},0,null,"None",null,{"$f":"VLOOKUP($C63,Adjuvants,4,FALSE)","v":"None"},0,{"$f":"VLOOKUP(AE63,Adjuvants,3,FALSE)","v":1},0,{"$f":"VLOOKUP(AE63,Adjuvants,2,FALSE)","v":0},0]
[null,null,"None",null,{"$f":"VLOOKUP($C64,Adjuvants,4,FALSE)","v":"None"},0,{"$f":"VLOOKUP(C64,Adjuvants,3,FALSE)","v":1},0,{"$f":"VLOOKUP(C64,Adjuvants,2,FALSE)","v":0},0,null,"None",null,{"$f":"VLOOKUP($L64,Adjuvants,4,FALSE)","v":"None"},0,{"$f":"VLOOKUP(L64,Adjuvants,3,FALSE)","v":1},0,{"$f":"VLOOKUP(L64,Adjuvants,2,FALSE)","v":0},0,null,null,"None",null,{"$f":"VLOOKUP($C64,Adjuvants,4,FALSE)","v":"None"},0,{"$f":"VLOOKUP(V64,Adjuvants,3,FALSE)","v":1},0,{"$f":"VLOOKUP(V64,Adjuvants,2,FALSE)","v":0},0,null,"None",null,{"$f":"VLOOKUP($C64,Adjuvants,4,FALSE)","v":"None"},0,{"$f":"VLOOKUP(AE64,Adjuvants,3,FALSE)","v":1},0,{"$f":"VLOOKUP(AE64,Adjuvants,2,FALSE)","v":0},0]
[]
[null,null,"Fungicide Cost/Acre",null,null,null,null,null,null,{"$f":"SUM(J55:J64)","v":0},null,"Fungicide Cost/Acre",null,null,null,null,null,null,{"$f":"SUM(S55:S64)","v":0},null,null,"Fungicide Cost/Acre",null,null,null,null,null,null,{"$f":"SUM(AC55:AC64)","v":0},null,"Fungicide Cost/Acre",null,null,null,null,null,null,{"$f":"SUM(AL55:AL64)","v":0}]
[]
[null,null,"1st Application of Insecticides",null,null,null,null,null,null,null,null,"2nd Application of Insecticides",null,null,null,null,null,null,null,null,null,"1st Application of Insecticides",null,null,null,null,null,null,null,null,"2nd Application of Insecticides"]
[null,null,"Brand","Active Ingredient(s)","Purchase Units","Package Price (Gals, Lbs, etc.)","Units/Pkg","Rate/Acre","Rate Units","Cost",null,"Brand","Active Ingredient(s)","Purchase Units","Package Price (Gals, Lbs, etc.)","Units/Pkg","Rate/Acre","Rate Units","Cost",null,null,"Brand","Active Ingredient(s)","Purchase Units","Package Price (Gals, Lbs, etc.)","Units/Pkg","Rate/Acre","Rate Units","Cost",null,"Brand","Active Ingredient(s)","Purchase Units","Package Price (Gals, Lbs, etc.)","Units/Pkg","Rate/Acre","Rate Units","Cost"]
[null,null,"Insecticides (drop down menu)",null,null,"(Enter Below)",null,"(Enter Below)",null,null,null,"Insecticides (drop down menu)",null,null,"(Enter Below)",null,"(Enter Below)",null,null,null,null,"Insecticides (drop down menu)",null,null,"(Enter Below)",null,"(Enter Below)",null,null,null,"Insecticides (drop down menu)",null,null,"(Enter Below)",null,"(Enter Below)"]
[null,null,"None",{"$f":"VLOOKUP(C71,CornInsecticides,6,FALSE)","v":"None"},{"$f":"VLOOKUP(#REF!,CornInsecticides,4,FALSE)","v":{"$error":"#REF!"}},0,{"$f":"VLOOKUP(C71,CornInsecticides,3,FALSE)","v":1},0,{"$f":"VLOOKUP(C71,CornInsecticides,2,FALSE)","v":0},{"$f":"H71/G71*F71","v":0},null,"None",{"$f":"VLOOKUP(L71,CornInsecticides,6,FALSE)","v":"None"},{"$f":"VLOOKUP(#REF!,CornInsecticides,4,FALSE)","v":{"$error":"#REF!"}},0,{"$f":"VLOOKUP(L71,CornInsecticides,3,FALSE)","v":1},0,{"$f":"VLOOKUP(L71,CornInsecticides,2,FALSE)","v":0},{"$f":"Q71/P71*O71","v":0},null,null,"None",{"$f":"VLOOKUP(V71,CornInsecticides,6,FALSE)","v":"None"},{"$f":"VLOOKUP(#REF!,CornInsecticides,4,FALSE)","v":{"$error":"#REF!"}},0,{"$f":"VLOOKUP(V71,CornInsecticides,3,FALSE)","v":1},0,{"$f":"VLOOKUP(V71,CornInsecticides,2,FALSE)","v":0},{"$f":"AA71/Z71*Y71","v":0},null,"None",{"$f":"VLOOKUP(AE71,CornInsecticides,6,FALSE)","v":"None"},{"$f":"VLOOKUP(#REF!,CornInsecticides,4,FALSE)","v":{"$error":"#REF!"}},0,{"$f":"VLOOKUP(AE71,CornInsecticides,3,FALSE)","v":1},0,{"$f":"VLOOKUP(AE71,CornInsecticides,2,FALSE)","v":0},{"$f":"AJ71/AI71*AH71","v":0}]
[null,null,"None",{"$f":"VLOOKUP(C72,CornInsecticides,6,FALSE)","v":"None"},{"$f":"VLOOKUP(#REF!,CornInsecticides,4,FALSE)","v":{"$error":"#REF!"}},0,{"$f":"VLOOKUP(C72,CornInsecticides,3,FALSE)","v":1},0,{"$f":"VLOOKUP(C72,CornInsecticides,2,FALSE)","v":0},{"$f":"H72/G72*F72","v":0},null,"None",{"$f":"VLOOKUP(L72,CornInsecticides,6,FALSE)","v":"None"},{"$f":"VLOOKUP(#REF!,CornInsecticides,4,FALSE)","v":{"$error":"#REF!"}},0,{"$f":"VLOOKUP(L72,CornInsecticides,3,FALSE)","v":1},0,{"$f":"VLOOKUP(L72,CornInsecticides,2,FALSE)","v":0},{"$f":"Q72/P72*O72","v":0},null,null,"None",{"$f":"VLOOKUP(V72,CornInsecticides,6,FALSE)","v":"None"},{"$f":"VLOOKUP(#REF!,CornInsecticides,4,FALSE)","v":{"$error":"#REF!"}},0,{"$f":"VLOOKUP(V72,CornInsecticides,3,FALSE)","v":1},0,{"$f":"VLOOKUP(V72,CornInsecticides,2,FALSE)","v":0},{"$f":"AA72/Z72*Y72","v":0},null,"None",{"$f":"VLOOKUP(AE72,CornInsecticides,6,FALSE)","v":"None"},{"$f":"VLOOKUP(#REF!,CornInsecticides,4,FALSE)","v":{"$error":"#REF!"}},0,{"$f":"VLOOKUP(AE72,CornInsecticides,3,FALSE)","v":1},0,{"$f":"VLOOKUP(AE72,CornInsecticides,2,FALSE)","v":0},{"$f":"AJ72/AI72*AH72","v":0}]
[null,null,"None",{"$f":"VLOOKUP(C73,CornInsecticides,6,FALSE)","v":"None"},{"$f":"VLOOKUP(#REF!,CornInsecticides,4,FALSE)","v":{"$error":"#REF!"}},0,{"$f":"VLOOKUP(C73,CornInsecticides,3,FALSE)","v":1},0,{"$f":"VLOOKUP(C73,CornInsecticides,2,FALSE)","v":0},0,null,"None",{"$f":"VLOOKUP(L73,CornInsecticides,6,FALSE)","v":"None"},{"$f":"VLOOKUP(#REF!,CornInsecticides,4,FALSE)","v":{"$error":"#REF!"}},0,{"$f":"VLOOKUP(L73,CornInsecticides,3,FALSE)","v":1},0,{"$f":"VLOOKUP(L73,CornInsecticides,2,FALSE)","v":0},0,null,null,"None",{"$f":"VLOOKUP(V73,CornInsecticides,6,FALSE)","v":"None"},{"$f":"VLOOKUP(#REF!,CornInsecticides,4,FALSE)","v":{"$error":"#REF!"}},0,{"$f":"VLOOKUP(V73,CornInsecticides,3,FALSE)","v":1},0,{"$f":"VLOOKUP(V73,CornInsecticides,2,FALSE)","v":0},0,null,"None",{"$f":"VLOOKUP(AE73,CornInsecticides,6,FALSE)","v":"None"},{"$f":"VLOOKUP(#REF!,CornInsecticides,4,FALSE)","v":{"$error":"#REF!"}},0,{"$f":"VLOOKUP(AE73,CornInsecticides,3,FALSE)","v":1},0,{"$f":"VLOOKUP(AE73,CornInsecticides,2,FALSE)","v":0},0]
[]
[null,null,"Adjuvants (drop down menu)",null,null,"(Enter Below)",null,"(Enter Below)",null,null,null,"Adjuvants (drop down menu)",null,null,"(Enter Below)",null,"(Enter Below)",null,null,null,null,"Adjuvants (drop down menu)",null,null,"(Enter Below)",null,"(Enter Below)",null,null,null,"Adjuvants (drop down menu)",null,null,"(Enter Below)",null,"(Enter Below)"]
[null,null,"None",null,{"$f":"VLOOKUP(#REF!,Adjuvants,4,FALSE)","v":{"$error":"#REF!"}},0,{"$f":"VLOOKUP(C76,Adjuvants,3,FALSE)","v":1},0,{"$f":"VLOOKUP(C76,Adjuvants,2,FALSE)","v":0},{"$f":"H76/G76*F76","v":0},null,"None",null,{"$f":"VLOOKUP(#REF!,Adjuvants,4,FALSE)","v":{"$error":"#REF!"}},0,{"$f":"VLOOKUP(L76,Adjuvants,3,FALSE)","v":1},0,{"$f":"VLOOKUP(L76,Adjuvants,2,FALSE)","v":0},{"$f":"Q76/P76*O76","v":0},null,null,"None",null,{"$f":"VLOOKUP(#REF!,Adjuvants,4,FALSE)","v":{"$error":"#REF!"}},0,{"$f":"VLOOKUP(V76,Adjuvants,3,FALSE)","v":1},0,{"$f":"VLOOKUP(V76,Adjuvants,2,FALSE)","v":0},{"$f":"AA76/Z76*Y76","v":0},null,"None",null,{"$f":"VLOOKUP(#REF!,Adjuvants,4,FALSE)","v":{"$error":"#REF!"}},0,{"$f":"VLOOKUP(AE76,Adjuvants,3,FALSE)","v":1},0,{"$f":"VLOOKUP(AE76,Adjuvants,2,FALSE)","v":0},{"$f":"AJ76/AI76*AH76","v":0}]
[null,null,"None",null,{"$f":"VLOOKUP(#REF!,Adjuvants,4,FALSE)","v":{"$error":"#REF!"}},0,{"$f":"VLOOKUP(C77,Adjuvants,3,FALSE)","v":1},0,{"$f":"VLOOKUP(C77,Adjuvants,2,FALSE)","v":0},{"$f":"H77/G77*F77","v":0},null,"None",null,{"$f":"VLOOKUP(#REF!,Adjuvants,4,FALSE)","v":{"$error":"#REF!"}},0,{"$f":"VLOOKUP(L77,Adjuvants,3,FALSE)","v":1},0,{"$f":"VLOOKUP(L77,Adjuvants,2,FALSE)","v":0},{"$f":"Q77/P77*O77","v":0},null,null,"None",null,{"$f":"VLOOKUP(#REF!,Adjuvants,4,FALSE)","v":{"$error":"#REF!"}},0,{"$f":"VLOOKUP(V77,Adjuvants,3,FALSE)","v":1},0,{"$f":"VLOOKUP(V77,Adjuvants,2,FALSE)","v":0},{"$f":"AA77/Z77*Y77","v":0},null,"None",null,{"$f":"VLOOKUP(#REF!,Adjuvants,4,FALSE)","v":{"$error":"#REF!"}},0,{"$f":"VLOOKUP(AE77,Adjuvants,3,FALSE)","v":1},0,{"$f":"VLOOKUP(AE77,Adjuvants,2,FALSE)","v":0},{"$f":"AJ77/AI77*AH77","v":0}]
[null,null,"None",null,{"$f":"VLOOKUP(#REF!,Adjuvants,4,FALSE)","v":{"$error":"#REF!"}},0,{"$f":"VLOOKUP(C78,Adjuvants,3,FALSE)","v":1},0,{"$f":"VLOOKUP(C78,Adjuvants,2,FALSE)","v":0},0,null,"None",null,{"$f":"VLOOKUP(#REF!,Adjuvants,4,FALSE)","v":{"$error":"#REF!"}},0,{"$f":"VLOOKUP(L78,Adjuvants,3,FALSE)","v":1},0,{"$f":"VLOOKUP(L78,Adjuvants,2,FALSE)","v":0},0,null,null,"None",null,{"$f":"VLOOKUP(#REF!,Adjuvants,4,FALSE)","v":{"$error":"#REF!"}},0,{"$f":"VLOOKUP(V78,Adjuvants,3,FALSE)","v":1},0,{"$f":"VLOOKUP(V78,Adjuvants,2,FALSE)","v":0},0,null,"None",null,{"$f":"VLOOKUP(#REF!,Adjuvants,4,FALSE)","v":{"$error":"#REF!"}},0,{"$f":"VLOOKUP(AE78,Adjuvants,3,FALSE)","v":1},0,{"$f":"VLOOKUP(AE78,Adjuvants,2,FALSE)","v":0},0]
[null,null,"None",null,{"$f":"VLOOKUP(#REF!,Adjuvants,4,FALSE)","v":{"$error":"#REF!"}},0,{"$f":"VLOOKUP(C79,Adjuvants,3,FALSE)","v":1},0,{"$f":"VLOOKUP(C79,Adjuvants,2,FALSE)","v":0},0,null,"None",null,{"$f":"VLOOKUP(#REF!,Adjuvants,4,FALSE)","v":{"$error":"#REF!"}},0,{"$f":"VLOOKUP(L79,Adjuvants,3,FALSE)","v":1},0,{"$f":"VLOOKUP(L79,Adjuvants,2,FALSE)","v":0},0,null,null,"None",null,{"$f":"VLOOKUP(#REF!,Adjuvants,4,FALSE)","v":{"$error":"#REF!"}},0,{"$f":"VLOOKUP(V79,Adjuvants,3,FALSE)","v":1},0,{"$f":"VLOOKUP(V79,Adjuvants,2,FALSE)","v":0},0,null,"None",null,{"$f":"VLOOKUP(#REF!,Adjuvants,4,FALSE)","v":{"$error":"#REF!"}},0,{"$f":"VLOOKUP(AE79,Adjuvants,3,FALSE)","v":1},0,{"$f":"VLOOKUP(AE79,Adjuvants,2,FALSE)","v":0},0]
[null,null,"None",null,{"$f":"VLOOKUP(#REF!,Adjuvants,4,FALSE)","v":{"$error":"#REF!"}},0,{"$f":"VLOOKUP(C80,Adjuvants,3,FALSE)","v":1},0,{"$f":"VLOOKUP(C80,Adjuvants,2,FALSE)","v":0},0,null,"None",null,{"$f":"VLOOKUP(#REF!,Adjuvants,4,FALSE)","v":{"$error":"#REF!"}},0,{"$f":"VLOOKUP(L80,Adjuvants,3,FALSE)","v":1},0,{"$f":"VLOOKUP(L80,Adjuvants,2,FALSE)","v":0},0,null,null,"None",null,{"$f":"VLOOKUP(#REF!,Adjuvants,4,FALSE)","v":{"$error":"#REF!"}},0,{"$f":"VLOOKUP(V80,Adjuvants,3,FALSE)","v":1},0,{"$f":"VLOOKUP(V80,Adjuvants,2,FALSE)","v":0},0,null,"None",null,{"$f":"VLOOKUP(#REF!,Adjuvants,4,FALSE)","v":{"$error":"#REF!"}},0,{"$f":"VLOOKUP(AE80,Adjuvants,3,FALSE)","v":1},0,{"$f":"VLOOKUP(AE80,Adjuvants,2,FALSE)","v":0},0]
[]
[null,null,"Insecticide Cost/Acre",null,null,null,null,null,null,{"$f":"SUM(J71:J80)","v":0},null,"Insecticide Cost/Acre",null,null,null,null,null,null,{"$f":"SUM(S71:S80)","v":0},null,null,"Insecticide Cost/Acre",null,null,null,null,null,null,{"$f":"SUM(AC71:AC80)","v":0},null,"Insecticide Cost/Acre",null,null,null,null,null,null,{"$f":"SUM(AL71:AL80)","v":0}]
[]
[null,null,null,null,null,null,null,null,null,null,null,"Summary Cost/Acre (All Chemistry)",null,null,null,null,null,null,null,null,null,null,null,null,null,null,null,null,null,null,"Summary Cost/Acre (All Chemistry)"]
[]
[]
[null,null,null,null,null,null,null,null,null,null,null,"Fungicide Total Cost/Acre",null,null,null,null,null,null,{"$f":"J66+S66","v":0},null,null,null,null,null,null,null,null,null,null,null,"Fungicide Total Cost/Acre",null,null,null,null,null,null,{"$f":"AC66+AL66","v":0}]
[null,null,{"$f":"C42","v":"Plan Year"},null,null,null,null,null,null,null,null,null,null,null,null,null,null,null,null,null,null,{"$f":"C42","v":"Plan Year"}]
[null,null,{"$f":"C43","v":"Farm Name"},null,null,null,null,null,null,null,null,"Insecticide Total Cost/Acre",null,null,null,null,null,null,{"$f":"J82+S82","v":0},null,null,{"$f":"C43","v":"Farm Name"},null,null,null,null,null,null,null,null,"Insecticide Total Cost/Acre",null,null,null,null,null,null,{"$f":"AC82+AL82","v":0}]
[null,null,{"$f":"C44","v":"Farm Tract"},null,null,null,null,null,null,null,null,null,null,null,null,null,null,null,null,null,null,{"$f":"C44","v":"Farm Tract"}]
[null,null,"Farm Number",null,null,null,null,null,null,null,null,"Total Herbicide Cost/Acre",null,null,null,null,null,null,{"$f":"S48","v":0},null,null,"Farm Number",null,null,null,null,null,null,null,null,"Total Herbicide Cost/Acre",null,null,null,null,null,null,{"$f":"AL48","v":0}]
[]
[null,null,null,null,null,null,null,null,null,null,null,"Total Pesticide Cost/Acre (Herbicide, Fungicide, & Insecticide)",null,null,null,null,null,null,{"$f":"S89+S87+S91","v":0},null,null,null,null,null,null,null,null,null,null,null,"Total Pesticide Cost/Acre (Herbicide, Fungicide, & Insecticide)",null,null,null,null,null,null,{"$f":"AL89+AL87+AL91","v":0}]

{"sheet":"Pesticide Plan (Soybeans)","index":2,"n_rows":93,"n_cols":38,"rows_kept":93,"cut":false,"hidden":false,"merged":[[0,2,0,18],[0,21,0,37],[1,2,1,18],[1,21,1,37],[2,2,2,18],[2,21,2,37],[3,2,3,9],[3,11,3,18],[3,21,3,28],[3,30,3,37],[21,2,21,18],[21,21,21,37],[22,2,22,9],[22,11,22,18],[22,21,22,28],[22,30,22,37],[40,11,41,18],[40,30,41,37],[50,2,50,18],[50,21,50,37],[51,2,51,9],[51,11,51,18],[51,21,51,28],[51,30,51,37],[67,2,67,9],[67,11,67,18],[67,21,67,28],[67,30,67,37],[83,11,84,18],[83,30,84,37]]}
[null,null,"Soybean Pesticide Plan",null,null,null,null,null,null,null,null,null,null,null,null,null,null,null,null,null,null,"Soybean Pesticide Plan"]
[null,null,"Comparison Plan #1",null,null,null,null,null,null,null,null,null,null,null,null,null,null,null,null,null,null,"Comparison Plan #2"]
[null,null,"Burndown/Pre-Plant/Early Post Emergence Herbicides",null,null,null,null,null,null,null,null,null,null,null,null,null,null,null,null,null,null,"Burndown/Pre-Plant/Early Post Emergence Herbicides"]
[null,null,"1st Application of Burndown/Pre-Plant/Early Post Emergencen Herbicides",null,null,null,null,null,null,null,null,"2nd Application of Burndown/Pre-Plant/Early Post Emergence Herbicides",null,null,null,null,null,null,null,null,null,"1st Application of Burndown/Pre-Plant/Early Post Emergencen Herbicides",null,null,null,null,null,null,null,null,"2nd Application of Burndown/Pre-Plant/Early Post Emergence Herbicides"]
[null,null,"Brand","Site of Action","Purchase Units","Package Price (Gals, Lbs, etc.)","Units/Pkg","Rate/Acre","Rate Units","Cost",null,"Brand","Site of Action","Purchase Units","Package Price (Gals, Lbs, etc.)","Units/Pkg","Rate/Acre","Rate Units","Cost",null,null,"Brand","Site of Action","Purchase Units","Package Price (Gals, Lbs, etc.)","Units/Pkg","Rate/Acre","Rate Units","Cost",null,"Brand","Site of Action","Purchase Units","Package Price (Gals, Lbs, etc.)","Units/Pkg","Rate/Acre","Rate Units","Cost"]
[null,null,"Herbicides (drop down menu)",null,null,"(Enter Below)",null,"(Enter Below)",null,null,null,"Herbicides (drop down menu)",null,null,"(Enter Below)",null,"(Enter Below)",null,null,null,null,"Herbicides (drop down menu)",null,null,"(Enter Below)",null,"(Enter Below)",null,null,null,"Herbicides (drop down menu)",null,null,"(Enter Below)",null,"(Enter Below)"]
[null,null,"None",{"$f":"VLOOKUP(C7,SoybeanPreChemicals,6,FALSE)","v":0},{"$f":"VLOOKUP(C7,SoybeanPreChemicals,4,FALSE)","v":"None"},0,{"$f":"VLOOKUP(C7,SoybeanPreChemicals,3,FALSE)","v":1},0,{"$f":"VLOOKUP(C7,SoybeanPreChemicals,2,FALSE)","v":0},{"$f":"H7/G7*F7","v":0},null,"None",{"$f":"VLOOKUP(L7,SoybeanPreChemicals,6,FALSE)","v":0},{"$f":"VLOOKUP(L7,SoybeanPreChemicals,4,FALSE)","v":"None"},0,{"$f":"VLOOKUP(L7,SoybeanPreChemicals,3,FALSE)","v":1},0,{"$f":"VLOOKUP(L7,SoybeanPreChemicals,2,FALSE)","v":0},{"$f":"Q7/P7*O7","v":0},null,null,"None",{"$f":"VLOOKUP(V7,SoybeanPreChemicals,6,FALSE)","v":0},{"$f":"VLOOKUP(V7,SoybeanPreChemicals,4,FALSE)","v":"None"},0,{"$f":"VLOOKUP(V7,SoybeanPreChemicals,3,FALSE)","v":1},0,{"$f":"VLOOKUP(V7,SoybeanPreChemicals,2,FALSE)","v":0},{"$f":"AA7/Z7*Y7","v":0},null,"None",{"$f":"VLOOKUP(AE7,SoybeanPreChemicals,6,FALSE)","v":0},{"$f":"VLOOKUP(AE7,SoybeanPreChemicals,4,FALSE)","v":"None"},0,{"$f":"VLOOKUP(AE7,SoybeanPreChemicals,3,FALSE)","v":1},0,{"$f":"VLOOKUP(AE7,SoybeanPreChemicals,2,FALSE)","v":0},{"$f":"AJ7/AI7*AH7","v":0}]
[null,null,"None",{"$f":"VLOOKUP(C8,SoybeanPreChemicals,6,FALSE)","v":0},{"$f":"VLOOKUP(C8,SoybeanPreChemicals,4,FALSE)","v":"None"},0,{"$f":"VLOOKUP(C8,SoybeanPreChemicals,3,FALSE)","v":1},0,{"$f":"VLOOKUP(C8,SoybeanPreChemicals,2,FALSE)","v":0},{"$f":"H8/G8*F8","v":0},null,"None",{"$f":"VLOOKUP(L8,SoybeanPreChemicals,6,FALSE)","v":0},{"$f":"VLOOKUP(L8,SoybeanPreChemicals,4,FALSE)","v":"None"},0,{"$f":"VLOOKUP(L8,SoybeanPreChemicals,3,FALSE)","v":1},0,{"$f":"VLOOKUP(L8,SoybeanPreChemicals,2,FALSE)","v":0},{"$f":"Q8/P8*O8","v":0},null,null,"None",{"$f":"VLOOKUP(V8,SoybeanPreChemicals,6,FALSE)","v":0},{"$f":"VLOOKUP(V8,SoybeanPreChemicals,4,FALSE)","v":"None"},0,{"$f":"VLOOKUP(V8,SoybeanPreChemicals,3,FALSE)","v":1},0,{"$f":"VLOOKUP(V8,SoybeanPreChemicals,2,FALSE)","v":0},{"$f":"AA8/Z8*Y8","v":0},null,"None",{"$f":"VLOOKUP(AE8,SoybeanPreChemicals,6,FALSE)","v":0},{"$f":"VLOOKUP(AE8,SoybeanPreChemicals,4,FALSE)","v":"None"},0,{"$f":"VLOOKUP(AE8,SoybeanPreChemicals,3,FALSE)","v":1},0,{"$f":"VLOOKUP(AE8,SoybeanPreChemicals,2,FALSE)","v":0},{"$f":"AJ8/AI8*AH8","v":0}]
[null,null,"None",{"$f":"VLOOKUP(C9,SoybeanPreChemicals,6,FALSE)","v":0},{"$f":"VLOOKUP(C9,SoybeanPreChemicals,4,FALSE)","v":"None"},0,{"$f":"VLOOKUP(C9,SoybeanPreChemicals,3,FALSE)","v":1},0,{"$f":"VLOOKUP(C9,SoybeanPreChemicals,2,FALSE)","v":0},0,null,"None",{"$f":"VLOOKUP(L9,SoybeanPreChemicals,6,FALSE)","v":0},{"$f":"VLOOKUP(L9,SoybeanPreChemicals,4,FALSE)","v":"None"},0,{"$f":"VLOOKUP(L9,SoybeanPreChemicals,3,FALSE)","v":1},0,{"$f":"VLOOKUP(L9,SoybeanPreChemicals,2,FALSE)","v":0},0,null,null,"None",{"$f":"VLOOKUP(V9,SoybeanPreChemicals,6,FALSE)","v":0},{"$f":"VLOOKUP(V9,SoybeanPreChemicals,4,FALSE)","v":"None"},0,{"$f":"VLOOKUP(V9,SoybeanPreChemicals,3,FALSE)","v":1},0,{"$f":"VLOOKUP(V9,SoybeanPreChemicals,2,FALSE)","v":0},0,null,"None",{"$f":"VLOOKUP(AE9,SoybeanPreChemicals,6,FALSE)","v":0},{"$f":"VLOOKUP(AE9,SoybeanPreChemicals,4,FALSE)","v":"None"},0,{"$f":"VLOOKUP(AE9,SoybeanPreChemicals,3,FALSE)","v":1},0,{"$f":"VLOOKUP(AE9,SoybeanPreChemicals,2,FALSE)","v":0},0]
[null,null,"None",{"$f":"VLOOKUP(C10,SoybeanPreChemicals,6,FALSE)","v":0},{"$f":"VLOOKUP(C10,SoybeanPreChemicals,4,FALSE)","v":"None"},0,{"$f":"VLOOKUP(C10,SoybeanPreChemicals,3,FALSE)","v":1},0,{"$f":"VLOOKUP(C10,SoybeanPreChemicals,2,FALSE)","v":0},0,null,"None",{"$f":"VLOOKUP(L10,SoybeanPreChemicals,6,FALSE)","v":0},{"$f":"VLOOKUP(L10,SoybeanPreChemicals,4,FALSE)","v":"None"},0,{"$f":"VLOOKUP(L10,SoybeanPreChemicals,3,FALSE)","v":1},0,{"$f":"VLOOKUP(L10,SoybeanPreChemicals,2,FALSE)","v":0},0,null,null,"None",{"$f":"VLOOKUP(V10,SoybeanPreChemicals,6,FALSE)","v":0},{"$f":"VLOOKUP(V10,SoybeanPreChemicals,4,FALSE)","v":"None"},0,{"$f":"VLOOKUP(V10,SoybeanPreChemicals,3,FALSE)","v":1},0,{"$f":"VLOOKUP(V10,SoybeanPreChemicals,2,FALSE)","v":0},0,null,"None",{"$f":"VLOOKUP(AE10,SoybeanPreChemicals,6,FALSE)","v":0},{"$f":"VLOOKUP(AE10,SoybeanPreChemicals,4,FALSE)","v":"None"},0,{"$f":"VLOOKUP(AE10,SoybeanPreChemicals,3,FALSE)","v":1},0,{"$f":"VLOOKUP(AE10,SoybeanPreChemicals,2,FALSE)","v":0},0]
[null,null,"None",{"$f":"VLOOKUP(C11,SoybeanPreChemicals,6,FALSE)","v":0},{"$f":"VLOOKUP(C11,SoybeanPreChemicals,4,FALSE)","v":"None"},0,{"$f":"VLOOKUP(C11,SoybeanPreChemicals,3,FALSE)","v":1},0,{"$f":"VLOOKUP(C11,SoybeanPreChemicals,2,FALSE)","v":0},0,null,"None",{"$f":"VLOOKUP(L11,SoybeanPreChemicals,6,FALSE)","v":0},{"$f":"VLOOKUP(L11,SoybeanPreChemicals,4,FALSE)","v":"None"},0,{"$f":"VLOOKUP(L11,SoybeanPreChemicals,3,FALSE)","v":1},0,{"$f":"VLOOKUP(L11,SoybeanPreChemicals,2,FALSE)","v":0},0,null,null,"None",{"$f":"VLOOKUP(V11,SoybeanPreChemicals,6,FALSE)","v":0},{"$f":"VLOOKUP(V11,SoybeanPreChemicals,4,FALSE)","v":"None"},0,{"$f":"VLOOKUP(V11,SoybeanPreChemicals,3,FALSE)","v":1},0,{"$f":"VLOOKUP(V11,SoybeanPreChemicals,2,FALSE)","v":0},0,null,"None",{"$f":"VLOOKUP(AE11,SoybeanPreChemicals,6,FALSE)","v":0},{"$f":"VLOOKUP(AE11,SoybeanPreChemicals,4,FALSE)","v":"None"},0,{"$f":"VLOOKUP(AE11,SoybeanPreChemicals,3,FALSE)","v":1},0,{"$f":"VLOOKUP(AE11,SoybeanPreChemicals,2,FALSE)","v":0},0]
[]
[null,null,"Adjuvants (drop down menu)",null,null,"(Enter Below)",null,"(Enter Below)",null,null,null,"Adjuvants (drop down menu)",null,null,"(Enter Below)",null,"(Enter Below)",null,null,null,null,"Adjuvants (drop down menu)",null,null,"(Enter Below)",null,"(Enter Below)",null,null,null,"Adjuvants (drop down menu)",null,null,"(Enter Below)",null,"(Enter Below)"]
[null,null,"None",null,{"$f":"VLOOKUP(C14,Adjuvants,4,FALSE)","v":"None"},0,{"$f":"VLOOKUP(C14,Adjuvants,3,FALSE)","v":1},0,{"$f":"VLOOKUP(C14,Adjuvants,2,FALSE)","v":0},{"$f":"H14/G14*F14","v":0},null,"None",null,{"$f":"VLOOKUP(L14,Adjuvants,4,FALSE)","v":"None"},0,{"$f":"VLOOKUP(L14,Adjuvants,3,FALSE)","v":1},0,{"$f":"VLOOKUP(L14,Adjuvants,2,FALSE)","v":0},{"$f":"Q14/P14*O14","v":0},null,null,"None",null,{"$f":"VLOOKUP(V14,Adjuvants,4,FALSE)","v":"None"},0,{"$f":"VLOOKUP(V14,Adjuvants,3,FALSE)","v":1},0,{"$f":"VLOOKUP(V14,Adjuvants,2,FALSE)","v":0},{"$f":"AA14/Z14*Y14","v":0},null,"None",null,{"$f":"VLOOKUP(AE14,Adjuvants,4,FALSE)","v":"None"},0,{"$f":"VLOOKUP(AE14,Adjuvants,3,FALSE)","v":1},0,{"$f":"VLOOKUP(AE14,Adjuvants,2,FALSE)","v":0},{"$f":"AJ14/AI14*AH14","v":0}]
[null,null,"None",null,{"$f":"VLOOKUP(C15,Adjuvants,4,FALSE)","v":"None"},0,{"$f":"VLOOKUP(C15,Adjuvants,3,FALSE)","v":1},0,{"$f":"VLOOKUP(C15,Adjuvants,2,FALSE)","v":0},{"$f":"H15/G15*F15","v":0},null,"None",null,{"$f":"VLOOKUP(L15,Adjuvants,4,FALSE)","v":"None"},0,{"$f":"VLOOKUP(L15,Adjuvants,3,FALSE)","v":1},0,{"$f":"VLOOKUP(L15,Adjuvants,2,FALSE)","v":0},{"$f":"Q15/P15*O15","v":0},null,null,"None",null,{"$f":"VLOOKUP(V15,Adjuvants,4,FALSE)","v":"None"},0,{"$f":"VLOOKUP(V15,Adjuvants,3,FALSE)","v":1},0,{"$f":"VLOOKUP(V15,Adjuvants,2,FALSE)","v":0},{"$f":"AA15/Z15*Y15","v":0},null,"None",null,{"$f":"VLOOKUP(AE15,Adjuvants,4,FALSE)","v":"None"},0,{"$f":"VLOOKUP(AE15,Adjuvants,3,FALSE)","v":1},0,{"$f":"VLOOKUP(AE15,Adjuvants,2,FALSE)","v":0},{"$f":"AJ15/AI15*AH15","v":0}]
[null,null,"None",null,{"$f":"VLOOKUP(C16,Adjuvants,4,FALSE)","v":"None"},0,{"$f":"VLOOKUP(C16,Adjuvants,3,FALSE)","v":1},0,{"$f":"VLOOKUP(C16,Adjuvants,2,FALSE)","v":0},0,null,"None",null,{"$f":"VLOOKUP(L16,Adjuvants,4,FALSE)","v":"None"},0,{"$f":"VLOOKUP(L16,Adjuvants,3,FALSE)","v":1},0,{"$f":"VLOOKUP(L16,Adjuvants,2,FALSE)","v":0},0,null,null,"None",null,{"$f":"VLOOKUP(V16,Adjuvants,4,FALSE)","v":"None"},0,{"$f":"VLOOKUP(V16,Adjuvants,3,FALSE)","v":1},0,{"$f":"VLOOKUP(V16,Adjuvants,2,FALSE)","v":0},0,null,"None",null,{"$f":"VLOOKUP(AE16,Adjuvants,4,FALSE)","v":"None"},0,{"$f":"VLOOKUP(AE16,Adjuvants,3,FALSE)","v":1},0,{"$f":"VLOOKUP(AE16,Adjuvants,2,FALSE)","v":0},0]
[null,null,"None",null,{"$f":"VLOOKUP(C17,Adjuvants,4,FALSE)","v":"None"},0,{"$f":"VLOOKUP(C17,Adjuvants,3,FALSE)","v":1},0,{"$f":"VLOOKUP(C17,Adjuvants,2,FALSE)","v":0},0,null,"None",null,{"$f":"VLOOKUP(L17,Adjuvants,4,FALSE)","v":"None"},0,{"$f":"VLOOKUP(L17,Adjuvants,3,FALSE)","v":1},0,{"$f":"VLOOKUP(L17,Adjuvants,2,FALSE)","v":0},0,null,null,"None",null,{"$f":"VLOOKUP(V17,Adjuvants,4,FALSE)","v":"None"},0,{"$f":"VLOOKUP(V17,Adjuvants,3,FALSE)","v":1},0,{"$f":"VLOOKUP(V17,Adjuvants,2,FALSE)","v":0},0,null,"None",null,{"$f":"VLOOKUP(AE17,Adjuvants,4,FALSE)","v":"None"},0,{"$f":"VLOOKUP(AE17,Adjuvants,3,FALSE)","v":1},0,{"$f":"VLOOKUP(AE17,Adjuvants,2,FALSE)","v":0},0]
[null,null,"None",null,{"$f":"VLOOKUP(C18,Adjuvants,4,FALSE)","v":"None"},0,{"$f":"VLOOKUP(C18,Adjuvants,3,FALSE)","v":1},0,{"$f":"VLOOKUP(C18,Adjuvants,2,FALSE)","v":0},0,null,"None",null,{"$f":"VLOOKUP(L18,Adjuvants,4,FALSE)","v":"None"},0,{"$f":"VLOOKUP(L18,Adjuvants,3,FALSE)","v":1},0,{"$f":"VLOOKUP(L18,Adjuvants,2,FALSE)","v":0},0,null,null,"None",null,{"$f":"VLOOKUP(V18,Adjuvants,4,FALSE)","v":"None"},0,{"$f":"VLOOKUP(V18,Adjuvants,3,FALSE)","v":1},0,{"$f":"VLOOKUP(V18,Adjuvants,2,FALSE)","v":0},0,null,"None",null,{"$f":"VLOOKUP(AE18,Adjuvants,4,FALSE)","v":"None"},0,{"$f":"VLOOKUP(AE18,Adjuvants,3,FALSE)","v":1},0,{"$f":"VLOOKUP(AE18,Adjuvants,2,FALSE)","v":0},0]
[]
[null,null,"1st Application Pre-plan/Pre-Emergence Herbicide Cost/Acre",null,null,null,null,null,null,{"$f":"SUM(J7:J18)","v":0},null,"2nd Application Pre-plan/Pre-Emergence Herbicide Cost/Acre",null,null,null,null,null,null,{"$f":"SUM(S7:S18)","v":0},null,null,"1st Application Pre-plan/Pre-Emergence Herbicide Cost/Acre",null,null,null,null,null,null,{"$f":"SUM(AC7:AC18)","v":0},null,"2nd Application Pre-plan/Pre-Emergence Herbicide Cost/Acre",null,null,null,null,null,null,{"$f":"SUM(AL7:AL18)","v":0}]
[]
[null,null,"Post-Emergence Herbicides",null,null,null,null,null,null,null,null,null,null,null,null,null,null,null,null,null,null,"Post-Emergence Herbicides"]
[null,null,"1st Application of Post-Emergence Herbicides",null,null,null,null,null,null,null,null,"2nd Application of Post-Emergence Herbicides",null,null,null,null,null,null,null,null,null,"1st Application of Post-Emergence Herbicides",null,null,null,null,null,null,null,null,"2nd Application of Post-Emergence Herbicides"]
[null,null,"Brand","Site of Action","Purchase Units","Package Price (Gals, Lbs, etc.)","Units/Pkg","Rate/Acre","Rate Units","Cost",null,"Brand","Site of Action","Purchase Units","Package Price (Gals, Lbs, etc.)","Units/Pkg","Rate/Acre","Rate Units","Cost",null,null,"Brand","Site of Action","Purchase Units","Package Price (Gals, Lbs, etc.)","Units/Pkg","Rate/Acre","Rate Units","Cost",null,"Brand","Site of Action","Purchase Units","Package Price (Gals, Lbs, etc.)","Units/Pkg","Rate/Acre","Rate Units","Cost"]
[null,null,"Herbicides (drop down menu)",null,null,"(Enter Below)",null,"(Enter Below)",null,null,null,"Herbicides (drop down menu)",null,null,"(Enter Below)",null,"(Enter Below)",null,null,null,null,"Herbicides (drop down menu)",null,null,"(Enter Below)",null,"(Enter Below)",null,null,null,"Herbicides (drop down menu)",null,null,"(Enter Below)",null,"(Enter Below)"]
[null,null,"None",{"$f":"VLOOKUP(C26,SoybeanPostChemicals,6,FALSE)","v":0},{"$f":"VLOOKUP(C26,SoybeanPostChemicals,4,FALSE)","v":"None"},0,{"$f":"VLOOKUP(C26,SoybeanPostChemicals,3,FALSE)","v":1},0,{"$f":"VLOOKUP(C26,SoybeanPostChemicals,2,FALSE)","v":0},{"$f":"H26/G26*F26","v":0},null,"None",{"$f":"VLOOKUP(L26,SoybeanPostChemicals,6,FALSE)","v":0},{"$f":"VLOOKUP(L26,SoybeanPostChemicals,4,FALSE)","v":"None"},0,{"$f":"VLOOKUP(L26,SoybeanPostChemicals,3,FALSE)","v":1},0,{"$f":"VLOOKUP(L26,SoybeanPostChemicals,2,FALSE)","v":0},{"$f":"Q26/P26*O26","v":0},null,null,"None",{"$f":"VLOOKUP(V26,SoybeanPostChemicals,6,FALSE)","v":0},{"$f":"VLOOKUP(V26,SoybeanPostChemicals,4,FALSE)","v":"None"},0,{"$f":"VLOOKUP(V26,SoybeanPostChemicals,3,FALSE)","v":1},0,{"$f":"VLOOKUP(V26,SoybeanPostChemicals,2,FALSE)","v":0},{"$f":"AA26/Z26*Y26","v":0},null,"None",{"$f":"VLOOKUP(AE26,SoybeanPostChemicals,6,FALSE)","v":0},{"$f":"VLOOKUP(AE26,SoybeanPostChemicals,4,FALSE)","v":"None"},0,{"$f":"VLOOKUP(AE26,SoybeanPostChemicals,3,FALSE)","v":1},0,{"$f":"VLOOKUP(AE26,SoybeanPostChemicals,2,FALSE)","v":0},{"$f":"AJ26/AI26*AH26","v":0}]
[null,null,"None",{"$f":"VLOOKUP(C27,SoybeanPostChemicals,6,FALSE)","v":0},{"$f":"VLOOKUP(C27,SoybeanPostChemicals,4,FALSE)","v":"None"},0,{"$f":"VLOOKUP(C27,SoybeanPostChemicals,3,FALSE)","v":1},0,{"$f":"VLOOKUP(C27,SoybeanPostChemicals,2,FALSE)","v":0},{"$f":"H27/G27*F27","v":0},null,"None",{"$f":"VLOOKUP(L27,SoybeanPostChemicals,6,FALSE)","v":0},{"$f":"VLOOKUP(L27,SoybeanPostChemicals,4,FALSE)","v":"None"},0,{"$f":"VLOOKUP(L27,SoybeanPostChemicals,3,FALSE)","v":1},0,{"$f":"VLOOKUP(L27,SoybeanPostChemicals,2,FALSE)","v":0},{"$f":"Q27/P27*O27","v":0},null,null,"None",{"$f":"VLOOKUP(V27,SoybeanPostChemicals,6,FALSE)","v":0},{"$f":"VLOOKUP(V27,SoybeanPostChemicals,4,FALSE)","v":"None"},0,{"$f":"VLOOKUP(V27,SoybeanPostChemicals,3,FALSE)","v":1},0,{"$f":"VLOOKUP(V27,SoybeanPostChemicals,2,FALSE)","v":0},{"$f":"AA27/Z27*Y27","v":0},null,"None",{"$f":"VLOOKUP(AE27,SoybeanPostChemicals,6,FALSE)","v":0},{"$f":"VLOOKUP(AE27,SoybeanPostChemicals,4,FALSE)","v":"None"},0,{"$f":"VLOOKUP(AE27,SoybeanPostChemicals,3,FALSE)","v":1},0,{"$f":"VLOOKUP(AE27,SoybeanPostChemicals,2,FALSE)","v":0},{"$f":"AJ27/AI27*AH27","v":0}]
[null,null,"None",{"$f":"VLOOKUP(C28,SoybeanPostChemicals,6,FALSE)","v":0},{"$f":"VLOOKUP(C28,SoybeanPostChemicals,4,FALSE)","v":"None"},0,{"$f":"VLOOKUP(C28,SoybeanPostChemicals,3,FALSE)","v":1},0,{"$f":"VLOOKUP(C28,SoybeanPostChemicals,2,FALSE)","v":0},0,null,"None",{"$f":"VLOOKUP(L28,SoybeanPostChemicals,6,FALSE)","v":0},{"$f":"VLOOKUP(L28,SoybeanPostChemicals,4,FALSE)","v":"None"},0,{"$f":"VLOOKUP(L28,SoybeanPostChemicals,3,FALSE)","v":1},0,{"$f":"VLOOKUP(L28,SoybeanPostChemicals,2,FALSE)","v":0},0,null,null,"None",{"$f":"VLOOKUP(V28,SoybeanPostChemicals,6,FALSE)","v":0},{"$f":"VLOOKUP(V28,SoybeanPostChemicals,4,FALSE)","v":"None"},0,{"$f":"VLOOKUP(V28,SoybeanPostChemicals,3,FALSE)","v":1},0,{"$f":"VLOOKUP(V28,SoybeanPostChemicals,2,FALSE)","v":0},0,null,"None",{"$f":"VLOOKUP(AE28,SoybeanPostChemicals,6,FALSE)","v":0},{"$f":"VLOOKUP(AE28,SoybeanPostChemicals,4,FALSE)","v":"None"},0,{"$f":"VLOOKUP(AE28,SoybeanPostChemicals,3,FALSE)","v":1},0,{"$f":"VLOOKUP(AE28,SoybeanPostChemicals,2,FALSE)","v":0},0]
[null,null,"None",{"$f":"VLOOKUP(C29,SoybeanPostChemicals,6,FALSE)","v":0},{"$f":"VLOOKUP(C29,SoybeanPostChemicals,4,FALSE)","v":"None"},0,{"$f":"VLOOKUP(C29,SoybeanPostChemicals,3,FALSE)","v":1},0,{"$f":"VLOOKUP(C29,SoybeanPostChemicals,2,FALSE)","v":0},0,null,"None",{"$f":"VLOOKUP(L29,SoybeanPostChemicals,6,FALSE)","v":0},{"$f":"VLOOKUP(L29,SoybeanPostChemicals,4,FALSE)","v":"None"},0,{"$f":"VLOOKUP(L29,SoybeanPostChemicals,3,FALSE)","v":1},0,{"$f":"VLOOKUP(L29,SoybeanPostChemicals,2,FALSE)","v":0},0,null,null,"None",{"$f":"VLOOKUP(V29,SoybeanPostChemicals,6,FALSE)","v":0},{"$f":"VLOOKUP(V29,SoybeanPostChemicals,4,FALSE)","v":"None"},0,{"$f":"VLOOKUP(V29,SoybeanPostChemicals,3,FALSE)","v":1},0,{"$f":"VLOOKUP(V29,SoybeanPostChemicals,2,FALSE)","v":0},0,null,"None",{"$f":"VLOOKUP(AE29,SoybeanPostChemicals,6,FALSE)","v":0},{"$f":"VLOOKUP(AE29,SoybeanPostChemicals,4,FALSE)","v":"None"},0,{"$f":"VLOOKUP(AE29,SoybeanPostChemicals,3,FALSE)","v":1},0,{"$f":"VLOOKUP(AE29,SoybeanPostChemicals,2,FALSE)","v":0},0]
[null,null,"None",{"$f":"VLOOKUP(C30,SoybeanPostChemicals,6,FALSE)","v":0},{"$f":"VLOOKUP(C30,SoybeanPostChemicals,4,FALSE)","v":"None"},0,{"$f":"VLOOKUP(C30,SoybeanPostChemicals,3,FALSE)","v":1},0,{"$f":"VLOOKUP(C30,SoybeanPostChemicals,2,FALSE)","v":0},0,null,"None",{"$f":"VLOOKUP(L30,SoybeanPostChemicals,6,FALSE)","v":0},{"$f":"VLOOKUP(L30,SoybeanPostChemicals,4,FALSE)","v":"None"},0,{"$f":"VLOOKUP(L30,SoybeanPostChemicals,3,FALSE)","v":1},0,{"$f":"VLOOKUP(L30,SoybeanPostChemicals,2,FALSE)","v":0},0,null,null,"None",{"$f":"VLOOKUP(V30,SoybeanPostChemicals,6,FALSE)","v":0},{"$f":"VLOOKUP(V30,SoybeanPostChemicals,4,FALSE)","v":"None"},0,{"$f":"VLOOKUP(V30,SoybeanPostChemicals,3,FALSE)","v":1},0,{"$f":"VLOOKUP(V30,SoybeanPostChemicals,2,FALSE)","v":0},0,null,"None",{"$f":"VLOOKUP(AE30,SoybeanPostChemicals,6,FALSE)","v":0},{"$f":"VLOOKUP(AE30,SoybeanPostChemicals,4,FALSE)","v":"None"},0,{"$f":"VLOOKUP(AE30,SoybeanPostChemicals,3,FALSE)","v":1},0,{"$f":"VLOOKUP(AE30,SoybeanPostChemicals,2,FALSE)","v":0},0]
[]
[null,null,"Adjuvants (drop down menu)",null,null,"(Enter Below)",null,"(Enter Below)",null,null,null,"Adjuvants (drop down menu)",null,null,"(Enter Below)",null,"(Enter Below)",null,null,null,null,"Adjuvants (drop down menu)",null,null,"(Enter Below)",null,"(Enter Below)",null,null,null,"Adjuvants (drop down menu)",null,null,"(Enter Below)",null,"(Enter Below)"]
[null,null,"None",null,{"$f":"VLOOKUP(C33,Adjuvants,4,FALSE)","v":"None"},0,{"$f":"VLOOKUP(C33,Adjuvants,3,FALSE)","v":1},0,{"$f":"VLOOKUP(C33,Adjuvants,2,FALSE)","v":0},{"$f":"H33/G33*F33","v":0},null,"None",null,{"$f":"VLOOKUP(L33,Adjuvants,4,FALSE)","v":"None"},0,{"$f":"VLOOKUP(L33,Adjuvants,3,FALSE)","v":1},0,{"$f":"VLOOKUP(L33,Adjuvants,2,FALSE)","v":0},{"$f":"Q33/P33*O33","v":0},null,null,"None",null,{"$f":"VLOOKUP(V33,Adjuvants,4,FALSE)","v":"None"},0,{"$f":"VLOOKUP(V33,Adjuvants,3,FALSE)","v":1},0,{"$f":"VLOOKUP(V33,Adjuvants,2,FALSE)","v":0},{"$f":"AA33/Z33*Y33","v":0},null,"None",null,{"$f":"VLOOKUP(AE33,Adjuvants,4,FALSE)","v":"None"},0,{"$f":"VLOOKUP(AE33,Adjuvants,3,FALSE)","v":1},0,{"$f":"VLOOKUP(AE33,Adjuvants,2,FALSE)","v":0},{"$f":"AJ33/AI33*AH33","v":0}]
[null,null,"None",null,{"$f":"VLOOKUP(C34,Adjuvants,4,FALSE)","v":"None"},0,{"$f":"VLOOKUP(C34,Adjuvants,3,FALSE)","v":1},0,{"$f":"VLOOKUP(C34,Adjuvants,2,FALSE)","v":0},{"$f":"H34/G34*F34","v":0},null,"None",null,{"$f":"VLOOKUP(L34,Adjuvants,4,FALSE)","v":"None"},0,{"$f":"VLOOKUP(L34,Adjuvants,3,FALSE)","v":1},0,{"$f":"VLOOKUP(L34,Adjuvants,2,FALSE)","v":0},{"$f":"Q34/P34*O34","v":0},null,null,"None",null,{"$f":"VLOOKUP(V34,Adjuvants,4,FALSE)","v":"None"},0,{"$f":"VLOOKUP(V34,Adjuvants,3,FALSE)","v":1},0,{"$f":"VLOOKUP(V34,Adjuvants,2,FALSE)","v":0},{"$f":"AA34/Z34*Y34","v":0},null,"None",null,{"$f":"VLOOKUP(AE34,Adjuvants,4,FALSE)","v":"None"},0,{"$f":"VLOOKUP(AE34,Adjuvants,3,FALSE)","v":1},0,{"$f":"VLOOKUP(AE34,Adjuvants,2,FALSE)","v":0},{"$f":"AJ34/AI34*AH34","v":0}]
[null,null,"None",null,{"$f":"VLOOKUP(C35,Adjuvants,4,FALSE)","v":"None"},0,{"$f":"VLOOKUP(C35,Adjuvants,3,FALSE)","v":1},0,{"$f":"VLOOKUP(C35,Adjuvants,2,FALSE)","v":0},{"$f":"H35/G35*F35","v":0},null,"None",null,{"$f":"VLOOKUP(L35,Adjuvants,4,FALSE)","v":"None"},0,{"$f":"VLOOKUP(L35,Adjuvants,3,FALSE)","v":1},0,{"$f":"VLOOKUP(L35,Adjuvants,2,FALSE)","v":0},{"$f":"Q35/P35*O35","v":0},null,null,"None",null,{"$f":"VLOOKUP(V35,Adjuvants,4,FALSE)","v":"None"},0,{"$f":"VLOOKUP(V35,Adjuvants,3,FALSE)","v":1},0,{"$f":"VLOOKUP(V35,Adjuvants,2,FALSE)","v":0},{"$f":"AA35/Z35*Y35","v":0},null,"None",null,{"$f":"VLOOKUP(AE35,Adjuvants,4,FALSE)","v":"None"},0,{"$f":"VLOOKUP(AE35,Adjuvants,3,FALSE)","v":1},0,{"$f":"VLOOKUP(AE35,Adjuvants,2,FALSE)","v":0},{"$f":"AJ35/AI35*AH35","v":0}]
[null,null,"None",null,{"$f":"VLOOKUP(C36,Adjuvants,4,FALSE)","v":"None"},0,{"$f":"VLOOKUP(C36,Adjuvants,3,FALSE)","v":1},0,{"$f":"VLOOKUP(C36,Adjuvants,2,FALSE)","v":0},{"$f":"H36/G36*F36","v":0},null,"None",null,{"$f":"VLOOKUP(L36,Adjuvants,4,FALSE)","v":"None"},0,{"$f":"VLOOKUP(L36,Adjuvants,3,FALSE)","v":1},0,{"$f":"VLOOKUP(L36,Adjuvants,2,FALSE)","v":0},{"$f":"Q36/P36*O36","v":0},null,null,"None",null,{"$f":"VLOOKUP(V36,Adjuvants,4,FALSE)","v":"None"},0,{"$f":"VLOOKUP(V36,Adjuvants,3,FALSE)","v":1},0,{"$f":"VLOOKUP(V36,Adjuvants,2,FALSE)","v":0},{"$f":"AA36/Z36*Y36","v":0},null,"None",null,{"$f":"VLOOKUP(AE36,Adjuvants,4,FALSE)","v":"None"},0,{"$f":"VLOOKUP(AE36,Adjuvants,3,FALSE)","v":1},0,{"$f":"VLOOKUP(AE36,Adjuvants,2,FALSE)","v":0},{"$f":"AJ36/AI36*AH36","v":0}]
[null,null,"None",null,{"$f":"VLOOKUP(C37,Adjuvants,4,FALSE)","v":"None"},0,{"$f":"VLOOKUP(C37,Adjuvants,3,FALSE)","v":1},0,{"$f":"VLOOKUP(C37,Adjuvants,2,FALSE)","v":0},0,null,"None",null,{"$f":"VLOOKUP(L37,Adjuvants,4,FALSE)","v":"None"},0,{"$f":"VLOOKUP(L37,Adjuvants,3,FALSE)","v":1},0,{"$f":"VLOOKUP(L37,Adjuvants,2,FALSE)","v":0},0,null,null,"None",null,{"$f":"VLOOKUP(V37,Adjuvants,4,FALSE)","v":"None"},0,{"$f":"VLOOKUP(V37,Adjuvants,3,FALSE)","v":1},0,{"$f":"VLOOKUP(V37,Adjuvants,2,FALSE)","v":0},0,null,"None",null,{"$f":"VLOOKUP(AE37,Adjuvants,4,FALSE)","v":"None"},0,{"$f":"VLOOKUP(AE37,Adjuvants,3,FALSE)","v":1},0,{"$f":"VLOOKUP(AE37,Adjuvants,2,FALSE)","v":0},0]
[]
[null,null,"1st Application of Post-Emergence Herbicides Cost/Acre",null,null,null,null,null,null,{"$f":"SUM(J26:J37)","v":0},null,"2nd Application of Post-Emergence Herbicides Cost/Acre",null,null,null,null,null,null,{"$f":"SUM(S26:S37)","v":0},null,null,"1st Application of Post-Emergence Herbicides Cost/Acre",null,null,null,null,null,null,{"$f":"SUM(AC26:AC37)","v":0},null,"2nd Application of Post-Emergence Herbicides Cost/Acre",null,null,null,null,null,null,{"$f":"SUM(AL26:AL37)","v":0}]
[]
[null,null,null,null,null,null,null,null,null,null,null,"Summary Cost/Acre (Herbicides Only)",null,null,null,null,null,null,null,null,null,null,null,null,null,null,null,null,null,null,"Summary Cost/Acre (Herbicides Only)"]
[null,null,"Plan Year",null,null,null,null,null,null,null,null,null,null,null,null,null,null,null,null,null,null,{"$f":"C42","v":"Plan Year"}]
[null,null,"Farm Name",null,null,null,null,null,null,null,null,null,null,null,null,null,null,null,null,null,null,{"$f":"C43","v":"Farm Name"}]
[null,null,"Farm Tract",null,null,null,null,null,null,null,null,"Pre-plant/Pre-emergence/Burndown Total Cost/Acre",null,null,null,null,null,null,{"$f":"J20+S20","v":0},null,null,{"$f":"C44","v":"Farm Tract"},null,null,null,null,null,null,null,null,"Pre-plant/Pre-emergence/Burndown Total Cost/Acre",null,null,null,null,null,null,{"$f":"AC20+AL20","v":0}]
[null,null,"Farm Number",null,null,null,null,null,null,null,null,null,null,null,null,null,null,null,null,null,null,"Farm Number"]
[null,null,null,null,null,null,null,null,null,null,null,"Post-emergence Total Cost/Acre",null,null,null,null,null,null,{"$f":"J39+S39","v":0},null,null,null,null,null,null,null,null,null,null,null,"Post-emergence Total Cost/Acre",null,null,null,null,null,null,{"$f":"AC39+AL39","v":0}]
[]
[null,null,null,null,null,null,null,null,null,null,null,"Total Herbicide Cost/Acre",null,null,null,null,null,null,{"$f":"S39+J39+S20+J20","v":0},null,null,null,null,null,null,null,null,null,null,null,"Total Herbicide Cost/Acre",null,null,null,null,null,null,{"$f":"AL39+AC39+AL20+AC20","v":0}]
[]
[]
[null,null,"Fungicide & Insecticide Chemicals",null,null,null,null,null,null,null,null,null,null,null,null,null,null,null,null,null,null,"Fungicide & Insecticide Chemicals"]
[null,null,"1st Application of Fungicides",null,null,null,null,null,null,null,null,"2nd Application of Fungicides",null,null,null,null,null,null,null,null,null,"None",null,null,null,null,null,null,null,null,"2nd Application of Fungicides"]
[null,null,"Brand","Active Ingredient(s)","Purchase Units","Package Price (Gals, Lbs, etc.)","Units/Pkg","Rate/Acre","Rate Units","Cost",null,"Brand","Active Ingredient(s)","Purchase Units","Package Price (Gals, Lbs, etc.)","Units/Pkg","Rate/Acre","Rate Units","Cost",null,null,"Brand","Active Ingredient(s)","Purchase Units","Package Price (Gals, Lbs, etc.)","Units/Pkg","Rate/Acre","Rate Units","Cost",null,"Brand","Active Ingredient(s)","Purchase Units","Package Price (Gals, Lbs, etc.)","Units/Pkg","Rate/Acre","Rate Units","Cost"]
[null,null,"Fungicides (drop down menu)",null,null,"(Enter Below)",null,"(Enter Below)",null,null,null,"Fungicides (drop down menu)",null,null,"(Enter Below)",null,"(Enter Below)",null,null,null,null,"Fungicides (drop down menu)",null,null,"(Enter Below)",null,"(Enter Below)",null,null,null,"Fungicides (drop down menu)",null,null,"(Enter Below)",null,"(Enter Below)"]
[null,null,"None",{"$f":"VLOOKUP(C55,SoybeanFungicides,6,FALSE)","v":"None"},{"$f":"VLOOKUP(C55,SoybeanFungicides,4,FALSE)","v":"None"},0,{"$f":"VLOOKUP(C55,SoybeanFungicides,3,FALSE)","v":1},0,{"$f":"VLOOKUP(C55,SoybeanFungicides,2,FALSE)","v":0},{"$f":"H55/G55*F55","v":0},null,"None",{"$f":"VLOOKUP(L55,SoybeanFungicides,6,FALSE)","v":"None"},{"$f":"VLOOKUP(L55,SoybeanFungicides,4,FALSE)","v":"None"},0,{"$f":"VLOOKUP(L55,SoybeanFungicides,3,FALSE)","v":1},0,{"$f":"VLOOKUP(L55,SoybeanFungicides,2,FALSE)","v":0},{"$f":"Q55/P55*O55","v":0},null,null,"None",{"$f":"VLOOKUP(V55,SoybeanFungicides,6,FALSE)","v":"None"},{"$f":"VLOOKUP(V55,SoybeanFungicides,4,FALSE)","v":"None"},0,{"$f":"VLOOKUP(V55,SoybeanFungicides,3,FALSE)","v":1},0,{"$f":"VLOOKUP(V55,SoybeanFungicides,2,FALSE)","v":0},{"$f":"AA55/Z55*Y55","v":0},null,"None",{"$f":"VLOOKUP(AE55,SoybeanFungicides,6,FALSE)","v":"None"},{"$f":"VLOOKUP(AE55,SoybeanFungicides,4,FALSE)","v":"None"},0,{"$f":"VLOOKUP(AE55,SoybeanFungicides,3,FALSE)","v":1},0,{"$f":"VLOOKUP(AE55,SoybeanFungicides,2,FALSE)","v":0},{"$f":"AJ55/AI55*AH55","v":0}]
[null,null,"None",{"$f":"VLOOKUP(C56,SoybeanFungicides,6,FALSE)","v":"None"},{"$f":"VLOOKUP(C56,SoybeanFungicides,4,FALSE)","v":"None"},0,{"$f":"VLOOKUP(C56,SoybeanFungicides,3,FALSE)","v":1},0,{"$f":"VLOOKUP(C56,SoybeanFungicides,2,FALSE)","v":0},{"$f":"H56/G56*F56","v":0},null,"None",{"$f":"VLOOKUP(L56,SoybeanFungicides,6,FALSE)","v":"None"},{"$f":"VLOOKUP(L56,SoybeanFungicides,4,FALSE)","v":"None"},0,{"$f":"VLOOKUP(L56,SoybeanFungicides,3,FALSE)","v":1},0,{"$f":"VLOOKUP(L56,SoybeanFungicides,2,FALSE)","v":0},{"$f":"Q56/P56*O56","v":0},null,null,"None",{"$f":"VLOOKUP(V56,SoybeanFungicides,6,FALSE)","v":"None"},{"$f":"VLOOKUP(V56,SoybeanFungicides,4,FALSE)","v":"None"},0,{"$f":"VLOOKUP(V56,SoybeanFungicides,3,FALSE)","v":1},0,{"$f":"VLOOKUP(V56,SoybeanFungicides,2,FALSE)","v":0},{"$f":"AA56/Z56*Y56","v":0},null,"None",{"$f":"VLOOKUP(AE56,SoybeanFungicides,6,FALSE)","v":"None"},{"$f":"VLOOKUP(AE56,SoybeanFungicides,4,FALSE)","v":"None"},0,{"$f":"VLOOKUP(AE56,SoybeanFungicides,3,FALSE)","v":1},0,{"$f":"VLOOKUP(AE56,SoybeanFungicides,2,FALSE)","v":0},{"$f":"AJ56/AI56*AH56","v":0}]
[null,null,"None",{"$f":"VLOOKUP(C57,SoybeanFungicides,6,FALSE)","v":"None"},{"$f":"VLOOKUP(C57,SoybeanFungicides,4,FALSE)","v":"None"},0,{"$f":"VLOOKUP(C57,SoybeanFungicides,3,FALSE)","v":1},0,{"$f":"VLOOKUP(C57,SoybeanFungicides,2,FALSE)","v":0},0,null,"None",{"$f":"VLOOKUP(L57,SoybeanFungicides,6,FALSE)","v":"None"},{"$f":"VLOOKUP(L57,SoybeanFungicides,4,FALSE)","v":"None"},0,{"$f":"VLOOKUP(L57,SoybeanFungicides,3,FALSE)","v":1},0,{"$f":"VLOOKUP(L57,SoybeanFungicides,2,FALSE)","v":0},0,null,null,"None",{"$f":"VLOOKUP(V57,SoybeanFungicides,6,FALSE)","v":"None"},{"$f":"VLOOKUP(V57,SoybeanFungicides,4,FALSE)","v":"None"},0,{"$f":"VLOOKUP(V57,SoybeanFungicides,3,FALSE)","v":1},0,{"$f":"VLOOKUP(V57,SoybeanFungicides,2,FALSE)","v":0},0,null,"None",{"$f":"VLOOKUP(AE57,SoybeanFungicides,6,FALSE)","v":"None"},{"$f":"VLOOKUP(AE57,SoybeanFungicides,4,FALSE)","v":"None"},0,{"$f":"VLOOKUP(AE57,SoybeanFungicides,3,FALSE)","v":1},0,{"$f":"VLOOKUP(AE57,SoybeanFungicides,2,FALSE)","v":0},0]
[]
[null,null,"Adjuvants (drop down menu)",null,null,"(Enter Below)",null,"(Enter Below)",null,null,null,"Adjuvants (drop down menu)",null,null,"(Enter Below)",null,"(Enter Below)",null,null,null,null,"Adjuvants (drop down menu)",null,null,"(Enter Below)",null,"(Enter Below)",null,null,null,"Adjuvants (drop down menu)",null,null,"(Enter Below)",null,"(Enter Below)"]
[null,null,"None",null,{"$f":"VLOOKUP($C60,Adjuvants,4,FALSE)","v":"None"},0,{"$f":"VLOOKUP(C60,Adjuvants,3,FALSE)","v":1},0,{"$f":"VLOOKUP(C60,Adjuvants,2,FALSE)","v":0},{"$f":"H60/G60*F60","v":0},null,"None",null,{"$f":"VLOOKUP($L60,Adjuvants,4,FALSE)","v":"None"},0,{"$f":"VLOOKUP(L60,Adjuvants,3,FALSE)","v":1},0,{"$f":"VLOOKUP(L60,Adjuvants,2,FALSE)","v":0},{"$f":"Q60/P60*O60","v":0},null,null,"None",null,{"$f":"VLOOKUP($C60,Adjuvants,4,FALSE)","v":"None"},0,{"$f":"VLOOKUP(V60,Adjuvants,3,FALSE)","v":1},0,{"$f":"VLOOKUP(V60,Adjuvants,2,FALSE)","v":0},{"$f":"AA60/Z60*Y60","v":0},null,"None",null,{"$f":"VLOOKUP($C60,Adjuvants,4,FALSE)","v":"None"},0,{"$f":"VLOOKUP(AE60,Adjuvants,3,FALSE)","v":1},0,{"$f":"VLOOKUP(AE60,Adjuvants,2,FALSE)","v":0},{"$f":"AJ60/AI60*AH60","v":0}]
[null,null,"None",null,{"$f":"VLOOKUP($C61,Adjuvants,4,FALSE)","v":"None"},0,{"$f":"VLOOKUP(C61,Adjuvants,3,FALSE)","v":1},0,{"$f":"VLOOKUP(C61,Adjuvants,2,FALSE)","v":0},{"$f":"H61/G61*F61","v":0},null,"None",null,{"$f":"VLOOKUP($L61,Adjuvants,4,FALSE)","v":"None"},0,{"$f":"VLOOKUP(L61,Adjuvants,3,FALSE)","v":1},0,{"$f":"VLOOKUP(L61,Adjuvants,2,FALSE)","v":0},{"$f":"Q61/P61*O61","v":0},null,null,"None",null,{"$f":"VLOOKUP($C61,Adjuvants,4,FALSE)","v":"None"},0,{"$f":"VLOOKUP(V61,Adjuvants,3,FALSE)","v":1},0,{"$f":"VLOOKUP(V61,Adjuvants,2,FALSE)","v":0},{"$f":"AA61/Z61*Y61","v":0},null,"None",null,{"$f":"VLOOKUP($C61,Adjuvants,4,FALSE)","v":"None"},0,{"$f":"VLOOKUP(AE61,Adjuvants,3,FALSE)","v":1},0,{"$f":"VLOOKUP(AE61,Adjuvants,2,FALSE)","v":0},{"$f":"AJ61/AI61*AH61","v":0}]
[null,null,"None",null,{"$f":"VLOOKUP($C62,Adjuvants,4,FALSE)","v":"None"},0,{"$f":"VLOOKUP(C62,Adjuvants,3,FALSE)","v":1},0,{"$f":"VLOOKUP(C62,Adjuvants,2,FALSE)","v":0},0,null,"None",null,{"$f":"VLOOKUP($L62,Adjuvants,4,FALSE)","v":"None"},0,{"$f":"VLOOKUP(L62,Adjuvants,3,FALSE)","v":1},0,{"$f":"VLOOKUP(L62,Adjuvants,2,FALSE)","v":0},0,null,null,"None",null,{"$f":"VLOOKUP($C62,Adjuvants,4,FALSE)","v":"None"},0,{"$f":"VLOOKUP(V62,Adjuvants,3,FALSE)","v":1},0,{"$f":"VLOOKUP(V62,Adjuvants,2,FALSE)","v":0},0,null,"None",null,{"$f":"VLOOKUP($C62,Adjuvants,4,FALSE)","v":"None"},0,{"$f":"VLOOKUP(AE62,Adjuvants,3,FALSE)","v":1},0,{"$f":"VLOOKUP(AE62,Adjuvants,2,FALSE)","v":0},0]
[null,null,"None",null,{"$f":"VLOOKUP($C63,Adjuvants,4,FALSE)","v":"None"},0,{"$f":"VLOOKUP(C63,Adjuvants,3,FALSE)","v":1},0,{"$f":"VLOOKUP(C63,Adjuvants,2,FALSE)","v":0},0,null,"None",null,{"$f":"VLOOKUP($L63,Adjuvants,4,FALSE)","v":"None"},0,{"$f":"VLOOKUP(L63,Adjuvants,3,FALSE)","v":1},0,{"$f":"VLOOKUP(L63,Adjuvants,2,FALSE)","v":0},0,null,null,"None",null,{"$f":"VLOOKUP($C63,Adjuvants,4,FALSE)","v":"None"},0,{"$f":"VLOOKUP(V63,Adjuvants,3,FALSE)","v":1},0,{"$f":"VLOOKUP(V63,Adjuvants,2,FALSE)","v":0},0,null,"None",null,{"$f":"VLOOKUP($C63,Adjuvants,4,FALSE)","v":"None"},0,{"$f":"VLOOKUP(AE63,Adjuvants,3,FALSE)","v":1},0,{"$f":"VLOOKUP(AE63,Adjuvants,2,FALSE)","v":0},0]
[null,null,"None",null,{"$f":"VLOOKUP($C64,Adjuvants,4,FALSE)","v":"None"},0,{"$f":"VLOOKUP(C64,Adjuvants,3,FALSE)","v":1},0,{"$f":"VLOOKUP(C64,Adjuvants,2,FALSE)","v":0},0,null,"None",null,{"$f":"VLOOKUP($L64,Adjuvants,4,FALSE)","v":"None"},0,{"$f":"VLOOKUP(L64,Adjuvants,3,FALSE)","v":1},0,{"$f":"VLOOKUP(L64,Adjuvants,2,FALSE)","v":0},0,null,null,"None",null,{"$f":"VLOOKUP($C64,Adjuvants,4,FALSE)","v":"None"},0,{"$f":"VLOOKUP(V64,Adjuvants,3,FALSE)","v":1},0,{"$f":"VLOOKUP(V64,Adjuvants,2,FALSE)","v":0},0,null,"None",null,{"$f":"VLOOKUP($C64,Adjuvants,4,FALSE)","v":"None"},0,{"$f":"VLOOKUP(AE64,Adjuvants,3,FALSE)","v":1},0,{"$f":"VLOOKUP(AE64,Adjuvants,2,FALSE)","v":0},0]
[]
[null,null,"Fungicide Cost/Acre",null,null,null,null,null,null,{"$f":"SUM(J55:J64)","v":0},null,"Fungicide Cost/Acre",null,null,null,null,null,null,{"$f":"SUM(S55:S64)","v":0},null,null,"Fungicide Cost/Acre",null,null,null,null,null,null,{"$f":"SUM(AC55:AC64)","v":0},null,"Fungicide Cost/Acre",null,null,null,null,null,null,{"$f":"SUM(AL55:AL64)","v":0}]
[]
[null,null,"1st Application of Insecticides",null,null,null,null,null,null,null,null,"2nd Application of Insecticides",null,null,null,null,null,null,null,null,null,"1st Application of Insecticides",null,null,null,null,null,null,null,null,"2nd Application of Insecticides"]
[null,null,"Brand","Active Ingredient(s)","Purchase Units","Package Price (Gals, Lbs, etc.)","Units/Pkg","Rate/Acre","Rate Units","Cost",null,"Brand","Active Ingredient(s)","Purchase Units","Package Price (Gals, Lbs, etc.)","Units/Pkg","Rate/Acre","Rate Units","Cost",null,null,"Brand","Active Ingredient(s)","Purchase Units","Package Price (Gals, Lbs, etc.)","Units/Pkg","Rate/Acre","Rate Units","Cost",null,"Brand","Active Ingredient(s)","Purchase Units","Package Price (Gals, Lbs, etc.)","Units/Pkg","Rate/Acre","Rate Units","Cost"]
[null,null,"Insecticides (drop down menu)",null,null,"(Enter Below)",null,"(Enter Below)",null,null,null,"Insecticides (drop down menu)",null,null,"(Enter Below)",null,"(Enter Below)",null,null,null,null,"Insecticides (drop down menu)",null,null,"(Enter Below)",null,"(Enter Below)",null,null,null,"Insecticides (drop down menu)",null,null,"(Enter Below)",null,"(Enter Below)"]
[null,null,"None",{"$f":"VLOOKUP(C71,SoybeanInsecticides,6,FALSE)","v":"None"},{"$f":"VLOOKUP(C71,SoybeanInsecticides,4,FALSE)","v":"None"},0,{"$f":"VLOOKUP(C71,SoybeanInsecticides,3,FALSE)","v":1},0,{"$f":"VLOOKUP(C71,SoybeanInsecticides,2,FALSE)","v":0},{"$f":"H71/G71*F71","v":0},null,"None",{"$f":"VLOOKUP(L71,SoybeanInsecticides,6,FALSE)","v":"None"},{"$f":"VLOOKUP(L71,SoybeanInsecticides,4,FALSE)","v":"None"},0,{"$f":"VLOOKUP(L71,SoybeanInsecticides,3,FALSE)","v":1},0,{"$f":"VLOOKUP(L71,SoybeanInsecticides,2,FALSE)","v":0},{"$f":"Q71/P71*O71","v":0},null,null,"None",{"$f":"VLOOKUP(V71,SoybeanInsecticides,6,FALSE)","v":"None"},{"$f":"VLOOKUP(V71,SoybeanInsecticides,4,FALSE)","v":"None"},0,{"$f":"VLOOKUP(V71,SoybeanInsecticides,3,FALSE)","v":1},0,{"$f":"VLOOKUP(V71,SoybeanInsecticides,2,FALSE)","v":0},{"$f":"AA71/Z71*Y71","v":0},null,"None",{"$f":"VLOOKUP(AE71,SoybeanInsecticides,6,FALSE)","v":"None"},{"$f":"VLOOKUP(AE71,SoybeanInsecticides,4,FALSE)","v":"None"},0,{"$f":"VLOOKUP(AE71,SoybeanInsecticides,3,FALSE)","v":1},0,{"$f":"VLOOKUP(AE71,SoybeanInsecticides,2,FALSE)","v":0},{"$f":"AJ71/AI71*AH71","v":0}]
[null,null,"None",{"$f":"VLOOKUP(C72,SoybeanInsecticides,6,FALSE)","v":"None"},{"$f":"VLOOKUP(C72,SoybeanInsecticides,4,FALSE)","v":"None"},0,{"$f":"VLOOKUP(C72,SoybeanInsecticides,3,FALSE)","v":1},0,{"$f":"VLOOKUP(C72,SoybeanInsecticides,2,FALSE)","v":0},{"$f":"H72/G72*F72","v":0},null,"None",{"$f":"VLOOKUP(L72,SoybeanInsecticides,6,FALSE)","v":"None"},{"$f":"VLOOKUP(L72,SoybeanInsecticides,4,FALSE)","v":"None"},0,{"$f":"VLOOKUP(L72,SoybeanInsecticides,3,FALSE)","v":1},0,{"$f":"VLOOKUP(L72,SoybeanInsecticides,2,FALSE)","v":0},{"$f":"Q72/P72*O72","v":0},null,null,"None",{"$f":"VLOOKUP(V72,SoybeanInsecticides,6,FALSE)","v":"None"},{"$f":"VLOOKUP(V72,SoybeanInsecticides,4,FALSE)","v":"None"},0,{"$f":"VLOOKUP(V72,SoybeanInsecticides,3,FALSE)","v":1},0,{"$f":"VLOOKUP(V72,SoybeanInsecticides,2,FALSE)","v":0},{"$f":"AA72/Z72*Y72","v":0},null,"None",{"$f":"VLOOKUP(AE72,SoybeanInsecticides,6,FALSE)","v":"None"},{"$f":"VLOOKUP(AE72,SoybeanInsecticides,4,FALSE)","v":"None"},0,{"$f":"VLOOKUP(AE72,SoybeanInsecticides,3,FALSE)","v":1},0,{"$f":"VLOOKUP(AE72,SoybeanInsecticides,2,FALSE)","v":0},{"$f":"AJ72/AI72*AH72","v":0}]
[null,null,"None",{"$f":"VLOOKUP(C73,SoybeanInsecticides,6,FALSE)","v":"None"},{"$f":"VLOOKUP(C73,SoybeanInsecticides,4,FALSE)","v":"None"},0,{"$f":"VLOOKUP(C73,SoybeanInsecticides,3,FALSE)","v":1},0,{"$f":"VLOOKUP(C73,SoybeanInsecticides,2,FALSE)","v":0},0,null,"None",{"$f":"VLOOKUP(L73,SoybeanInsecticides,6,FALSE)","v":"None"},{"$f":"VLOOKUP(L73,SoybeanInsecticides,4,FALSE)","v":"None"},0,{"$f":"VLOOKUP(L73,SoybeanInsecticides,3,FALSE)","v":1},0,{"$f":"VLOOKUP(L73,SoybeanInsecticides,2,FALSE)","v":0},0,null,null,"None",{"$f":"VLOOKUP(V73,SoybeanInsecticides,6,FALSE)","v":"None"},{"$f":"VLOOKUP(V73,SoybeanInsecticides,4,FALSE)","v":"None"},0,{"$f":"VLOOKUP(V73,SoybeanInsecticides,3,FALSE)","v":1},0,{"$f":"VLOOKUP(V73,SoybeanInsecticides,2,FALSE)","v":0},0,null,"None",{"$f":"VLOOKUP(AE73,SoybeanInsecticides,6,FALSE)","v":"None"},{"$f":"VLOOKUP(AE73,SoybeanInsecticides,4,FALSE)","v":"None"},0,{"$f":"VLOOKUP(AE73,SoybeanInsecticides,3,FALSE)","v":1},0,{"$f":"VLOOKUP(AE73,SoybeanInsecticides,2,FALSE)","v":0},0]
[]
[null,null,"Adjuvants (drop down menu)",null,null,"(Enter Below)",null,"(Enter Below)",null,null,null,"Adjuvants (drop down menu)",null,null,"(Enter Below)",null,"(Enter Below)",null,null,null,null,"Adjuvants (drop down menu)",null,null,"(Enter Below)",null,"(Enter Below)",null,null,null,"Adjuvants (drop down menu)",null,null,"(Enter Below)",null,"(Enter Below)"]
[null,null,"None",null,{"$f":"VLOOKUP(#REF!,Adjuvants,4,FALSE)","v":{"$error":"#REF!"}},0,{"$f":"VLOOKUP(C76,Adjuvants,3,FALSE)","v":1},0,{"$f":"VLOOKUP(C76,Adjuvants,2,FALSE)","v":0},{"$f":"H76/G76*F76","v":0},null,"None",null,{"$f":"VLOOKUP(#REF!,Adjuvants,4,FALSE)","v":{"$error":"#REF!"}},0,{"$f":"VLOOKUP(L76,Adjuvants,3,FALSE)","v":1},0,{"$f":"VLOOKUP(L76,Adjuvants,2,FALSE)","v":0},{"$f":"Q76/P76*O76","v":0},null,null,"None",null,{"$f":"VLOOKUP(#REF!,Adjuvants,4,FALSE)","v":{"$error":"#REF!"}},0,{"$f":"VLOOKUP(V76,Adjuvants,3,FALSE)","v":1},0,{"$f":"VLOOKUP(V76,Adjuvants,2,FALSE)","v":0},{"$f":"AA76/Z76*Y76","v":0},null,"None",null,{"$f":"VLOOKUP(#REF!,Adjuvants,4,FALSE)","v":{"$error":"#REF!"}},0,{"$f":"VLOOKUP(AE76,Adjuvants,3,FALSE)","v":1},0,{"$f":"VLOOKUP(AE76,Adjuvants,2,FALSE)","v":0},{"$f":"AJ76/AI76*AH76","v":0}]
[null,null,"None",null,{"$f":"VLOOKUP(#REF!,Adjuvants,4,FALSE)","v":{"$error":"#REF!"}},0,{"$f":"VLOOKUP(C77,Adjuvants,3,FALSE)","v":1},0,{"$f":"VLOOKUP(C77,Adjuvants,2,FALSE)","v":0},{"$f":"H77/G77*F77","v":0},null,"None",null,{"$f":"VLOOKUP(#REF!,Adjuvants,4,FALSE)","v":{"$error":"#REF!"}},0,{"$f":"VLOOKUP(L77,Adjuvants,3,FALSE)","v":1},0,{"$f":"VLOOKUP(L77,Adjuvants,2,FALSE)","v":0},{"$f":"Q77/P77*O77","v":0},null,null,"None",null,{"$f":"VLOOKUP(#REF!,Adjuvants,4,FALSE)","v":{"$error":"#REF!"}},0,{"$f":"VLOOKUP(V77,Adjuvants,3,FALSE)","v":1},0,{"$f":"VLOOKUP(V77,Adjuvants,2,FALSE)","v":0},{"$f":"AA77/Z77*Y77","v":0},null,"None",null,{"$f":"VLOOKUP(#REF!,Adjuvants,4,FALSE)","v":{"$error":"#REF!"}},0,{"$f":"VLOOKUP(AE77,Adjuvants,3,FALSE)","v":1},0,{"$f":"VLOOKUP(AE77,Adjuvants,2,FALSE)","v":0},{"$f":"AJ77/AI77*AH77","v":0}]
[null,null,"None",null,{"$f":"VLOOKUP(#REF!,Adjuvants,4,FALSE)","v":{"$error":"#REF!"}},0,{"$f":"VLOOKUP(C78,Adjuvants,3,FALSE)","v":1},0,{"$f":"VLOOKUP(C78,Adjuvants,2,FALSE)","v":0},0,null,"None",null,{"$f":"VLOOKUP(#REF!,Adjuvants,4,FALSE)","v":{"$error":"#REF!"}},0,{"$f":"VLOOKUP(L78,Adjuvants,3,FALSE)","v":1},0,{"$f":"VLOOKUP(L78,Adjuvants,2,FALSE)","v":0},0,null,null,"None",null,{"$f":"VLOOKUP(#REF!,Adjuvants,4,FALSE)","v":{"$error":"#REF!"}},0,{"$f":"VLOOKUP(V78,Adjuvants,3,FALSE)","v":1},0,{"$f":"VLOOKUP(V78,Adjuvants,2,FALSE)","v":0},0,null,"None",null,{"$f":"VLOOKUP(#REF!,Adjuvants,4,FALSE)","v":{"$error":"#REF!"}},0,{"$f":"VLOOKUP(AE78,Adjuvants,3,FALSE)","v":1},0,{"$f":"VLOOKUP(AE78,Adjuvants,2,FALSE)","v":0},0]
[null,null,"None",null,{"$f":"VLOOKUP(#REF!,Adjuvants,4,FALSE)","v":{"$error":"#REF!"}},0,{"$f":"VLOOKUP(C79,Adjuvants,3,FALSE)","v":1},0,{"$f":"VLOOKUP(C79,Adjuvants,2,FALSE)","v":0},0,null,"None",null,{"$f":"VLOOKUP(#REF!,Adjuvants,4,FALSE)","v":{"$error":"#REF!"}},0,{"$f":"VLOOKUP(L79,Adjuvants,3,FALSE)","v":1},0,{"$f":"VLOOKUP(L79,Adjuvants,2,FALSE)","v":0},0,null,null,"None",null,{"$f":"VLOOKUP(#REF!,Adjuvants,4,FALSE)","v":{"$error":"#REF!"}},0,{"$f":"VLOOKUP(V79,Adjuvants,3,FALSE)","v":1},0,{"$f":"VLOOKUP(V79,Adjuvants,2,FALSE)","v":0},0,null,"None",null,{"$f":"VLOOKUP(#REF!,Adjuvants,4,FALSE)","v":{"$error":"#REF!"}},0,{"$f":"VLOOKUP(AE79,Adjuvants,3,FALSE)","v":1},0,{"$f":"VLOOKUP(AE79,Adjuvants,2,FALSE)","v":0},0]
[null,null,"None",null,{"$f":"VLOOKUP(#REF!,Adjuvants,4,FALSE)","v":{"$error":"#REF!"}},0,{"$f":"VLOOKUP(C80,Adjuvants,3,FALSE)","v":1},0,{"$f":"VLOOKUP(C80,Adjuvants,2,FALSE)","v":0},0,null,"None",null,{"$f":"VLOOKUP(#REF!,Adjuvants,4,FALSE)","v":{"$error":"#REF!"}},0,{"$f":"VLOOKUP(L80,Adjuvants,3,FALSE)","v":1},0,{"$f":"VLOOKUP(L80,Adjuvants,2,FALSE)","v":0},0,null,null,"None",null,{"$f":"VLOOKUP(#REF!,Adjuvants,4,FALSE)","v":{"$error":"#REF!"}},0,{"$f":"VLOOKUP(V80,Adjuvants,3,FALSE)","v":1},0,{"$f":"VLOOKUP(V80,Adjuvants,2,FALSE)","v":0},0,null,"None",null,{"$f":"VLOOKUP(#REF!,Adjuvants,4,FALSE)","v":{"$error":"#REF!"}},0,{"$f":"VLOOKUP(AE80,Adjuvants,3,FALSE)","v":1},0,{"$f":"VLOOKUP(AE80,Adjuvants,2,FALSE)","v":0},0]
[]
[null,null,"Insecticide Cost/Acre",null,null,null,null,null,null,{"$f":"SUM(J71:J80)","v":0},null,"Insecticide Cost/Acre",null,null,null,null,null,null,{"$f":"SUM(S71:S80)","v":0},null,null,"Insecticide Cost/Acre",null,null,null,null,null,null,{"$f":"SUM(AC71:AC80)","v":0},null,"Insecticide Cost/Acre",null,null,null,null,null,null,{"$f":"SUM(AL71:AL80)","v":0}]
[]
[null,null,null,null,null,null,null,null,null,null,null,"Summary Cost/Acre (All Chemistry)",null,null,null,null,null,null,null,null,null,null,null,null,null,null,null,null,null,null,"Summary Cost/Acre (All Chemistry)"]
[]
[]
[null,null,null,null,null,null,null,null,null,null,null,"Fungicide Total Cost/Acre",null,null,null,null,null,null,{"$f":"J66+S66","v":0},null,null,null,null,null,null,null,null,null,null,null,"Fungicide Total Cost/Acre",null,null,null,null,null,null,{"$f":"AC66+AL66","v":0}]
[null,null,{"$f":"C42","v":"Plan Year"},null,null,null,null,null,null,null,null,null,null,null,null,null,null,null,null,null,null,{"$f":"C42","v":"Plan Year"}]
[null,null,{"$f":"C43","v":"Farm Name"},null,null,null,null,null,null,null,null,"Insecticide Total Cost/Acre",null,null,null,null,null,null,{"$f":"J82+S82","v":0},null,null,{"$f":"C43","v":"Farm Name"},null,null,null,null,null,null,null,null,"Insecticide Total Cost/Acre",null,null,null,null,null,null,{"$f":"AC82+AL82","v":0}]
[null,null,{"$f":"C44","v":"Farm Tract"},null,null,null,null,null,null,null,null,null,null,null,null,null,null,null,null,null,null,{"$f":"C44","v":"Farm Tract"}]
[null,null,"Farm Number",null,null,null,null,null,null,null,null,"Total Herbicide Cost/Acre",null,null,null,null,null,null,{"$f":"S48","v":0},null,null,"Farm Number",null,null,null,null,null,null,null,null,"Total Herbicide Cost/Acre",null,null,null,null,null,null,{"$f":"AL48","v":0}]
[]
[null,null,null,null,null,null,null,null,null,null,null,"Total Pesticide Cost/Acre (Herbicide, Fungicide, & Insecticide)",null,null,null,null,null,null,{"$f":"S89+S87+S91","v":0},null,null,null,null,null,null,null,null,null,null,null,"Total Pesticide Cost/Acre (Herbicide, Fungicide, & Insecticide)",null,null,null,null,null,null,{"$f":"AL89+AL87+AL91","v":0}]

{"sheet":"Pesticide Plan (Wheat)","index":3,"n_rows":93,"n_cols":38,"rows_kept":93,"cut":false,"hidden":false,"merged":[[0,2,0,18],[0,21,0,37],[1,2,1,18],[1,21,1,37],[2,2,2,18],[2,21,2,37],[3,2,3,9],[3,11,3,18],[3,21,3,28],[3,30,3,37],[21,2,21,18],[21,21,21,37],[22,2,22,9],[22,11,22,18],[22,21,22,28],[22,30,22,37],[40,11,41,18],[40,30,41,37],[50,2,50,18],[50,21,50,37],[51,2,51,9],[51,11,51,18],[51,21,51,28],[51,30,51,37],[67,2,67,9],[67,11,67,18],[67,21,67,28],[67,30,67,37],[83,11,84,18],[83,30,84,37]]}
[null,null,"Wheat Pesticide Plan",null,null,null,null,null,null,null,null,null,null,null,null,null,null,null,null,null,null,"Wheat Pesticide Plan"]
[null,null,"Comparison Plan #1",null,null,null,null,null,null,null,null,null,null,null,null,null,null,null,null,null,null,"Comparison Plan #2"]
[null,null,"Burndown/Pre-Plant/Early Post Emergence Herbicides",null,null,null,null,null,null,null,null,null,null,null,null,null,null,null,null,null,null,"Burndown/Pre-Plant/Early Post Emergence Herbicides"]
[null,null,"1st Application of Burndown/Pre-Plant/Early Post Emergencen Herbicides",null,null,null,null,null,null,null,null,"2nd Application of Burndown/Pre-Plant/Early Post Emergence Herbicides",null,null,null,null,null,null,null,null,null,"1st Application of Burndown/Pre-Plant/Early Post Emergencen Herbicides",null,null,null,null,null,null,null,null,"2nd Application of Burndown/Pre-Plant/Early Post Emergence Herbicides"]
[null,null,"Brand","Site of Action","Purchase Units","Package Price (Gals, Lbs, etc.)","Units/Pkg","Rate/Acre","Rate Units","Cost",null,"Brand","Site of Action","Purchase Units","Package Price (Gals, Lbs, etc.)","Units/Pkg","Rate/Acre","Rate Units","Cost",null,null,"Brand","Site of Action","Purchase Units","Package Price (Gals, Lbs, etc.)","Units/Pkg","Rate/Acre","Rate Units","Cost",null,"Brand","Site of Action","Purchase Units","Package Price (Gals, Lbs, etc.)","Units/Pkg","Rate/Acre","Rate Units","Cost"]
[null,null,"Herbicides (drop down menu)",null,null,"(Enter Below)",null,"(Enter Below)",null,null,null,"Herbicides (drop down menu)",null,null,"(Enter Below)",null,"(Enter Below)",null,null,null,null,"Herbicides (drop down menu)",null,null,"(Enter Below)",null,"(Enter Below)",null,null,null,"Herbicides (drop down menu)",null,null,"(Enter Below)",null,"(Enter Below)"]
[null,null,"None",{"$f":"VLOOKUP(C7,WheatChemicals,6,FALSE)","v":0},{"$f":"VLOOKUP(C7,WheatChemicals,4,FALSE)","v":"None"},0,{"$f":"VLOOKUP(C7,WheatChemicals,3,FALSE)","v":1},0,{"$f":"VLOOKUP(C7,WheatChemicals,2,FALSE)","v":0},{"$f":"H7/G7*F7","v":0},null,"None",{"$f":"VLOOKUP(L7,WheatChemicals,6,FALSE)","v":0},{"$f":"VLOOKUP(L7,WheatChemicals,4,FALSE)","v":"None"},0,{"$f":"VLOOKUP(L7,WheatChemicals,3,FALSE)","v":1},0,{"$f":"VLOOKUP(L7,WheatChemicals,2,FALSE)","v":0},{"$f":"Q7/P7*O7","v":0},null,null,"None",{"$f":"VLOOKUP(V7,WheatChemicals,6,FALSE)","v":0},{"$f":"VLOOKUP(V7,WheatChemicals,4,FALSE)","v":"None"},0,{"$f":"VLOOKUP(V7,WheatChemicals,3,FALSE)","v":1},0,{"$f":"VLOOKUP(V7,WheatChemicals,2,FALSE)","v":0},{"$f":"AA7/Z7*Y7","v":0},null,"None",{"$f":"VLOOKUP(AE7,WheatChemicals,6,FALSE)","v":0},{"$f":"VLOOKUP(AE7,WheatChemicals,4,FALSE)","v":"None"},0,{"$f":"VLOOKUP(AE7,WheatChemicals,3,FALSE)","v":1},0,{"$f":"VLOOKUP(AE7,WheatChemicals,2,FALSE)","v":0},{"$f":"AJ7/AI7*AH7","v":0}]
[null,null,"None",{"$f":"VLOOKUP(C8,WheatChemicals,6,FALSE)","v":0},{"$f":"VLOOKUP(C8,WheatChemicals,4,FALSE)","v":"None"},0,{"$f":"VLOOKUP(C8,WheatChemicals,3,FALSE)","v":1},0,{"$f":"VLOOKUP(C8,WheatChemicals,2,FALSE)","v":0},{"$f":"H8/G8*F8","v":0},null,"None",{"$f":"VLOOKUP(L8,WheatChemicals,6,FALSE)","v":0},{"$f":"VLOOKUP(L8,WheatChemicals,4,FALSE)","v":"None"},0,{"$f":"VLOOKUP(L8,WheatChemicals,3,FALSE)","v":1},0,{"$f":"VLOOKUP(L8,WheatChemicals,2,FALSE)","v":0},{"$f":"Q8/P8*O8","v":0},null,null,"None",{"$f":"VLOOKUP(V8,WheatChemicals,6,FALSE)","v":0},{"$f":"VLOOKUP(V8,WheatChemicals,4,FALSE)","v":"None"},0,{"$f":"VLOOKUP(V8,WheatChemicals,3,FALSE)","v":1},0,{"$f":"VLOOKUP(V8,WheatChemicals,2,FALSE)","v":0},{"$f":"AA8/Z8*Y8","v":0},null,"None",{"$f":"VLOOKUP(AE8,WheatChemicals,6,FALSE)","v":0},{"$f":"VLOOKUP(AE8,WheatChemicals,4,FALSE)","v":"None"},0,{"$f":"VLOOKUP(AE8,WheatChemicals,3,FALSE)","v":1},0,{"$f":"VLOOKUP(AE8,WheatChemicals,2,FALSE)","v":0},{"$f":"AJ8/AI8*AH8","v":0}]
[null,null,"None",{"$f":"VLOOKUP(C9,WheatChemicals,6,FALSE)","v":0},{"$f":"VLOOKUP(C9,WheatChemicals,4,FALSE)","v":"None"},0,{"$f":"VLOOKUP(C9,WheatChemicals,3,FALSE)","v":1},0,{"$f":"VLOOKUP(C9,WheatChemicals,2,FALSE)","v":0},0,null,"None",{"$f":"VLOOKUP(L9,WheatChemicals,6,FALSE)","v":0},{"$f":"VLOOKUP(L9,WheatChemicals,4,FALSE)","v":"None"},0,{"$f":"VLOOKUP(L9,WheatChemicals,3,FALSE)","v":1},0,{"$f":"VLOOKUP(L9,WheatChemicals,2,FALSE)","v":0},0,null,null,"None",{"$f":"VLOOKUP(V9,WheatChemicals,6,FALSE)","v":0},{"$f":"VLOOKUP(V9,WheatChemicals,4,FALSE)","v":"None"},0,{"$f":"VLOOKUP(V9,WheatChemicals,3,FALSE)","v":1},0,{"$f":"VLOOKUP(V9,WheatChemicals,2,FALSE)","v":0},0,null,"None",{"$f":"VLOOKUP(AE9,WheatChemicals,6,FALSE)","v":0},{"$f":"VLOOKUP(AE9,WheatChemicals,4,FALSE)","v":"None"},0,{"$f":"VLOOKUP(AE9,WheatChemicals,3,FALSE)","v":1},0,{"$f":"VLOOKUP(AE9,WheatChemicals,2,FALSE)","v":0},0]
[null,null,"None",{"$f":"VLOOKUP(C10,WheatChemicals,6,FALSE)","v":0},{"$f":"VLOOKUP(C10,WheatChemicals,4,FALSE)","v":"None"},0,{"$f":"VLOOKUP(C10,WheatChemicals,3,FALSE)","v":1},0,{"$f":"VLOOKUP(C10,WheatChemicals,2,FALSE)","v":0},0,null,"None",{"$f":"VLOOKUP(L10,WheatChemicals,6,FALSE)","v":0},{"$f":"VLOOKUP(L10,WheatChemicals,4,FALSE)","v":"None"},0,{"$f":"VLOOKUP(L10,WheatChemicals,3,FALSE)","v":1},0,{"$f":"VLOOKUP(L10,WheatChemicals,2,FALSE)","v":0},0,null,null,"None",{"$f":"VLOOKUP(V10,WheatChemicals,6,FALSE)","v":0},{"$f":"VLOOKUP(V10,WheatChemicals,4,FALSE)","v":"None"},0,{"$f":"VLOOKUP(V10,WheatChemicals,3,FALSE)","v":1},0,{"$f":"VLOOKUP(V10,WheatChemicals,2,FALSE)","v":0},0,null,"None",{"$f":"VLOOKUP(AE10,WheatChemicals,6,FALSE)","v":0},{"$f":"VLOOKUP(AE10,WheatChemicals,4,FALSE)","v":"None"},0,{"$f":"VLOOKUP(AE10,WheatChemicals,3,FALSE)","v":1},0,{"$f":"VLOOKUP(AE10,WheatChemicals,2,FALSE)","v":0},0]
[null,null,"None",{"$f":"VLOOKUP(C11,WheatChemicals,6,FALSE)","v":0},{"$f":"VLOOKUP(C11,WheatChemicals,4,FALSE)","v":"None"},0,{"$f":"VLOOKUP(C11,WheatChemicals,3,FALSE)","v":1},0,{"$f":"VLOOKUP(C11,WheatChemicals,2,FALSE)","v":0},0,null,"None",{"$f":"VLOOKUP(L11,WheatChemicals,6,FALSE)","v":0},{"$f":"VLOOKUP(L11,WheatChemicals,4,FALSE)","v":"None"},0,{"$f":"VLOOKUP(L11,WheatChemicals,3,FALSE)","v":1},0,{"$f":"VLOOKUP(L11,WheatChemicals,2,FALSE)","v":0},0,null,null,"None",{"$f":"VLOOKUP(V11,WheatChemicals,6,FALSE)","v":0},{"$f":"VLOOKUP(V11,WheatChemicals,4,FALSE)","v":"None"},0,{"$f":"VLOOKUP(V11,WheatChemicals,3,FALSE)","v":1},0,{"$f":"VLOOKUP(V11,WheatChemicals,2,FALSE)","v":0},0,null,"None",{"$f":"VLOOKUP(AE11,WheatChemicals,6,FALSE)","v":0},{"$f":"VLOOKUP(AE11,WheatChemicals,4,FALSE)","v":"None"},0,{"$f":"VLOOKUP(AE11,WheatChemicals,3,FALSE)","v":1},0,{"$f":"VLOOKUP(AE11,WheatChemicals,2,FALSE)","v":0},0]
[]
[null,null,"Adjuvants (drop down menu)",null,null,"(Enter Below)",null,"(Enter Below)",null,null,null,"Adjuvants (drop down menu)",null,null,"(Enter Below)",null,"(Enter Below)",null,null,null,null,"Adjuvants (drop down menu)",null,null,"(Enter Below)",null,"(Enter Below)",null,null,null,"Adjuvants (drop down menu)",null,null,"(Enter Below)",null,"(Enter Below)"]
[null,null,"None",null,{"$f":"VLOOKUP(C14,Adjuvants,4,FALSE)","v":"None"},0,{"$f":"VLOOKUP(C14,Adjuvants,3,FALSE)","v":1},0,{"$f":"VLOOKUP(C14,Adjuvants,2,FALSE)","v":0},{"$f":"H14/G14*F14","v":0},null,"None",null,{"$f":"VLOOKUP(L14,Adjuvants,4,FALSE)","v":"None"},0,{"$f":"VLOOKUP(L14,Adjuvants,3,FALSE)","v":1},0,{"$f":"VLOOKUP(L14,Adjuvants,2,FALSE)","v":0},{"$f":"Q14/P14*O14","v":0},null,null,"None",null,{"$f":"VLOOKUP(V14,Adjuvants,4,FALSE)","v":"None"},0,{"$f":"VLOOKUP(V14,Adjuvants,3,FALSE)","v":1},0,{"$f":"VLOOKUP(V14,Adjuvants,2,FALSE)","v":0},{"$f":"AA14/Z14*Y14","v":0},null,"None",null,{"$f":"VLOOKUP(AE14,Adjuvants,4,FALSE)","v":"None"},0,{"$f":"VLOOKUP(AE14,Adjuvants,3,FALSE)","v":1},0,{"$f":"VLOOKUP(AE14,Adjuvants,2,FALSE)","v":0},{"$f":"AJ14/AI14*AH14","v":0}]
[null,null,"None",null,{"$f":"VLOOKUP(C15,Adjuvants,4,FALSE)","v":"None"},0,{"$f":"VLOOKUP(C15,Adjuvants,3,FALSE)","v":1},0,{"$f":"VLOOKUP(C15,Adjuvants,2,FALSE)","v":0},{"$f":"H15/G15*F15","v":0},null,"None",null,{"$f":"VLOOKUP(L15,Adjuvants,4,FALSE)","v":"None"},0,{"$f":"VLOOKUP(L15,Adjuvants,3,FALSE)","v":1},0,{"$f":"VLOOKUP(L15,Adjuvants,2,FALSE)","v":0},{"$f":"Q15/P15*O15","v":0},null,null,"None",null,{"$f":"VLOOKUP(V15,Adjuvants,4,FALSE)","v":"None"},0,{"$f":"VLOOKUP(V15,Adjuvants,3,FALSE)","v":1},0,{"$f":"VLOOKUP(V15,Adjuvants,2,FALSE)","v":0},{"$f":"AA15/Z15*Y15","v":0},null,"None",null,{"$f":"VLOOKUP(AE15,Adjuvants,4,FALSE)","v":"None"},0,{"$f":"VLOOKUP(AE15,Adjuvants,3,FALSE)","v":1},0,{"$f":"VLOOKUP(AE15,Adjuvants,2,FALSE)","v":0},{"$f":"AJ15/AI15*AH15","v":0}]
[null,null,"None",null,{"$f":"VLOOKUP(C16,Adjuvants,4,FALSE)","v":"None"},0,{"$f":"VLOOKUP(C16,Adjuvants,3,FALSE)","v":1},0,{"$f":"VLOOKUP(C16,Adjuvants,2,FALSE)","v":0},0,null,"None",null,{"$f":"VLOOKUP(L16,Adjuvants,4,FALSE)","v":"None"},0,{"$f":"VLOOKUP(L16,Adjuvants,3,FALSE)","v":1},0,{"$f":"VLOOKUP(L16,Adjuvants,2,FALSE)","v":0},0,null,null,"None",null,{"$f":"VLOOKUP(V16,Adjuvants,4,FALSE)","v":"None"},0,{"$f":"VLOOKUP(V16,Adjuvants,3,FALSE)","v":1},0,{"$f":"VLOOKUP(V16,Adjuvants,2,FALSE)","v":0},0,null,"None",null,{"$f":"VLOOKUP(AE16,Adjuvants,4,FALSE)","v":"None"},0,{"$f":"VLOOKUP(AE16,Adjuvants,3,FALSE)","v":1},0,{"$f":"VLOOKUP(AE16,Adjuvants,2,FALSE)","v":0},0]
[null,null,"None",null,{"$f":"VLOOKUP(C17,Adjuvants,4,FALSE)","v":"None"},0,{"$f":"VLOOKUP(C17,Adjuvants,3,FALSE)","v":1},0,{"$f":"VLOOKUP(C17,Adjuvants,2,FALSE)","v":0},0,null,"None",null,{"$f":"VLOOKUP(L17,Adjuvants,4,FALSE)","v":"None"},0,{"$f":"VLOOKUP(L17,Adjuvants,3,FALSE)","v":1},0,{"$f":"VLOOKUP(L17,Adjuvants,2,FALSE)","v":0},0,null,null,"None",null,{"$f":"VLOOKUP(V17,Adjuvants,4,FALSE)","v":"None"},0,{"$f":"VLOOKUP(V17,Adjuvants,3,FALSE)","v":1},0,{"$f":"VLOOKUP(V17,Adjuvants,2,FALSE)","v":0},0,null,"None",null,{"$f":"VLOOKUP(AE17,Adjuvants,4,FALSE)","v":"None"},0,{"$f":"VLOOKUP(AE17,Adjuvants,3,FALSE)","v":1},0,{"$f":"VLOOKUP(AE17,Adjuvants,2,FALSE)","v":0},0]
[null,null,"None",null,{"$f":"VLOOKUP(C18,Adjuvants,4,FALSE)","v":"None"},0,{"$f":"VLOOKUP(C18,Adjuvants,3,FALSE)","v":1},0,{"$f":"VLOOKUP(C18,Adjuvants,2,FALSE)","v":0},0,null,"None",null,{"$f":"VLOOKUP(L18,Adjuvants,4,FALSE)","v":"None"},0,{"$f":"VLOOKUP(L18,Adjuvants,3,FALSE)","v":1},0,{"$f":"VLOOKUP(L18,Adjuvants,2,FALSE)","v":0},0,null,null,"None",null,{"$f":"VLOOKUP(V18,Adjuvants,4,FALSE)","v":"None"},0,{"$f":"VLOOKUP(V18,Adjuvants,3,FALSE)","v":1},0,{"$f":"VLOOKUP(V18,Adjuvants,2,FALSE)","v":0},0,null,"None",null,{"$f":"VLOOKUP(AE18,Adjuvants,4,FALSE)","v":"None"},0,{"$f":"VLOOKUP(AE18,Adjuvants,3,FALSE)","v":1},0,{"$f":"VLOOKUP(AE18,Adjuvants,2,FALSE)","v":0},0]
[]
[null,null,"1st Application Pre-plan/Pre-Emergence Herbicide Cost/Acre",null,null,null,null,null,null,{"$f":"SUM(J7:J18)","v":0},null,"2nd Application Pre-plan/Pre-Emergence Herbicide Cost/Acre",null,null,null,null,null,null,{"$f":"SUM(S7:S18)","v":0},null,null,"1st Application Pre-plan/Pre-Emergence Herbicide Cost/Acre",null,null,null,null,null,null,{"$f":"SUM(AC7:AC18)","v":0},null,"2nd Application Pre-plan/Pre-Emergence Herbicide Cost/Acre",null,null,null,null,null,null,{"$f":"SUM(AL7:AL18)","v":0}]
[]
[null,null,"Post-Emergence Herbicides",null,null,null,null,null,null,null,null,null,null,null,null,null,null,null,null,null,null,"Post-Emergence Herbicides"]
[null,null,"1st Application of Post-Emergence Herbicides",null,null,null,null,null,null,null,null,"2nd Application of Post-Emergence Herbicides",null,null,null,null,null,null,null,null,null,"1st Application of Post-Emergence Herbicides",null,null,null,null,null,null,null,null,"2nd Application of Post-Emergence Herbicides"]
[null,null,"Brand","Site of Action","Purchase Units","Package Price (Gals, Lbs, etc.)","Units/Pkg","Rate/Acre","Rate Units","Cost",null,"Brand","Site of Action","Purchase Units","Package Price (Gals, Lbs, etc.)","Units/Pkg","Rate/Acre","Rate Units","Cost",null,null,"Brand","Site of Action","Purchase Units","Package Price (Gals, Lbs, etc.)","Units/Pkg","Rate/Acre","Rate Units","Cost",null,"Brand","Site of Action","Purchase Units","Package Price (Gals, Lbs, etc.)","Units/Pkg","Rate/Acre","Rate Units","Cost"]
[null,null,"Herbicides (drop down menu)",null,null,"(Enter Below)",null,"(Enter Below)",null,null,null,"Herbicides (drop down menu)",null,null,"(Enter Below)",null,"(Enter Below)",null,null,null,null,"Herbicides (drop down menu)",null,null,"(Enter Below)",null,"(Enter Below)",null,null,null,"Herbicides (drop down menu)",null,null,"(Enter Below)",null,"(Enter Below)"]
[null,null,"None",{"$f":"VLOOKUP(C26,WheatChemicals,6,FALSE)","v":0},{"$f":"VLOOKUP(C26,WheatChemicals,4,FALSE)","v":"None"},0,{"$f":"VLOOKUP(C26,WheatChemicals,3,FALSE)","v":1},0,{"$f":"VLOOKUP(C26,WheatChemicals,2,FALSE)","v":0},{"$f":"H26/G26*F26","v":0},null,"None",{"$f":"VLOOKUP(L26,WheatChemicals,6,FALSE)","v":0},{"$f":"VLOOKUP(L26,WheatChemicals,4,FALSE)","v":"None"},0,{"$f":"VLOOKUP(L26,WheatChemicals,3,FALSE)","v":1},0,{"$f":"VLOOKUP(L26,WheatChemicals,2,FALSE)","v":0},{"$f":"Q26/P26*O26","v":0},null,null,"None",{"$f":"VLOOKUP(V26,WheatChemicals,6,FALSE)","v":0},{"$f":"VLOOKUP(V26,WheatChemicals,4,FALSE)","v":"None"},0,{"$f":"VLOOKUP(V26,WheatChemicals,3,FALSE)","v":1},0,{"$f":"VLOOKUP(V26,WheatChemicals,2,FALSE)","v":0},{"$f":"AA26/Z26*Y26","v":0},null,"None",{"$f":"VLOOKUP(AE26,WheatChemicals,6,FALSE)","v":0},{"$f":"VLOOKUP(AE26,WheatChemicals,4,FALSE)","v":"None"},0,{"$f":"VLOOKUP(AE26,WheatChemicals,3,FALSE)","v":1},0,{"$f":"VLOOKUP(AE26,WheatChemicals,2,FALSE)","v":0},{"$f":"AJ26/AI26*AH26","v":0}]
[null,null,"None",{"$f":"VLOOKUP(C27,WheatChemicals,6,FALSE)","v":0},{"$f":"VLOOKUP(C27,WheatChemicals,4,FALSE)","v":"None"},0,{"$f":"VLOOKUP(C27,WheatChemicals,3,FALSE)","v":1},0,{"$f":"VLOOKUP(C27,WheatChemicals,2,FALSE)","v":0},{"$f":"H27/G27*F27","v":0},null,"None",{"$f":"VLOOKUP(L27,WheatChemicals,6,FALSE)","v":0},{"$f":"VLOOKUP(L27,WheatChemicals,4,FALSE)","v":"None"},0,{"$f":"VLOOKUP(L27,WheatChemicals,3,FALSE)","v":1},0,{"$f":"VLOOKUP(L27,WheatChemicals,2,FALSE)","v":0},{"$f":"Q27/P27*O27","v":0},null,null,"None",{"$f":"VLOOKUP(V27,WheatChemicals,6,FALSE)","v":0},{"$f":"VLOOKUP(V27,WheatChemicals,4,FALSE)","v":"None"},0,{"$f":"VLOOKUP(V27,WheatChemicals,3,FALSE)","v":1},0,{"$f":"VLOOKUP(V27,WheatChemicals,2,FALSE)","v":0},{"$f":"AA27/Z27*Y27","v":0},null,"None",{"$f":"VLOOKUP(AE27,WheatChemicals,6,FALSE)","v":0},{"$f":"VLOOKUP(AE27,WheatChemicals,4,FALSE)","v":"None"},0,{"$f":"VLOOKUP(AE27,WheatChemicals,3,FALSE)","v":1},0,{"$f":"VLOOKUP(AE27,WheatChemicals,2,FALSE)","v":0},{"$f":"AJ27/AI27*AH27","v":0}]
[null,null,"None",{"$f":"VLOOKUP(C28,WheatChemicals,6,FALSE)","v":0},{"$f":"VLOOKUP(C28,WheatChemicals,4,FALSE)","v":"None"},0,{"$f":"VLOOKUP(C28,WheatChemicals,3,FALSE)","v":1},0,{"$f":"VLOOKUP(C28,WheatChemicals,2,FALSE)","v":0},{"$f":"H28/G28*F28","v":0},null,"None",{"$f":"VLOOKUP(L28,WheatChemicals,6,FALSE)","v":0},{"$f":"VLOOKUP(L28,WheatChemicals,4,FALSE)","v":"None"},0,{"$f":"VLOOKUP(L28,WheatChemicals,3,FALSE)","v":1},0,{"$f":"VLOOKUP(L28,WheatChemicals,2,FALSE)","v":0},{"$f":"Q28/P28*O28","v":0},null,null,"None",{"$f":"VLOOKUP(V28,WheatChemicals,6,FALSE)","v":0},{"$f":"VLOOKUP(V28,WheatChemicals,4,FALSE)","v":"None"},0,{"$f":"VLOOKUP(V28,WheatChemicals,3,FALSE)","v":1},0,{"$f":"VLOOKUP(V28,WheatChemicals,2,FALSE)","v":0},{"$f":"AA28/Z28*Y28","v":0},null,"None",{"$f":"VLOOKUP(AE28,WheatChemicals,6,FALSE)","v":0},{"$f":"VLOOKUP(AE28,WheatChemicals,4,FALSE)","v":"None"},0,{"$f":"VLOOKUP(AE28,WheatChemicals,3,FALSE)","v":1},0,{"$f":"VLOOKUP(AE28,WheatChemicals,2,FALSE)","v":0},{"$f":"AJ28/AI28*AH28","v":0}]
[null,null,"None",{"$f":"VLOOKUP(C29,WheatChemicals,6,FALSE)","v":0},{"$f":"VLOOKUP(C29,WheatChemicals,4,FALSE)","v":"None"},0,{"$f":"VLOOKUP(C29,WheatChemicals,3,FALSE)","v":1},0,{"$f":"VLOOKUP(C29,WheatChemicals,2,FALSE)","v":0},0,null,"None",{"$f":"VLOOKUP(L29,WheatChemicals,6,FALSE)","v":0},{"$f":"VLOOKUP(L29,WheatChemicals,4,FALSE)","v":"None"},0,{"$f":"VLOOKUP(L29,WheatChemicals,3,FALSE)","v":1},0,{"$f":"VLOOKUP(L29,WheatChemicals,2,FALSE)","v":0},0,null,null,"None",{"$f":"VLOOKUP(V29,WheatChemicals,6,FALSE)","v":0},{"$f":"VLOOKUP(V29,WheatChemicals,4,FALSE)","v":"None"},0,{"$f":"VLOOKUP(V29,WheatChemicals,3,FALSE)","v":1},0,{"$f":"VLOOKUP(V29,WheatChemicals,2,FALSE)","v":0},0,null,"None",{"$f":"VLOOKUP(AE29,WheatChemicals,6,FALSE)","v":0},{"$f":"VLOOKUP(AE29,WheatChemicals,4,FALSE)","v":"None"},0,{"$f":"VLOOKUP(AE29,WheatChemicals,3,FALSE)","v":1},0,{"$f":"VLOOKUP(AE29,WheatChemicals,2,FALSE)","v":0},0]
[null,null,"None",{"$f":"VLOOKUP(C30,WheatChemicals,6,FALSE)","v":0},{"$f":"VLOOKUP(C30,WheatChemicals,4,FALSE)","v":"None"},0,{"$f":"VLOOKUP(C30,WheatChemicals,3,FALSE)","v":1},0,{"$f":"VLOOKUP(C30,WheatChemicals,2,FALSE)","v":0},0,null,"None",{"$f":"VLOOKUP(L30,WheatChemicals,6,FALSE)","v":0},{"$f":"VLOOKUP(L30,WheatChemicals,4,FALSE)","v":"None"},0,{"$f":"VLOOKUP(L30,WheatChemicals,3,FALSE)","v":1},0,{"$f":"VLOOKUP(L30,WheatChemicals,2,FALSE)","v":0},0,null,null,"None",{"$f":"VLOOKUP(V30,WheatChemicals,6,FALSE)","v":0},{"$f":"VLOOKUP(V30,WheatChemicals,4,FALSE)","v":"None"},0,{"$f":"VLOOKUP(V30,WheatChemicals,3,FALSE)","v":1},0,{"$f":"VLOOKUP(V30,WheatChemicals,2,FALSE)","v":0},0,null,"None",{"$f":"VLOOKUP(AE30,WheatChemicals,6,FALSE)","v":0},{"$f":"VLOOKUP(AE30,WheatChemicals,4,FALSE)","v":"None"},0,{"$f":"VLOOKUP(AE30,WheatChemicals,3,FALSE)","v":1},0,{"$f":"VLOOKUP(AE30,WheatChemicals,2,FALSE)","v":0},0]
[]
[null,null,"Adjuvants (drop down menu)",null,null,"(Enter Below)",null,"(Enter Below)",null,null,null,"Adjuvants (drop down menu)",null,null,"(Enter Below)",null,"(Enter Below)",null,null,null,null,"Adjuvants (drop down menu)",null,null,"(Enter Below)",null,"(Enter Below)",null,null,null,"Adjuvants (drop down menu)",null,null,"(Enter Below)",null,"(Enter Below)"]
[null,null,"None",null,{"$f":"VLOOKUP(C33,Adjuvants,4,FALSE)","v":"None"},0,{"$f":"VLOOKUP(C33,Adjuvants,3,FALSE)","v":1},0,{"$f":"VLOOKUP(C33,Adjuvants,2,FALSE)","v":0},{"$f":"H33/G33*F33","v":0},null,"None",null,{"$f":"VLOOKUP(L33,Adjuvants,4,FALSE)","v":"None"},0,{"$f":"VLOOKUP(L33,Adjuvants,3,FALSE)","v":1},0,{"$f":"VLOOKUP(L33,Adjuvants,2,FALSE)","v":0},{"$f":"Q33/P33*O33","v":0},null,null,"None",null,{"$f":"VLOOKUP(V33,Adjuvants,4,FALSE)","v":"None"},0,{"$f":"VLOOKUP(V33,Adjuvants,3,FALSE)","v":1},0,{"$f":"VLOOKUP(V33,Adjuvants,2,FALSE)","v":0},{"$f":"AA33/Z33*Y33","v":0},null,"None",null,{"$f":"VLOOKUP(AE33,Adjuvants,4,FALSE)","v":"None"},0,{"$f":"VLOOKUP(AE33,Adjuvants,3,FALSE)","v":1},0,{"$f":"VLOOKUP(AE33,Adjuvants,2,FALSE)","v":0},{"$f":"AJ33/AI33*AH33","v":0}]
[null,null,"None",null,{"$f":"VLOOKUP(C34,Adjuvants,4,FALSE)","v":"None"},0,{"$f":"VLOOKUP(C34,Adjuvants,3,FALSE)","v":1},0,{"$f":"VLOOKUP(C34,Adjuvants,2,FALSE)","v":0},{"$f":"H34/G34*F34","v":0},null,"None",null,{"$f":"VLOOKUP(L34,Adjuvants,4,FALSE)","v":"None"},0,{"$f":"VLOOKUP(L34,Adjuvants,3,FALSE)","v":1},0,{"$f":"VLOOKUP(L34,Adjuvants,2,FALSE)","v":0},{"$f":"Q34/P34*O34","v":0},null,null,"None",null,{"$f":"VLOOKUP(V34,Adjuvants,4,FALSE)","v":"None"},0,{"$f":"VLOOKUP(V34,Adjuvants,3,FALSE)","v":1},0,{"$f":"VLOOKUP(V34,Adjuvants,2,FALSE)","v":0},{"$f":"AA34/Z34*Y34","v":0},null,"None",null,{"$f":"VLOOKUP(AE34,Adjuvants,4,FALSE)","v":"None"},0,{"$f":"VLOOKUP(AE34,Adjuvants,3,FALSE)","v":1},0,{"$f":"VLOOKUP(AE34,Adjuvants,2,FALSE)","v":0},{"$f":"AJ34/AI34*AH34","v":0}]
[null,null,"None",null,{"$f":"VLOOKUP(C35,Adjuvants,4,FALSE)","v":"None"},0,{"$f":"VLOOKUP(C35,Adjuvants,3,FALSE)","v":1},0,{"$f":"VLOOKUP(C35,Adjuvants,2,FALSE)","v":0},{"$f":"H35/G35*F35","v":0},null,"None",null,{"$f":"VLOOKUP(L35,Adjuvants,4,FALSE)","v":"None"},0,{"$f":"VLOOKUP(L35,Adjuvants,3,FALSE)","v":1},0,{"$f":"VLOOKUP(L35,Adjuvants,2,FALSE)","v":0},{"$f":"Q35/P35*O35","v":0},null,null,"None",null,{"$f":"VLOOKUP(V35,Adjuvants,4,FALSE)","v":"None"},0,{"$f":"VLOOKUP(V35,Adjuvants,3,FALSE)","v":1},0,{"$f":"VLOOKUP(V35,Adjuvants,2,FALSE)","v":0},{"$f":"AA35/Z35*Y35","v":0},null,"None",null,{"$f":"VLOOKUP(AE35,Adjuvants,4,FALSE)","v":"None"},0,{"$f":"VLOOKUP(AE35,Adjuvants,3,FALSE)","v":1},0,{"$f":"VLOOKUP(AE35,Adjuvants,2,FALSE)","v":0},{"$f":"AJ35/AI35*AH35","v":0}]
[null,null,"None",null,{"$f":"VLOOKUP(C36,Adjuvants,4,FALSE)","v":"None"},0,{"$f":"VLOOKUP(C36,Adjuvants,3,FALSE)","v":1},0,{"$f":"VLOOKUP(C36,Adjuvants,2,FALSE)","v":0},{"$f":"H36/G36*F36","v":0},null,"None",null,{"$f":"VLOOKUP(L36,Adjuvants,4,FALSE)","v":"None"},0,{"$f":"VLOOKUP(L36,Adjuvants,3,FALSE)","v":1},0,{"$f":"VLOOKUP(L36,Adjuvants,2,FALSE)","v":0},{"$f":"Q36/P36*O36","v":0},null,null,"None",null,{"$f":"VLOOKUP(V36,Adjuvants,4,FALSE)","v":"None"},0,{"$f":"VLOOKUP(V36,Adjuvants,3,FALSE)","v":1},0,{"$f":"VLOOKUP(V36,Adjuvants,2,FALSE)","v":0},{"$f":"AA36/Z36*Y36","v":0},null,"None",null,{"$f":"VLOOKUP(AE36,Adjuvants,4,FALSE)","v":"None"},0,{"$f":"VLOOKUP(AE36,Adjuvants,3,FALSE)","v":1},0,{"$f":"VLOOKUP(AE36,Adjuvants,2,FALSE)","v":0},{"$f":"AJ36/AI36*AH36","v":0}]
[null,null,"None",null,{"$f":"VLOOKUP(C37,Adjuvants,4,FALSE)","v":"None"},0,{"$f":"VLOOKUP(C37,Adjuvants,3,FALSE)","v":1},0,{"$f":"VLOOKUP(C37,Adjuvants,2,FALSE)","v":0},0,null,"None",null,{"$f":"VLOOKUP(L37,Adjuvants,4,FALSE)","v":"None"},0,{"$f":"VLOOKUP(L37,Adjuvants,3,FALSE)","v":1},0,{"$f":"VLOOKUP(L37,Adjuvants,2,FALSE)","v":0},0,null,null,"None",null,{"$f":"VLOOKUP(V37,Adjuvants,4,FALSE)","v":"None"},0,{"$f":"VLOOKUP(V37,Adjuvants,3,FALSE)","v":1},0,{"$f":"VLOOKUP(V37,Adjuvants,2,FALSE)","v":0},0,null,"None",null,{"$f":"VLOOKUP(AE37,Adjuvants,4,FALSE)","v":"None"},0,{"$f":"VLOOKUP(AE37,Adjuvants,3,FALSE)","v":1},0,{"$f":"VLOOKUP(AE37,Adjuvants,2,FALSE)","v":0},0]
[]
[null,null,"1st Application of Post-Emergence Herbicides Cost/Acre",null,null,null,null,null,null,{"$f":"SUM(J26:J37)","v":0},null,"2nd Application of Post-Emergence Herbicides Cost/Acre",null,null,null,null,null,null,{"$f":"SUM(S26:S37)","v":0},null,null,"1st Application of Post-Emergence Herbicides Cost/Acre",null,null,null,null,null,null,{"$f":"SUM(AC26:AC37)","v":0},null,"2nd Application of Post-Emergence Herbicides Cost/Acre",null,null,null,null,null,null,{"$f":"SUM(AL26:AL37)","v":0}]
[]
[null,null,null,null,null,null,null,null,null,null,null,"Summary Cost/Acre (Herbicides Only)",null,null,null,null,null,null,null,null,null,null,null,null,null,null,null,null,null,null,"Summary Cost/Acre (Herbicides Only)"]
[null,null,"Plan Year",null,null,null,null,null,null,null,null,null,null,null,null,null,null,null,null,null,null,{"$f":"C42","v":"Plan Year"}]
[null,null,"Farm Name",null,null,null,null,null,null,null,null,null,null,null,null,null,null,null,null,null,null,{"$f":"C43","v":"Farm Name"}]
[null,null,"Farm Tract",null,null,null,null,null,null,null,null,"Pre-plant/Pre-emergence/Burndown Total Cost/Acre",null,null,null,null,null,null,{"$f":"J20+S20","v":0},null,null,{"$f":"C44","v":"Farm Tract"},null,null,null,null,null,null,null,null,"Pre-plant/Pre-emergence/Burndown Total Cost/Acre",null,null,null,null,null,null,{"$f":"AC20+AL20","v":0}]
[null,null,"Farm Number",null,null,null,null,null,null,null,null,null,null,null,null,null,null,null,null,null,null,"Farm Number"]
[null,null,null,null,null,null,null,null,null,null,null,"Post-emergence Total Cost/Acre",null,null,null,null,null,null,{"$f":"J39+S39","v":0},null,null,null,null,null,null,null,null,null,null,null,"Post-emergence Total Cost/Acre",null,null,null,null,null,null,{"$f":"AC39+AL39","v":0}]
[]
[null,null,null,null,null,null,null,null,null,null,null,"Total Herbicide Cost/Acre",null,null,null,null,null,null,{"$f":"S39+J39+S20+J20","v":0},null,null,null,null,null,null,null,null,null,null,null,"Total Herbicide Cost/Acre",null,null,null,null,null,null,{"$f":"AL39+AC39+AL20+AC20","v":0}]
[]
[]
[null,null,"Fungicide & Insecticide Chemicals",null,null,null,null,null,null,null,null,null,null,null,null,null,null,null,null,null,null,"Fungicide & Insecticide Chemicals"]
[null,null,"1st Application of Fungicides",null,null,null,null,null,null,null,null,"2nd Application of Fungicides",null,null,null,null,null,null,null,null,null,"None",null,null,null,null,null,null,null,null,"2nd Application of Fungicides"]
[null,null,"Brand","Active Ingredient(s)","Purchase Units","Package Price (Gals, Lbs, etc.)","Units/Pkg","Rate/Acre","Rate Units","Cost",null,"Brand","Active Ingredient(s)","Purchase Units","Package Price (Gals, Lbs, etc.)","Units/Pkg","Rate/Acre","Rate Units","Cost",null,null,"Brand","Active Ingredient(s)","Purchase Units","Package Price (Gals, Lbs, etc.)","Units/Pkg","Rate/Acre","Rate Units","Cost",null,"Brand","Active Ingredient(s)","Purchase Units","Package Price (Gals, Lbs, etc.)","Units/Pkg","Rate/Acre","Rate Units","Cost"]
[null,null,"Fungicides (drop down menu)",null,null,"(Enter Below)",null,"(Enter Below)",null,null,null,"Fungicides (drop down menu)",null,null,"(Enter Below)",null,"(Enter Below)",null,null,null,null,"Fungicides (drop down menu)",null,null,"(Enter Below)",null,"(Enter Below)",null,null,null,"Fungicides (drop down menu)",null,null,"(Enter Below)",null,"(Enter Below)"]
[null,null,"None",{"$f":"VLOOKUP(C55,WheatFungicides,6,FALSE)","v":"None"},{"$f":"VLOOKUP(C55,WheatFungicides,4,FALSE)","v":"None"},0,{"$f":"VLOOKUP(C55,WheatFungicides,3,FALSE)","v":1},0,{"$f":"VLOOKUP(C55,WheatFungicides,2,FALSE)","v":0},{"$f":"H55/G55*F55","v":0},null,"None",{"$f":"VLOOKUP(L55,WheatFungicides,6,FALSE)","v":"None"},{"$f":"VLOOKUP(L55,WheatFungicides,4,FALSE)","v":"None"},0,{"$f":"VLOOKUP(L55,WheatFungicides,3,FALSE)","v":1},0,{"$f":"VLOOKUP(L55,WheatFungicides,2,FALSE)","v":0},{"$f":"Q55/P55*O55","v":0},null,null,"None",{"$f":"VLOOKUP(V55,WheatFungicides,6,FALSE)","v":"None"},{"$f":"VLOOKUP(V55,WheatFungicides,4,FALSE)","v":"None"},0,{"$f":"VLOOKUP(V55,WheatFungicides,3,FALSE)","v":1},0,{"$f":"VLOOKUP(V55,WheatFungicides,2,FALSE)","v":0},{"$f":"AA55/Z55*Y55","v":0},null,"None",{"$f":"VLOOKUP(AE55,WheatFungicides,6,FALSE)","v":"None"},{"$f":"VLOOKUP(AE55,WheatFungicides,4,FALSE)","v":"None"},0,{"$f":"VLOOKUP(AE55,WheatFungicides,3,FALSE)","v":1},0,{"$f":"VLOOKUP(AE55,WheatFungicides,2,FALSE)","v":0},{"$f":"AJ55/AI55*AH55","v":0}]
[null,null,"None",{"$f":"VLOOKUP(C56,WheatFungicides,6,FALSE)","v":"None"},{"$f":"VLOOKUP(C56,WheatFungicides,4,FALSE)","v":"None"},0,{"$f":"VLOOKUP(C56,WheatFungicides,3,FALSE)","v":1},0,{"$f":"VLOOKUP(C56,WheatFungicides,2,FALSE)","v":0},{"$f":"H56/G56*F56","v":0},null,"None",{"$f":"VLOOKUP(L56,WheatFungicides,6,FALSE)","v":"None"},{"$f":"VLOOKUP(L56,WheatFungicides,4,FALSE)","v":"None"},0,{"$f":"VLOOKUP(L56,WheatFungicides,3,FALSE)","v":1},0,{"$f":"VLOOKUP(L56,WheatFungicides,2,FALSE)","v":0},{"$f":"Q56/P56*O56","v":0},null,null,"None",{"$f":"VLOOKUP(V56,WheatFungicides,6,FALSE)","v":"None"},{"$f":"VLOOKUP(V56,WheatFungicides,4,FALSE)","v":"None"},0,{"$f":"VLOOKUP(V56,WheatFungicides,3,FALSE)","v":1},0,{"$f":"VLOOKUP(V56,WheatFungicides,2,FALSE)","v":0},{"$f":"AA56/Z56*Y56","v":0},null,"None",{"$f":"VLOOKUP(AE56,WheatFungicides,6,FALSE)","v":"None"},{"$f":"VLOOKUP(AE56,WheatFungicides,4,FALSE)","v":"None"},0,{"$f":"VLOOKUP(AE56,WheatFungicides,3,FALSE)","v":1},0,{"$f":"VLOOKUP(AE56,WheatFungicides,2,FALSE)","v":0},{"$f":"AJ56/AI56*AH56","v":0}]
[null,null,"None",{"$f":"VLOOKUP(C57,WheatFungicides,6,FALSE)","v":"None"},{"$f":"VLOOKUP(C57,WheatFungicides,4,FALSE)","v":"None"},0,{"$f":"VLOOKUP(C57,WheatFungicides,3,FALSE)","v":1},0,{"$f":"VLOOKUP(C57,WheatFungicides,2,FALSE)","v":0},0,null,"None",{"$f":"VLOOKUP(L57,WheatFungicides,6,FALSE)","v":"None"},{"$f":"VLOOKUP(L57,WheatFungicides,4,FALSE)","v":"None"},0,{"$f":"VLOOKUP(L57,WheatFungicides,3,FALSE)","v":1},0,{"$f":"VLOOKUP(L57,WheatFungicides,2,FALSE)","v":0},0,null,null,"None",{"$f":"VLOOKUP(V57,WheatFungicides,6,FALSE)","v":"None"},{"$f":"VLOOKUP(V57,WheatFungicides,4,FALSE)","v":"None"},0,{"$f":"VLOOKUP(V57,WheatFungicides,3,FALSE)","v":1},0,{"$f":"VLOOKUP(V57,WheatFungicides,2,FALSE)","v":0},0,null,"None",{"$f":"VLOOKUP(AE57,WheatFungicides,6,FALSE)","v":"None"},{"$f":"VLOOKUP(AE57,WheatFungicides,4,FALSE)","v":"None"},0,{"$f":"VLOOKUP(AE57,WheatFungicides,3,FALSE)","v":1},0,{"$f":"VLOOKUP(AE57,WheatFungicides,2,FALSE)","v":0},0]
[]
[null,null,"Adjuvants (drop down menu)",null,null,"(Enter Below)",null,"(Enter Below)",null,null,null,"Adjuvants (drop down menu)",null,null,"(Enter Below)",null,"(Enter Below)",null,null,null,null,"Adjuvants (drop down menu)",null,null,"(Enter Below)",null,"(Enter Below)",null,null,null,"Adjuvants (drop down menu)",null,null,"(Enter Below)",null,"(Enter Below)"]
[null,null,"None",null,{"$f":"VLOOKUP($C60,Adjuvants,4,FALSE)","v":"None"},0,{"$f":"VLOOKUP(C60,Adjuvants,3,FALSE)","v":1},0,{"$f":"VLOOKUP(C60,Adjuvants,2,FALSE)","v":0},{"$f":"H60/G60*F60","v":0},null,"None",null,{"$f":"VLOOKUP($L60,Adjuvants,4,FALSE)","v":"None"},0,{"$f":"VLOOKUP(L60,Adjuvants,3,FALSE)","v":1},0,{"$f":"VLOOKUP(L60,Adjuvants,2,FALSE)","v":0},{"$f":"Q60/P60*O60","v":0},null,null,"None",null,{"$f":"VLOOKUP($C60,Adjuvants,4,FALSE)","v":"None"},0,{"$f":"VLOOKUP(V60,Adjuvants,3,FALSE)","v":1},0,{"$f":"VLOOKUP(V60,Adjuvants,2,FALSE)","v":0},{"$f":"AA60/Z60*Y60","v":0},null,"None",null,{"$f":"VLOOKUP($C60,Adjuvants,4,FALSE)","v":"None"},0,{"$f":"VLOOKUP(AE60,Adjuvants,3,FALSE)","v":1},0,{"$f":"VLOOKUP(AE60,Adjuvants,2,FALSE)","v":0},{"$f":"AJ60/AI60*AH60","v":0}]
[null,null,"None",null,{"$f":"VLOOKUP($C61,Adjuvants,4,FALSE)","v":"None"},0,{"$f":"VLOOKUP(C61,Adjuvants,3,FALSE)","v":1},0,{"$f":"VLOOKUP(C61,Adjuvants,2,FALSE)","v":0},{"$f":"H61/G61*F61","v":0},null,"None",null,{"$f":"VLOOKUP($L61,Adjuvants,4,FALSE)","v":"None"},0,{"$f":"VLOOKUP(L61,Adjuvants,3,FALSE)","v":1},0,{"$f":"VLOOKUP(L61,Adjuvants,2,FALSE)","v":0},{"$f":"Q61/P61*O61","v":0},null,null,"None",null,{"$f":"VLOOKUP($C61,Adjuvants,4,FALSE)","v":"None"},0,{"$f":"VLOOKUP(V61,Adjuvants,3,FALSE)","v":1},0,{"$f":"VLOOKUP(V61,Adjuvants,2,FALSE)","v":0},{"$f":"AA61/Z61*Y61","v":0},null,"None",null,{"$f":"VLOOKUP($C61,Adjuvants,4,FALSE)","v":"None"},0,{"$f":"VLOOKUP(AE61,Adjuvants,3,FALSE)","v":1},0,{"$f":"VLOOKUP(AE61,Adjuvants,2,FALSE)","v":0},{"$f":"AJ61/AI61*AH61","v":0}]
[null,null,"None",null,{"$f":"VLOOKUP($C62,Adjuvants,4,FALSE)","v":"None"},0,{"$f":"VLOOKUP(C62,Adjuvants,3,FALSE)","v":1},0,{"$f":"VLOOKUP(C62,Adjuvants,2,FALSE)","v":0},0,null,"None",null,{"$f":"VLOOKUP($L62,Adjuvants,4,FALSE)","v":"None"},0,{"$f":"VLOOKUP(L62,Adjuvants,3,FALSE)","v":1},0,{"$f":"VLOOKUP(L62,Adjuvants,2,FALSE)","v":0},0,null,null,"None",null,{"$f":"VLOOKUP($C62,Adjuvants,4,FALSE)","v":"None"},0,{"$f":"VLOOKUP(V62,Adjuvants,3,FALSE)","v":1},0,{"$f":"VLOOKUP(V62,Adjuvants,2,FALSE)","v":0},0,null,"None",null,{"$f":"VLOOKUP($C62,Adjuvants,4,FALSE)","v":"None"},0,{"$f":"VLOOKUP(AE62,Adjuvants,3,FALSE)","v":1},0,{"$f":"VLOOKUP(AE62,Adjuvants,2,FALSE)","v":0},0]
[null,null,"None",null,{"$f":"VLOOKUP($C63,Adjuvants,4,FALSE)","v":"None"},0,{"$f":"VLOOKUP(C63,Adjuvants,3,FALSE)","v":1},0,{"$f":"VLOOKUP(C63,Adjuvants,2,FALSE)","v":0},0,null,"None",null,{"$f":"VLOOKUP($L63,Adjuvants,4,FALSE)","v":"None"},0,{"$f":"VLOOKUP(L63,Adjuvants,3,FALSE)","v":1},0,{"$f":"VLOOKUP(L63,Adjuvants,2,FALSE)","v":0},0,null,null,"None",null,{"$f":"VLOOKUP($C63,Adjuvants,4,FALSE)","v":"None"},0,{"$f":"VLOOKUP(V63,Adjuvants,3,FALSE)","v":1},0,{"$f":"VLOOKUP(V63,Adjuvants,2,FALSE)","v":0},0,null,"None",null,{"$f":"VLOOKUP($C63,Adjuvants,4,FALSE)","v":"None"},0,{"$f":"VLOOKUP(AE63,Adjuvants,3,FALSE)","v":1},0,{"$f":"VLOOKUP(AE63,Adjuvants,2,FALSE)","v":0},0]
[null,null,"None",null,{"$f":"VLOOKUP($C64,Adjuvants,4,FALSE)","v":"None"},0,{"$f":"VLOOKUP(C64,Adjuvants,3,FALSE)","v":1},0,{"$f":"VLOOKUP(C64,Adjuvants,2,FALSE)","v":0},0,null,"None",null,{"$f":"VLOOKUP($L64,Adjuvants,4,FALSE)","v":"None"},0,{"$f":"VLOOKUP(L64,Adjuvants,3,FALSE)","v":1},0,{"$f":"VLOOKUP(L64,Adjuvants,2,FALSE)","v":0},0,null,null,"None",null,{"$f":"VLOOKUP($C64,Adjuvants,4,FALSE)","v":"None"},0,{"$f":"VLOOKUP(V64,Adjuvants,3,FALSE)","v":1},0,{"$f":"VLOOKUP(V64,Adjuvants,2,FALSE)","v":0},0,null,"None",null,{"$f":"VLOOKUP($C64,Adjuvants,4,FALSE)","v":"None"},0,{"$f":"VLOOKUP(AE64,Adjuvants,3,FALSE)","v":1},0,{"$f":"VLOOKUP(AE64,Adjuvants,2,FALSE)","v":0},0]
[]
[null,null,"Fungicide Cost/Acre",null,null,null,null,null,null,{"$f":"SUM(J55:J64)","v":0},null,"Fungicide Cost/Acre",null,null,null,null,null,null,{"$f":"SUM(S55:S64)","v":0},null,null,"Fungicide Cost/Acre",null,null,null,null,null,null,{"$f":"SUM(AC55:AC64)","v":0},null,"Fungicide Cost/Acre",null,null,null,null,null,null,{"$f":"SUM(AL55:AL64)","v":0}]
[]
[null,null,"1st Application of Insecticides",null,null,null,null,null,null,null,null,"2nd Application of Insecticides",null,null,null,null,null,null,null,null,null,"1st Application of Insecticides",null,null,null,null,null,null,null,null,"2nd Application of Insecticides"]
[null,null,"Brand","Active Ingredient(s)","Purchase Units","Package Price (Gals, Lbs, etc.)","Units/Pkg","Rate/Acre","Rate Units","Cost",null,"Brand","Active Ingredient(s)","Purchase Units","Package Price (Gals, Lbs, etc.)","Units/Pkg","Rate/Acre","Rate Units","Cost",null,null,"Brand","Active Ingredient(s)","Purchase Units","Package Price (Gals, Lbs, etc.)","Units/Pkg","Rate/Acre","Rate Units","Cost",null,"Brand","Active Ingredient(s)","Purchase Units","Package Price (Gals, Lbs, etc.)","Units/Pkg","Rate/Acre","Rate Units","Cost"]
[null,null,"Insecticides (drop down menu)",null,null,"(Enter Below)",null,"(Enter Below)",null,null,null,"Insecticides (drop down menu)",null,null,"(Enter Below)",null,"(Enter Below)",null,null,null,null,"Insecticides (drop down menu)",null,null,"(Enter Below)",null,"(Enter Below)",null,null,null,"Insecticides (drop down menu)",null,null,"(Enter Below)",null,"(Enter Below)"]
[null,null,"None",{"$f":"VLOOKUP(C71,WheatInsecticides,6,FALSE)","v":"None"},{"$f":"VLOOKUP(C71,WheatFungicides+WheatInsecticides,4,FALSE)","v":{"$error":"#N/A"}},0,{"$f":"VLOOKUP(C71,WheatInsecticides,3,FALSE)","v":1},0,{"$f":"VLOOKUP(C71,WheatInsecticides,2,FALSE)","v":0},{"$f":"H71/G71*F71","v":0},null,"None",{"$f":"VLOOKUP(L71,WheatInsecticides,6,FALSE)","v":"None"},{"$f":"VLOOKUP(L71,WheatFungicides+WheatInsecticides,4,FALSE)","v":{"$error":"#N/A"}},0,{"$f":"VLOOKUP(L71,WheatInsecticides,3,FALSE)","v":1},0,{"$f":"VLOOKUP(L71,WheatInsecticides,2,FALSE)","v":0},{"$f":"Q71/P71*O71","v":0},null,null,"None",{"$f":"VLOOKUP(V71,WheatInsecticides,6,FALSE)","v":"None"},{"$f":"VLOOKUP(V71,WheatFungicides+WheatInsecticides,4,FALSE)","v":{"$error":"#N/A"}},0,{"$f":"VLOOKUP(V71,WheatInsecticides,3,FALSE)","v":1},0,{"$f":"VLOOKUP(V71,WheatInsecticides,2,FALSE)","v":0},{"$f":"AA71/Z71*Y71","v":0},null,"None",{"$f":"VLOOKUP(AE71,WheatInsecticides,6,FALSE)","v":"None"},{"$f":"VLOOKUP(AE71,WheatFungicides+WheatInsecticides,4,FALSE)","v":{"$error":"#N/A"}},0,{"$f":"VLOOKUP(AE71,WheatInsecticides,3,FALSE)","v":1},0,{"$f":"VLOOKUP(AE71,WheatInsecticides,2,FALSE)","v":0},{"$f":"AJ71/AI71*AH71","v":0}]
[null,null,"None",{"$f":"VLOOKUP(C72,WheatInsecticides,6,FALSE)","v":"None"},{"$f":"VLOOKUP(C72,WheatFungicides+WheatInsecticides,4,FALSE)","v":{"$error":"#N/A"}},0,{"$f":"VLOOKUP(C72,WheatInsecticides,3,FALSE)","v":1},0,{"$f":"VLOOKUP(C72,WheatInsecticides,2,FALSE)","v":0},{"$f":"H72/G72*F72","v":0},null,"None",{"$f":"VLOOKUP(L72,WheatInsecticides,6,FALSE)","v":"None"},{"$f":"VLOOKUP(L72,WheatFungicides+WheatInsecticides,4,FALSE)","v":{"$error":"#N/A"}},0,{"$f":"VLOOKUP(L72,WheatInsecticides,3,FALSE)","v":1},0,{"$f":"VLOOKUP(L72,WheatInsecticides,2,FALSE)","v":0},{"$f":"Q72/P72*O72","v":0},null,null,"None",{"$f":"VLOOKUP(V72,WheatInsecticides,6,FALSE)","v":"None"},{"$f":"VLOOKUP(V72,WheatFungicides+WheatInsecticides,4,FALSE)","v":{"$error":"#N/A"}},0,{"$f":"VLOOKUP(V72,WheatInsecticides,3,FALSE)","v":1},0,{"$f":"VLOOKUP(V72,WheatInsecticides,2,FALSE)","v":0},{"$f":"AA72/Z72*Y72","v":0},null,"None",{"$f":"VLOOKUP(AE72,WheatInsecticides,6,FALSE)","v":"None"},{"$f":"VLOOKUP(AE72,WheatFungicides+WheatInsecticides,4,FALSE)","v":{"$error":"#N/A"}},0,{"$f":"VLOOKUP(AE72,WheatInsecticides,3,FALSE)","v":1},0,{"$f":"VLOOKUP(AE72,WheatInsecticides,2,FALSE)","v":0},{"$f":"AJ72/AI72*AH72","v":0}]
[null,null,"None",{"$f":"VLOOKUP(C73,WheatInsecticides,6,FALSE)","v":"None"},{"$f":"VLOOKUP(C73,WheatFungicides+WheatInsecticides,4,FALSE)","v":{"$error":"#N/A"}},0,{"$f":"VLOOKUP(C73,WheatInsecticides,3,FALSE)","v":1},0,{"$f":"VLOOKUP(C73,WheatInsecticides,2,FALSE)","v":0},0,null,"None",{"$f":"VLOOKUP(L73,WheatInsecticides,6,FALSE)","v":"None"},{"$f":"VLOOKUP(L73,WheatFungicides+WheatInsecticides,4,FALSE)","v":{"$error":"#N/A"}},0,{"$f":"VLOOKUP(L73,WheatInsecticides,3,FALSE)","v":1},0,{"$f":"VLOOKUP(L73,WheatInsecticides,2,FALSE)","v":0},0,null,null,"None",{"$f":"VLOOKUP(V73,WheatInsecticides,6,FALSE)","v":"None"},{"$f":"VLOOKUP(V73,WheatFungicides+WheatInsecticides,4,FALSE)","v":{"$error":"#N/A"}},0,{"$f":"VLOOKUP(V73,WheatInsecticides,3,FALSE)","v":1},0,{"$f":"VLOOKUP(V73,WheatInsecticides,2,FALSE)","v":0},0,null,"None",{"$f":"VLOOKUP(AE73,WheatInsecticides,6,FALSE)","v":"None"},{"$f":"VLOOKUP(AE73,WheatFungicides+WheatInsecticides,4,FALSE)","v":{"$error":"#N/A"}},0,{"$f":"VLOOKUP(AE73,WheatInsecticides,3,FALSE)","v":1},0,{"$f":"VLOOKUP(AE73,WheatInsecticides,2,FALSE)","v":0},0]
[]
[null,null,"Adjuvants (drop down menu)",null,null,"(Enter Below)",null,"(Enter Below)",null,null,null,"Adjuvants (drop down menu)",null,null,"(Enter Below)",null,"(Enter Below)",null,null,null,null,"Adjuvants (drop down menu)",null,null,"(Enter Below)",null,"(Enter Below)",null,null,null,"Adjuvants (drop down menu)",null,null,"(Enter Below)",null,"(Enter Below)"]
[null,null,"None",null,{"$f":"VLOOKUP(#REF!,Adjuvants,4,FALSE)","v":{"$error":"#REF!"}},0,{"$f":"VLOOKUP(C76,Adjuvants,3,FALSE)","v":1},0,{"$f":"VLOOKUP(C76,Adjuvants,2,FALSE)","v":0},{"$f":"H76/G76*F76","v":0},null,"None",null,{"$f":"VLOOKUP(#REF!,Adjuvants,4,FALSE)","v":{"$error":"#REF!"}},0,{"$f":"VLOOKUP(L76,Adjuvants,3,FALSE)","v":1},0,{"$f":"VLOOKUP(L76,Adjuvants,2,FALSE)","v":0},{"$f":"Q76/P76*O76","v":0},null,null,"None",null,{"$f":"VLOOKUP(#REF!,Adjuvants,4,FALSE)","v":{"$error":"#REF!"}},0,{"$f":"VLOOKUP(V76,Adjuvants,3,FALSE)","v":1},0,{"$f":"VLOOKUP(V76,Adjuvants,2,FALSE)","v":0},{"$f":"AA76/Z76*Y76","v":0},null,"None",null,{"$f":"VLOOKUP(#REF!,Adjuvants,4,FALSE)","v":{"$error":"#REF!"}},0,{"$f":"VLOOKUP(AE76,Adjuvants,3,FALSE)","v":1},0,{"$f":"VLOOKUP(AE76,Adjuvants,2,FALSE)","v":0},{"$f":"AJ76/AI76*AH76","v":0}]
[null,null,"None",null,{"$f":"VLOOKUP(#REF!,Adjuvants,4,FALSE)","v":{"$error":"#REF!"}},0,{"$f":"VLOOKUP(C77,Adjuvants,3,FALSE)","v":1},0,{"$f":"VLOOKUP(C77,Adjuvants,2,FALSE)","v":0},{"$f":"H77/G77*F77","v":0},null,"None",null,{"$f":"VLOOKUP(#REF!,Adjuvants,4,FALSE)","v":{"$error":"#REF!"}},0,{"$f":"VLOOKUP(L77,Adjuvants,3,FALSE)","v":1},0,{"$f":"VLOOKUP(L77,Adjuvants,2,FALSE)","v":0},{"$f":"Q77/P77*O77","v":0},null,null,"None",null,{"$f":"VLOOKUP(#REF!,Adjuvants,4,FALSE)","v":{"$error":"#REF!"}},0,{"$f":"VLOOKUP(V77,Adjuvants,3,FALSE)","v":1},0,{"$f":"VLOOKUP(V77,Adjuvants,2,FALSE)","v":0},{"$f":"AA77/Z77*Y77","v":0},null,"None",null,{"$f":"VLOOKUP(#REF!,Adjuvants,4,FALSE)","v":{"$error":"#REF!"}},0,{"$f":"VLOOKUP(AE77,Adjuvants,3,FALSE)","v":1},0,{"$f":"VLOOKUP(AE77,Adjuvants,2,FALSE)","v":0},{"$f":"AJ77/AI77*AH77","v":0}]
[null,null,"None",null,{"$f":"VLOOKUP(#REF!,Adjuvants,4,FALSE)","v":{"$error":"#REF!"}},0,{"$f":"VLOOKUP(C78,Adjuvants,3,FALSE)","v":1},0,{"$f":"VLOOKUP(C78,Adjuvants,2,FALSE)","v":0},0,null,"None",null,{"$f":"VLOOKUP(#REF!,Adjuvants,4,FALSE)","v":{"$error":"#REF!"}},0,{"$f":"VLOOKUP(L78,Adjuvants,3,FALSE)","v":1},0,{"$f":"VLOOKUP(L78,Adjuvants,2,FALSE)","v":0},0,null,null,"None",null,{"$f":"VLOOKUP(#REF!,Adjuvants,4,FALSE)","v":{"$error":"#REF!"}},0,{"$f":"VLOOKUP(V78,Adjuvants,3,FALSE)","v":1},0,{"$f":"VLOOKUP(V78,Adjuvants,2,FALSE)","v":0},0,null,"None",null,{"$f":"VLOOKUP(#REF!,Adjuvants,4,FALSE)","v":{"$error":"#REF!"}},0,{"$f":"VLOOKUP(AE78,Adjuvants,3,FALSE)","v":1},0,{"$f":"VLOOKUP(AE78,Adjuvants,2,FALSE)","v":0},0]
[null,null,"None",null,{"$f":"VLOOKUP(#REF!,Adjuvants,4,FALSE)","v":{"$error":"#REF!"}},0,{"$f":"VLOOKUP(C79,Adjuvants,3,FALSE)","v":1},0,{"$f":"VLOOKUP(C79,Adjuvants,2,FALSE)","v":0},0,null,"None",null,{"$f":"VLOOKUP(#REF!,Adjuvants,4,FALSE)","v":{"$error":"#REF!"}},0,{"$f":"VLOOKUP(L79,Adjuvants,3,FALSE)","v":1},0,{"$f":"VLOOKUP(L79,Adjuvants,2,FALSE)","v":0},0,null,null,"None",null,{"$f":"VLOOKUP(#REF!,Adjuvants,4,FALSE)","v":{"$error":"#REF!"}},0,{"$f":"VLOOKUP(V79,Adjuvants,3,FALSE)","v":1},0,{"$f":"VLOOKUP(V79,Adjuvants,2,FALSE)","v":0},0,null,"None",null,{"$f":"VLOOKUP(#REF!,Adjuvants,4,FALSE)","v":{"$error":"#REF!"}},0,{"$f":"VLOOKUP(AE79,Adjuvants,3,FALSE)","v":1},0,{"$f":"VLOOKUP(AE79,Adjuvants,2,FALSE)","v":0},0]
[null,null,"None",null,{"$f":"VLOOKUP(#REF!,Adjuvants,4,FALSE)","v":{"$error":"#REF!"}},0,{"$f":"VLOOKUP(C80,Adjuvants,3,FALSE)","v":1},0,{"$f":"VLOOKUP(C80,Adjuvants,2,FALSE)","v":0},0,null,"None",null,{"$f":"VLOOKUP(#REF!,Adjuvants,4,FALSE)","v":{"$error":"#REF!"}},0,{"$f":"VLOOKUP(L80,Adjuvants,3,FALSE)","v":1},0,{"$f":"VLOOKUP(L80,Adjuvants,2,FALSE)","v":0},0,null,null,"None",null,{"$f":"VLOOKUP(#REF!,Adjuvants,4,FALSE)","v":{"$error":"#REF!"}},0,{"$f":"VLOOKUP(V80,Adjuvants,3,FALSE)","v":1},0,{"$f":"VLOOKUP(V80,Adjuvants,2,FALSE)","v":0},0,null,"None",null,{"$f":"VLOOKUP(#REF!,Adjuvants,4,FALSE)","v":{"$error":"#REF!"}},0,{"$f":"VLOOKUP(AE80,Adjuvants,3,FALSE)","v":1},0,{"$f":"VLOOKUP(AE80,Adjuvants,2,FALSE)","v":0},0]
[]
[null,null,"Insecticide Cost/Acre",null,null,null,null,null,null,{"$f":"SUM(J71:J80)","v":0},null,"Insecticide Cost/Acre",null,null,null,null,null,null,{"$f":"SUM(S71:S80)","v":0},null,null,"Insecticide Cost/Acre",null,null,null,null,null,null,{"$f":"SUM(AC71:AC80)","v":0},null,"Insecticide Cost/Acre",null,null,null,null,null,null,{"$f":"SUM(AL71:AL80)","v":0}]
[]
[null,null,null,null,null,null,null,null,null,null,null,"Summary Cost/Acre (All Chemistry)",null,null,null,null,null,null,null,null,null,null,null,null,null,null,null,null,null,null,"Summary Cost/Acre (All Chemistry)"]
[]
[]
[null,null,null,null,null,null,null,null,null,null,null,"Fungicide Total Cost/Acre",null,null,null,null,null,null,{"$f":"J66+S66","v":0},null,null,null,null,null,null,null,null,null,null,null,"Fungicide Total Cost/Acre",null,null,null,null,null,null,{"$f":"AC66+AL66","v":0}]
[null,null,{"$f":"C42","v":"Plan Year"},null,null,null,null,null,null,null,null,null,null,null,null,null,null,null,null,null,null,{"$f":"C42","v":"Plan Year"}]
[null,null,{"$f":"C43","v":"Farm Name"},null,null,null,null,null,null,null,null,"Insecticide Total Cost/Acre",null,null,null,null,null,null,{"$f":"J82+S82","v":0},null,null,{"$f":"C43","v":"Farm Name"},null,null,null,null,null,null,null,null,"Insecticide Total Cost/Acre",null,null,null,null,null,null,{"$f":"AC82+AL82","v":0}]
[null,null,{"$f":"C44","v":"Farm Tract"},null,null,null,null,null,null,null,null,null,null,null,null,null,null,null,null,null,null,{"$f":"C44","v":"Farm Tract"}]
[null,null,"Farm Number",null,null,null,null,null,null,null,null,"Total Herbicide Cost/Acre",null,null,null,null,null,null,{"$f":"S48","v":0},null,null,"Farm Number",null,null,null,null,null,null,null,null,"Total Herbicide Cost/Acre",null,null,null,null,null,null,{"$f":"AL48","v":0}]
[]
[null,null,null,null,null,null,null,null,null,null,null,"Total Pesticide Cost/Acre (Herbicide, Fungicide, & Insecticide)",null,null,null,null,null,null,{"$f":"S89+S87+S91","v":0},null,null,null,null,null,null,null,null,null,null,null,"Total Pesticide Cost/Acre (Herbicide, Fungicide, & Insecticide)",null,null,null,null,null,null,{"$f":"AL89+AL87+AL91","v":0}]

{"sheet":"Adjuvant Help Guide","index":4,"n_rows":36,"n_cols":19,"rows_kept":36,"cut":false,"hidden":false,"merged":[[0,15,0,18],[25,0,25,11],[0,0,0,11],[30,4,30,7]]}
["Adjuvant Help Guide",null,null,null,null,null,null,null,null,null,null,null,null,null,null,"Adjuvants"]
[null,null,null,null,null,null,null,null,null,null,null,null,null,null,null,"Name","App Unit","Rate Unit","Selling Unit"]
["Adjuvant (pounds)","(Enter Below)","(Enter Below)",null,null,null,"Gallons",null,null,null,null,null,null,null,null,"None",null,1,"None"]
[null,"Gallons Per Acre","Gallons in Tank","=Acres/Tank",null,null,128,"ounces",null,null,null,null,null,null,null,"Ammonium Sulfate","lb",16,"Pound"]
[null,20,100,{"$f":"C5/B5","v":5},null,null,4,"qts",null,null,null,null,null,null,null,"Ammonium Sulfate (Liquid)","pt",8,"Gallon"]
[null,null,null,null,null,null,8,"pints",null,null,null,null,null,null,null,"Ammonium Sulfate (Replacement)","pt",8,"Gallon"]
[null,"Rate Per Tank (lb)","Acres/Tank","=Rate/Acre",null,null,null,null,null,null,null,null,null,null,null,"Crop Oil Concentrate","pt",8,"Gallon"]
[null,17,{"$f":"D5","v":5},{"$f":"B8/C8","v":3.4},null,null,"Pounds",null,null,null,null,null,null,null,null,"Drift Agent/Spreader","oz",128,"Gallon"]
[null,null,null,null,null,null,16,"ounces",null,null,null,null,null,null,null,"Methylated Seed Oil (MSO)","qt",4,"Gallon"]
["Adjuvant (ounces)","(Enter Below)","(Enter Below)",null,null,null,null,null,null,null,null,null,null,null,null,"Enter","Enter",0,"Enter"]
[null,"Gallons Per Acre","Gallons in Tank","=Acres/Tank",null,null,null,null,null,null,null,null,null,null,null,"Enter","Enter",0,"Enter"]
[null,15,100,{"$f":"C12/B12","v":6.666666666666667},null,null,"v/v % = ","[(volume of solute)/","(volume of solution)]"," x 100%",null,null,null,null,null,"Enter","Enter",0,"Enter"]
[null,null,null,null,null,null,0.125,100,1.25E-3,0.125,"=","1 pint",null,null,null,"Enter","Enter",0,"Enter"]
[null,"Rate Per Tank (oz)","Acres/Tank","=Rate/Acre",null,null,0.25,100,2.5000000000000001E-3,0.25,"=","1 quart"]
[null,16,{"$f":"D12","v":6.666666666666667},{"$f":"B15/C15","v":2.4},null,null,0.5,100,5.0000000000000001E-3,0.5,"=","2 quarts"]
[null,null,null,null,null,null,1,100,0.01,1,"=","1 gallon"]
["Adjuvant (pints)","(Enter Below)","(Enter Below)"]
["(for quarts, multiply by 2)","Gallons Per Acre","Gallons in Tank","=Acres/Tank"]
[null,20,100,{"$f":"C19/B19","v":5}]
[]
[null,"Rate Per Tank (pt)","Acres/Tank","=Rate/Acre"]
[null,2,{"$f":"D19","v":5},{"$f":"B22/C22","v":0.4}]
[]
[]
[]
["Use the Rate/Acre information on the Chemicals expense Tab"]
[]
[]
[]
["Additional Resources:"]
["For more information on Herbicides, see the MSU Weed Control Guide",null,null,null,"Link to MSU Weed Control Guide"]
["For more information on Insecticides, See MSU & OSU Insect Management Guides for Field Crops",null,null,null,null,null,null,"Link to MSU & OSU Insect Management Guides"]
["For more information on Fungicides, see MSU Field Crop Pathology "]
[null,"Corn:","Corn - Field Crop Pathology (msu.edu)"]
[null,"Soybeans:","Soybean - Field Crop Pathology (msu.edu)"]
[null,"Wheat:","Wheat - Field Crop Pathology (msu.edu)"]

{"sheet":"Chemical List (Corn)","index":5,"n_rows":227,"n_cols":15,"rows_kept":227,"cut":false,"hidden":false,"merged":[[1,0,1,5],[53,0,53,5],[111,0,111,5],[141,0,141,5]]}
[1,2,3,4,5,"6"]
["Corn Chemicals (Pre)",null,null,null,null,null,null,null,"Example:","Name","App Unit","Rate Unit","Selling Unit","Timing","Site of Action"]
["Name","App Unit","Rate Unit","Selling Unit","Timing","Site of Action",null,null,null,"2,4-D","pt",8,"Gallon","Post",4]
["None",null,1,"None","None"]
["2,4-D","pt",8,"Gallon","Post",4]
["Acuron","qt",4,"Gallon","Soil Premix","5/15/27/27"]
["Acuron Flex","qt",4,"Gallon","Soil Premix","15/27/27"]
["Anthem ATZ","pt",8,"Gallon","Soil Premix","15/14/5"]
["Anthem Maxx","oz",128,"Ounce","Soil Premix","15/14"]
["Armezon Pro","oz",128,"Ounce","Soil Premix","15/27"]
["Atrazine (Dry)","lb",1,"Pound","Soil","5"]
["Atrazine (Liquid)","qt",4,"Gallon","Soil","5"]
["Balance Flexx","oz",128,"Gallon","Soil","27"]
["Banvel/Clarity","pt",8,"Gallon","Post",4]
["Basis Blend","oz",128,"Ounce","Soil Premix","2/2"]
["Bicip II Magnum Lite/Cinch ATZ Lite","qt",4,"Gallon","Soil Premix","5/15"]
["Bicip II Magnum/Cinch ATZ/Parallel Plus","qt",4,"Gallon","Soil Premix","5/15"]
["Harness XTRA/Keystone NXT","qt",4,"Gallon","Soil Premix","5/15"]
["Degree XTRA/Fultime NXT/Keystone LA NXT","qt",4,"Gallon","Soil Premix","5/15"]
["Harness/Surpass NXT","pt",8,"Gallon","Soil","15"]
["Callisto","oz",128,"Gallon","Soil","27"]
["Callisto Xtra","oz",128,"Gallon","Soil","5/27"]
["Corvus","oz",1,"Ounce","Soil Premix","2/27"]
["Crusher","oz",128,"Ounce","Soil Premix","2/2"]
["Dual II Magnum/Cinch/Parallel","qt",4,"Gallon","Soil","15"]
["Enlist Duo","pt",8,"Gallon","Post Pre-Mix","4/9"]
["Enlist One","pt",8,"Gallon","Post","4"]
["Fierce EZ (7d EPP or more)","oz",128,"Ounce","Soil Premix","14/15"]
["Glyphosate","oz",128,"Gallon","Post",9]
["Harness Max","oz",128,"Ounce","Soil Premix","15/27"]
["Hornet WDG/Stanza","oz",128,"Ounce","Soil Premix","2/4"]
["Impact Core","oz",128,"Ounce","Soil Premix","15/27"]
["Lexar EZ/Lumax EX/Stalwart 3W","qt",4,"Gallon","Soil Premix","5/27/15"]
["Outlook","oz",128,"Gallon","Soil","15"]
["Panoflex (14d EPP)","oz",128,"Ounce","Soil Premix","2/2"]
["Princep","qt",4,"Gallon","Soil","5"]
["Prowl H20 (PRE only)","pt",8,"Gallon","Soil","3"]
["Python/Accolade","oz",128,"Gallon","Soil","2"]
["Resicore","qt",4,"Gallon","Soil Premix","4/15/27"]
["Restraint","oz",128,"Gallon",null,"15/27"]
["Sharpen","oz",128,"Gallon","Soil","14"]
["Stalwart 2W","qt",4,"Gallon","Soil Premix","27/15"]
["Surestart II/TripleFlex II","qt",4,"Gallon","Soil Premix","2/4/15"]
["Valor (7d EPP or more)","oz",128,"Gallon","Soil","14"]
["Verdict","oz",128,"Gallon","Soil Premix","14/15"]
["Warrant","pt",8,"Gallon","Soil","9"]
["Zemax","qt",4,"Gallon","Soil Premix","27/15"]
["Zidua","oz",1,"Gallon","Soil","15"]
["Enter","Enter",0,"Enter","Enter",0]
["Enter","Enter",0,"Enter","Enter",0]
["Enter","Enter",0,"Enter","Enter",0]
["Enter","Enter",0,"Enter","Enter",0]
[]
["Corn Chemicals (Post)"]
["None",null,1,"None","Post"]
["2,4-D","pt",8,"Gallon","Post",4]
["Accent Q","oz",1,"Ounce","Post",2]
["Aim","oz",1,"Ounce","Post",14]
["Acuron GT","pt",8,"Gallon",null,"9/15/27"]
["Anthem ATZ","pt",8,"Gallon","Post Pre-Mix","15/14/5"]
["Anthem Maxx","oz",128,"Gallon","Post Pre-Mix","15/14"]
["Armezon Pro","oz",128,"Ounce","Post Pre-Mix","15/27"]
["Armezon/Impact","oz",128,"Ounce","Post",27]
["Assure II","oz",128,"Gallon",null,"1"]
["Atrazine (Dry)","lb",1,"Pound","Post",5]
["Atrazine (Liquid)","qt",4,"Gallon","Post",5]
["Banvel/Clarity","pt",8,"Gallon","Post",4]
["Basagran/Broadloom","pt",8,"Gallon","Post",6]
["Beacon","oz",1,"Ounce","Post",2]
["Buctril/Moxy","pt",8,"Gallon","Post",6]
["Cadet","oz",128,"Quart","Post",14]
["Callisto","oz",128,"Gallon","Post",27]
["Callisto GT","pt",8,"Gallon","Post Pre-Mix","9/27"]
["Callisto XTRA","oz",128,"Gallon","Post Pre-Mix","5/27"]
["Capreno","oz",1,"Ounce","Post Pre-Mix","2/27"]
["DiFlexx","oz",128,"Gallon","Post",4]
["DiFlexx Duo","oz",128,"Gallon","Post Pre-Mix","4/27"]
["Enlist Duo","pt",8,"Gallon","Post Pre-Mix","4/9"]
["Enlist One","pt",8,"Gallon","Post","4"]
["Expert","qt",4,"Gallon","Post Pre-Mix","5/9/15"]
["Glyphosate","oz",128,"Gallon","Post",9]
["Halex GT","pt",8,"Gallon","Post Pre-Mix","9/15/27"]
["Hornet WDG/Stanza","oz",128,"Gallon","Post Pre-Mix","2/4"]
["ImpactZ","oz",128,"Gallon","Post Pre-Mix","5/27"]
["Katagon","oz",128,"Gallon",null,"2/27"]
["Laudis","oz",1,"Ounce","Post",27]
["Lexar EZ/Lumax EX/Stalwart 3W","qt",4,"Gallon","Soil Premix","27/15/5"]
["Liberty","oz",128,"Gallon","Post",10]
["Perpetuo","oz",128,"Gallon",null,"14/15"]
["Permit","oz",16,"Pound","Post",2]
["Realm Q","oz",128,"Gallon","Post Pre-Mix","2/27"]
["Resolve Q","oz",128,"Gallon","Post Pre-Mix","2/2"]
["Resource","oz",128,"Gallon","Post",14]
["Restraint","oz",128,"Gallon",null,"15/27"]
["Revulin Q","oz",128,"Gallon","Post Pre-Mix","2/27"]
["Sequence","pt",8,"Gallon","Post Pre-Mix","9/15"]
["ShieldEX","oz",128,"Gallon","Post","27"]
["Sinate","oz",128,"Gallon",null,"10/27"]
["Solstice","oz",128,"Gallon","Post Pre-Mix","14/27"]
["Stalwart 2W","qt",4,"Gallon","Soil Premix","27/15"]
["Status","oz",1,"Ounce","Post Pre-Mix","4/19"]
["Steadfast Q","oz",128,"Gallon","Post Pre-Mix","2/2"]
["Stinger","oz",128,"Gallon","Post",4]
["Yukon","oz",128,"Gallon","Post Pre-Mix","2/4"]
["Enter","Enter",0,"Enter","Enter",0]
["Enter","Enter",0,"Enter","Enter",0]
["Enter","Enter",0,"Enter","Enter",0]
["Enter","Enter",0,"Enter","Enter",0]
[]
[]
[]
["Corn Fungicides"]
["Name","App Unit","Rate Unit","Selling Unit","Timing","Active Ingredient"]
["None",null,1,"None","None","None"]
["Affiance 1.5 SC","oz",128,"Gallons",null,"tetraconazole + azoxystrobin"]
["Aproach 2.08 SC","oz",128,"Gallons",null,"picoxystrobin"]
["Aproach Prima 2.34 SC","oz",128,"Gallons",null,"cyproconazole + picoxystrobin"]
["Delaro 325SC","oz",128,"Gallons",null,"prothioconazole + trifloxystrobin"]
["Domark 230 ME","oz",128,"Gallons",null,"tetraconazole"]
["Folicur 3.6 F","oz",128,"Gallons",null,"tebuconazole"]
["Fortix/Preemptor 3.22 SC","oz",128,"Gallons",null,"flutriafol + fluoxastrobin"]
["Headline 2.09 EC/SC","oz",128,"Gallons",null,"pyraclostrobin"]
["Headline AMP 1.68 SC","oz",128,"Gallons",null,"pyraclostrobin + metconazole"]
["Lucento","oz",128,"Gallons",null,"flutriafol + bixafen"]
["Miravis Neo 2.5SE","oz",128,"Gallons",null,"pydiflumetofen + azoxystrobin + propiconazole"]
["Priaxor 4.17 SC","oz",128,"Gallons",null,"pyraclostrobin + fluxapyroxad"]
["Proline 480 SC","oz",128,"Gallons",null,"prothioconazole"]
["Quadris 2.08 SC","oz",128,"Gallons",null,"azoxystrobin"]
["Quilt Xcel 2.2 SE","oz",128,"Gallons",null,"azoxystrobin + propiconazole"]
["Revytek","oz",128,"Gallons",null,"mefentrifluconazole + pyraclostrobin + fluxapyroxad"]
["Stratego  YLD 4.18 SC","oz",128,"Gallons",null,"trifloxystrobin + prothioconazole"]
["Tilt 3.6 EC","oz",128,"Gallons",null,"propiconazole"]
["TopGuard EQ","oz",128,"Gallons",null,"flutriafol + azoxystrobin"]
["Trivapro 2.21SE","oz",128,"Gallons",null,"benzovindiflupyr + azoxystrobin + propiconazole"]
["Veltyma","oz",128,"Gallons",null,"mefentrifluconazole + pyraclostrobin"]
["Enter","Enter",0,"Enter","Enter","Enter"]
["Enter","Enter",0,"Enter","Enter","Enter"]
["Enter","Enter",0,"Enter","Enter","Enter"]
["Enter","Enter",0,"Enter","Enter","Enter"]
[]
[]
["Corn Insecticides"]
["None",null,1,"None"]
["Insecticide (pint rate)","pt",8,"Gallon"]
["Insecticide (ounce rate)","oz",128,"Gallon"]
["Insecticide (pound rate)","lb",1,"Pound"]
["Insecticide (quart rate)","qt",4,"Gallon"]
[]
["Name","App Unit","Rate Unit","Selling Unit","Timing","Active Ingredient"]
["None",null,1,"None","At planting","None"]
["Agree WG,","lb",1,"Pound","In-season","Bacillus thuringiensis"]
["Annex LFR","oz",128,"Gallon","At planting/in-season","bifenthrin (liquid)"]
["Annihilate LV","pt",8,"Gallon","In-season","metomyl"]
["Annihilate SP","pt",8,"Gallon","In-season","metomyl"]
["Arctic 3.2EC","oz",128,"Gallon","In-season","permethrin"]
["Asana XL","oz",128,"Gallon","In-season","esfenvalerate"]
["Aztec 4.67G or Aztec HC for SmartBox/SmartCartridge","lb",1,"Pound","At planting","tebupirimphos + cyfluthrin"]
["Baythroid XL","oz",128,"Gallon","At planting/in-season","cyfluthrin"]
["Besiege","oz",128,"Gallon","In-season","chlorantraniliprole + lambda-cyhalothrin"]
["Bifen2, Bifenthrin 2EC, Bifenture EC, or Bifenture LFC","oz",128,"Gallon","At planting/in-season","bifenthrin (liquid)"]
["Bifender FC","oz",128,"Gallon","At planting/in-season","bifenthrin (liquid)"]
["BioBit HP","lb",1,"Pound","In-season","Bacillus thuringiensis"]
["Blackhawk","oz",128,"Gallon","In-season","spinosad"]
["Brigade 2EC","oz",128,"Gallon","At planting/in-season","bifenthrin (liquid)"]
["Capture LFR, Capture 3RIVE3D","oz",128,"Gallon","At planting/in-season","bifenthrin (liquid)"]
["Carbaryl 4L","qt",4,"Gallon","In-season","carbaryl"]
["Coragen","oz",128,"Gallon","In-season","chlorantraniliprole"]
["Corrida 90WSP","pt",8,"Gallon","In-season","metomyl"]
["Counter 20G (Lock'N Load, Smartbox, SmartCartridge)","lb",1,"Pound","At planting","terbufos"]
["Deadline GT or Deadline MPs","lb",1,"Pound","At planting","metaldehyde"]
["Declare","oz",128,"Gallon","In-season","cyhalothrin (gamma)"]
["Defecon 4.67G","lb",1,"Pound","At planting","tebupirimphos + cyfluthrin"]
["Delta Gold","oz",128,"Gallon","In-season","deltamethrin"]
["Dimate 4E, Dimethoate 4EC, or Dimethoate 400","pt",8,"Gallon","In-season","dimethoate"]
["Dipel 10G or Dipel ES","lb",1,"Pound","In-season","Bacillus thuringiensis"]
["Discipline 2EC","oz",128,"Gallon","At planting/in-season","bifenthrin (liquid)"]
["Emplower2","oz",16,"Pound","At planting","bifenthrin (granular)"]
["Evergreen EC 60-6","oz",128,"Gallon","In-season","pyrethrins"]
["Fanfare EC, Fanfare 2EC, or Fanfare ES","oz",128,"Gallon","At planting/in-season","bifenthrin (liquid)"]
["Fastac CS or Fastac EC","oz",128,"Gallon","In-season","cypermethrin (alpha)"]
["Force 6.5G, Force 6.5G for SmartBox/SmartCartridge","lb",1,"Pound","At planting","tefluthrin"]
["Fyfanon ULV Ag","oz",128,"Gallon","In-season","malathion"]
["Grizzly Too","oz",128,"Gallon","At planting","cyhalothrin (lambda)"]
["Hero, Hero EW","oz",128,"Gallon","At planting","bifenthrin + cypermethrin (zeta)"]
["Index At-Plant Liquid, Smartchoice HC (Smartbox)","oz",128,"Gallon","At planting","chlorethoxyfos + bifenthrin"]
["Intrepid 2F","oz",128,"Gallon","In-season","methoxyfenozide"]
["Javelin WG","lb",1,"Pound","In-season","Bacillus thuringiensis"]
["Kendo","oz",128,"Gallon","At planting/in-season","cyhalothrin (lambda)"]
["LambdaStar, Lambda-Cy, Lambda-T, Lambda Cy 1EC","oz",128,"Gallon","At planting/in-season","cyhalothrin (lambda)"]
["Lamcap II","oz",128,"Gallon","At planting","cyhalothrin (lambda)"]
["Lannate LV","pt",8,"Gallon","In-season","metomyl"]
["Lannate SP","pt",8,"Gallon","In-season","metomyl"]
["Malathion 5, Malathion 5EC","pt",8,"Gallon","In-season","malathion"]
["Mustang, Mustang Maxx","oz",128,"Gallon","In-season","cypermethrin (zeta)"]
["Nudrin LV","pt",8,"Gallon","In-season","metomyl"]
["Nudrin SP","pt",8,"Gallon","In-season","metomyl"]
["Oberon 25C","oz",128,"Gallon","In-season","spiromesifen"]
["Onager","oz",128,"Gallon","In-season","hexythiazox"]
["Paradigm VC","oz",128,"Gallon","At planting","cyhalothrin (lambda)"]
["Permaster Ag, Perm-Up 3.2EC, or Perm-Up 25DF","oz",128,"Gallon","In-season","permethrin"]
["Pounce 1.5 G","oz",128,"Gallon","At planting/in-season","permethrin"]
["Pounce 25WP","oz",128,"Gallon","In-season","permethrin"]
["Prevathon","oz",128,"Gallon","In-season","chlorantraniliprole"]
["Proaxis","oz",128,"Gallon","In-season","cyhalothrin (gamma)"]
["Province II","oz",128,"Gallon","At planting","cyhalothrin (lambda)"]
["PyGanic EC 1.4 II or Pyganic Specialty","oz",128,"Gallon","In-season","pyrethrins"]
["Radiant SC","oz",128,"Gallon","In-season","spinetoram"]
["Sevin 4F or Sevin XLR Plus","qt",4,"Gallon","In-season","carbaryl"]
["S-Fenvalostar","oz",128,"Gallon","In-season","esfenvalerate"]
["Silencer","oz",128,"Gallon","At planting","cyhalothrin (lambda)"]
["Sivanto 200SL, Sivanto HL, Sivanto Prime","oz",128,"Gallon","In-season","flupyradifurone"]
["Sluggo","lb",1,"Pound","At planting","iron phosphate"]
["Sniper LFR, Sniper Helios","oz",128,"Gallon","At planting/in-season","bifenthrin (liquid)"]
["Steward","oz",128,"Gallon","In-season","indoxacarb"]
["Tombstone or Tombstone Helios","oz",128,"Gallon","At planting/in-season","cyfluthrin"]
["Tracer","oz",128,"Gallon","In-season","spinosad"]
["Transform WG","oz",128,"Gallon","In-season","sulfoxaflor"]
["Tundra EC","oz",128,"Gallon","At planting/in-season","bifenthrin (liquid)"]
["Warrior II","oz",128,"Gallon","At planting","cyhalothrin (lambda)"]
["Xentari Insecticide","lb",1,"Pound","In-season","Bacillus thuringiensis"]
["Xpendient Plus V","oz",128,"Gallon","At planting/in-season","bifenthrin (liquid)"]
["Zeal, Zeal WSP, Zeal SC","oz",128,"Gallon","In-season","etoxazole"]
["Zyrate","oz",128,"Gallon","In-season","esfenvalerate"]
["Enter","Enter",0,"Enter","Enter","Enter"]
["Enter","Enter",0,"Enter","Enter","Enter"]
["Enter","Enter",0,"Enter","Enter","Enter"]
["Enter","Enter",0,"Enter","Enter","Enter"]

{"sheet":"Chemical List (Soys)","index":6,"n_rows":227,"n_cols":15,"rows_kept":227,"cut":false,"hidden":false,"merged":[[1,0,1,5],[60,0,60,5],[100,0,100,5],[141,0,141,5]]}
[1,2,3,4,5,"6"]
["Soybean Chemicals (Pre)",null,null,null,null,null,null,null,"Example:","Name","App Unit","Rate Unit","Package Unit","Timing","Site of Action"]
["Name","App Unit","Rate Unit","Package Unit","Timing","Site of Action",null,null,null,"2,4-D","pt",8,"Gallon","Post",4]
["None",null,1,"None","None"]
["Afforia","oz",16,"Pound","Soil Premix","2/2/14"]
["Anthem Maxx","oz",128,"Ounce","Soil Premix","14/15"]
["Authority Assist","oz",128,"Ounce","Soil Premix","2/14"]
["Authority Edge","oz",128,"Gallon",null,"14/15"]
["Authority Elite/Broadaxe XC","oz",128,"Gallon","Soil","14/15"]
["Authority First/Sonic","oz",16,"Pound","Soil Premix","2/14"]
["Authority Maxx","oz",16,"Pound","Soil Premix","2/14"]
["Authority MTZ","oz",16,"Pound","Soil Premix","5/14"]
["Authority Supreme","oz",16,"Pound","Soil Premix","14/15"]
["Authority XL","oz",16,"Pound","Soil Premix","2/14"]
["Boundary","pt",8,"Gallon","Soil Premix","5/15"]
["Canopy","oz",16,"Pound","Soil Premix","2/5"]
["Canopy EX","oz",16,"Pound",null,"2/2"]
["Command 3ME","pt",8,"Gallon","Soil","13"]
["Dimetric Charged","oz",128,"Gallon",null,"5/14"]
["Dual Magnum, Others","pt",8,"Gallon","Soil","15"]
["Enlist One","pt",8,"Gallon","Post","4"]
["Enlist Duo","pt",8,"Gallon","Post","4/9"]
["Envive","oz",16,"Pound","Soil Premix","2/2/14"]
["Fierce","oz",16,"Pound","Soil Premix","14/15"]
["Fierce MTZ/Kyber","pt",8,"Gallon",null,"5/14/15"]
["Fierce XLT","oz",16,"Pound","Soil Premix","2/14/15"]
["Firstrate","oz",16,"Pound","Soil","2"]
["Flexstar GT 3.5","pt",8,"Gallon","Soil Premix","9/14"]
["Glyphosate","oz",128,"Gallon","Post",9]
["Lorox/Linex","lb",1,"Pound","Soil","7"]
["Metribuzin","oz",16,"Pound","Soil","5"]
["Moccasin MTZ","pt",8,"Gallon","Soil Premix","5/15"]
["Optill","oz",16,"Pound","Soil Premix","2/14"]
["Outlook","oz",128,"Gallon","Soil","15"]
["Prefix","pt",8,"Gallon","Soil Premix","14/15"]
["Prowl H20/Prowl","pt",8,"Gallon","Soil","2"]
["Pursuit","oz",128,"Gallon",null,"2"]
["Python/Accolade","oz",16,"Pound","Soil","2"]
["Sonalan (PPI Only)","pt",8,"Gallon","Soil","3"]
["Spartan","oz",128,"Gallon","Soil","14"]
["Spartan Charge","oz",128,"Gallon","Soil Premix","14/14"]
["Surveil","oz",16,"Pound","Soil Premix","2/14"]
["Synchrony XP","oz",16,"Pound","Soil Premix","2/2"]
["Trifluralin (PPI Only)","pt",8,"Gallon","Soil","3"]
["Tripzin ZC","oz",128,"Gallon","Soil Premix","3/5"]
["Trivence","oz",16,"Pound","Soil Premix","2/5/14"]
["Valor XLT","oz",16,"Pound","Soil Premix","2/14"]
["Valor/Valor EZ","oz",128,"Gallon","Soil","14"]
["Verdict","oz",128,"Gallon","Soil Premix","14/15"]
["Warrant","pt",8,"Gallon","Soil","9"]
["Warrant Ultra","oz",128,"Gallon","Soil Premix","14/15"]
["Xtendimax/Fexapan","oz",128,"Gallon","Soil","4"]
["Zidua","oz",1,"Gallon","Soil","15"]
["Zidua Pro","oz",128,"Gallon","Soil Premix","2/14/15"]
["Zone Defense","oz",16,"Pound",null,"14/14"]
["Enter","Enter",0,"Enter","Enter",0]
["Enter","Enter",0,"Enter","Enter",0]
["Enter","Enter",0,"Enter","Enter",0]
["Enter","Enter",0,"Enter","Enter",0]
[]
["Soybean Chemicals (Post)"]
["None",null,1,"None","Post"]
["Anthem Maxx","oz",128,"Gallon","Post","14/15"]
["Assure II/Targa","oz",128,"Gallon","Post",1]
["Basagran","pt",8,"Gallon","Post",6]
["Cadet","oz",16,"Pound","Post",14]
["Cheetah Max","qt",4,"Gallon","Post","10/14"]
["Classic","oz",16,"Pound","Post",2]
["Cobra","oz",128,"Gallon","Post",14]
["Engenia","oz",128,"Gallon","Post","4"]
["Enlist One","pt",8,"Gallon","Post","4"]
["Enlist Duo","pt",8,"Gallon","Post","4/9"]
["Firstrate","oz",16,"Pound","Post",2]
["Flexstar","pt",8,"Gallon","Post",14]
["Flexstar GT 3.5","pt",8,"Gallon","Post","9/14"]
["Fusilade DX","oz",128,"Gallon","Post",1]
["Glyphosate","oz",128,"Gallon","Post",9]
["Harmony SG","oz",16,"Pound","Post",2]
["Liberty, Others","oz",128,"Gallon","Post","10"]
["Marvel","oz",128,"Gallon","Post","14/14"]
["Perpetuo","oz",128,"Gallon",null,"14/15"]
["Poast/Poast Plus","oz",128,"Gallon","Post",1]
["Prefix","pt",8,"Gallon","Post","14/15"]
["Pursuit","oz",128,"Gallon","Post",2]
["Raptor","oz",128,"Gallon","Post",2]
["Reflex","pt",8,"Gallon","Post",14]
["Resource","oz",128,"Gallon","Post",14]
["Select Max/Arrow/Select","oz",128,"Gallon","Post",1]
["Sequence","pt",8,"Gallon","Post","9/15"]
["Synchrony XP","oz",16,"Pound","Post","2/2"]
["Tavium","oz",128,"Gallon","Post","4/15"]
["Ultra Blazer","pt",8,"Gallon","Post",14]
["Varisto","oz",128,"Gallon",null,"2/6"]
["Warrant Ultra","oz",128,"Gallon","Post","14/15"]
["Xtendimax","oz",128,"Gallon","Post","4"]
["Enter","Enter",0,"Enter","Enter",0]
["Enter","Enter",0,"Enter","Enter",0]
["Enter","Enter",0,"Enter","Enter",0]
["Enter","Enter",0,"Enter","Enter",0]
[]
["Soybean Fungicides"]
["Name","App Unit","Rate Unit","Selling Unit",null,"Active Ingredient"]
["None",null,1,"None","None","None"]
["Acropolis","oz",128,"Gallons",null,"thiophanate-methyl + tetraconazole"]
["Affiance 1.5 SC","oz",128,"Gallons",null,"tetraconazole + azoxystrobin"]
["Aftershock 480SC/Evito 480SC","oz",128,"Gallons",null,"fluoxastrobin"]
["Alto 100 SL","oz",128,"Gallons",null,"cyproconazole"]
["Aproach 2.08 SC","oz",128,"Gallons",null,"picoxystrobin"]
["Aproach Prima 2.34 SC","oz",128,"Gallons",null,"cyproconazole + picoxystrobin"]
["Delaro 325SC","oz",128,"Gallons",null,"prothioconazole + trifloxystrobin"]
["Domark 230 ME","oz",128,"Gallons",null,"tetraconazole"]
["Endura 0.7 DF","oz",128,"Gallons",null,"boscalid"]
["Fortix/Preemptor 3.22 SC","oz",128,"Gallons",null,"flutriafol + fluoxastrobin"]
["Headline 2.09 EC/SC","oz",128,"Gallons",null,"pyraclostrobin"]
["Lucento","oz",128,"Gallons",null,"flutriafol + bixafen"]
["Miravis Neo 2.5SE","oz",128,"Gallons",null,"pydiflumetofen + azoxystrobin + propiconazole"]
["Miravis Top 1.67SC","oz",128,"Gallons",null,"pydiflumetofen + difenoconazole"]
["Omega 500 DF/Lektivar 40SC","oz",128,"Gallons",null,"fluazinam"]
["Priaxor 4.17 SC","oz",128,"Gallons",null,"pyraclostrobin + fluxapyroxad"]
["Priaxor D 4.17SC 1.95SC","oz",128,"Gallons",null,"pyraclostrobin + fluxapyroxad + tetraconazole"]
["Proline 480 SC","oz",128,"Gallons",null,"prothioconazole"]
["Propulse 3.34SC","oz",128,"Gallons",null,"fluopyram + prothioconazole"]
["Quadris 2.08 SC","oz",128,"Gallons",null,"azoxystrobin"]
["Quadris Top 2.72SC","oz",128,"Gallons",null,"azoxystrobin + difenoconazole"]
["Quadris Top SBX 3.76SC","oz",128,"Gallons",null,"azoxystrobin + difenoconazole"]
["Quilt Xcel 1.66SC","oz",128,"Gallons",null,"azoxystrobin + propiconazole"]
["Quilt Xcel 2.2 SE","oz",128,"Gallons",null,"azoxystrobin + propiconazole"]
["Revytek","oz",128,"Gallons",null,"mefentrifluconazole + pyraclostrobin + fluxapyroxad"]
["Stratego  YLD 4.18 SC","oz",128,"Gallons",null,"trifloxystrobin + prothioconazole"]
["Tilt 3.6 EC","oz",128,"Gallons",null,"propiconazole"]
["TopGuard 1.04SC","oz",128,"Gallons",null,"flutriafol"]
["TopGuard EQ","oz",128,"Gallons",null,"flutriafol + azoxystrobin"]
["TopGuard EQ 4.29SC","oz",128,"Gallons",null,"azoxystrobin + flutriafol"]
["Topsin-M","oz",128,"Gallons",null,"thiophanate-methyl"]
["Trivapro","oz",128,"Gallons",null,"benzovindiflupyr + azoxystrobin + propiconazole"]
["Zolera FX 3.34SC","oz",128,"Gallons",null,"tetraconazole + fluoxastrobin"]
["Enter","Enter",0,"Enter","Enter","Enter"]
["Enter","Enter",0,"Enter","Enter","Enter"]
["Enter","Enter",0,"Enter","Enter","Enter"]
["Enter","Enter",0,"Enter","Enter","Enter"]
[]
["Soybean Insecticides"]
["Name","App Unit","Rate Unit","Selling Unit","Timing","Active Ingredient"]
["None",null,1,"None"]
["Insecticide (pint rate)","pt",8,"Gallon"]
["Insecticide (ounce rate)","oz",1,"Gallon"]
["Insecticide (pound rate)","lb",1,"Pound"]
["Insecticide (quart rate)","qt",4,"Gallon"]
[]
[]
["None",null,1,"None",null,"None"]
["Acephate 90 Prill, Acephate 90 WDG, Acephate 90 WSP","lb",1,"Pound","In-season","acephate"]
["Acephate 97 UP, Acephate 97 WDC","lb",1,"Pound","In-season","acephate"]
["Admire Pro","oz",128,"Gallon","In-season","imidacloprid"]
["Advise Four","oz",128,"Gallon","In-season","imidacloprid"]
["Agree WG","lb",1,"Pound","In-season","Bacillus thuringiensis"]
["Agri-Mek SC","oz",128,"Gallon","In-season","abamectin"]
["Alias4F","oz",128,"Gallon","In-season","imidacloprid"]
["Annihilate LV, Annihilate SP","pt",8,"Gallon","In-season","metomyl"]
["Arctic 3.2EC","oz",128,"Gallon","In-season","permethrin"]
["Asana XL","oz",128,"Gallon","In-season","esfenvalerate"]
["Baythroid XL","oz",128,"Gallon","In-season","cyfluthrin (beta)"]
["Besiege","oz",128,"Gallon","In-season","chlorantraniliprole + lambda-cyhalothrin"]
["Bifen2, Bifenthrin 2EC, Bifenture EC","oz",128,"Gallon","In-season","bifenthrin (liquid)"]
["Bifender FC","oz",128,"Gallon","In-season","bifenthrin (liquid)"]
["BioBit HP","lb",1,"Pound","In-season","Bacillus thuringiensis"]
["Blackhawk","oz",128,"Gallon","In-season","spinosad"]
["Brigade 2EC","oz",128,"Gallon","In-season","bifenthrin (liquid)"]
["Brigadier","oz",128,"Gallon","In-season","bifenthrin + imidacloprid"]
["Carbaryl 4L","qt",4,"Gallon","In-season","carbaryl"]
["Coragen","oz",128,"Gallon","In-season","chlorantraniliprole"]
["Corrida 90WSP","pt",8,"Gallon","In-season","metomyl"]
["Deadline GT, Deadline MPs","lb",1,"Pound","In-season","metaldehyde"]
["Declare","oz",128,"Gallon","In-season","cyhalothrin (gamma)"]
["Delta Gold","oz",128,"Gallon","In-season","deltamethrin"]
["Dimate 4E, Dimethoate 4EC, Dimethoate 400","pt",8,"Gallon","In-season","dimethoate"]
["Discipline 2EC","oz",128,"Gallon","In-season","bifenthrin (liquid)"]
["Evergreen EC 60-6","oz",128,"Gallon","In-season","pyrethrins"]
["Fanfare EC, Fanfare 2EC, Fanfare ES","oz",128,"Gallon","In-season","bifenthrin (liquid)"]
["Fastac CS, Fastac EC","oz",128,"Gallon","In-season","cypermethrin (alpha)"]
["Grizzly Too","oz",128,"Gallon","In-season","cyhalothrin (lambda)"]
["Hero, Hero EW, Steed","oz",128,"Gallon","In-season","bifenthrin + cypermethrin (zeta)"]
["Intrepid 2F","oz",128,"Gallon","In-season","methoxyfenozide"]
["Javelin WG","lb",1,"Pound","In-season","Bacillus thuringiensis"]
["Kendo, Kendo 22.8CS","oz",128,"Gallon","In-season","cyhalothrin (lambda)"]
["LambdaStar, Lambda-Cy, Lambda-T, Lambda Cy 1EC","oz",128,"Gallon","In-season","cyhalothrin (lambda)"]
["Lamcap II","oz",128,"Gallon","In-season","cyhalothrin (lambda)"]
["Lannate LV, Lannate SP","pt",8,"Gallon","In-season","metomyl"]
["Leverage 360","oz",128,"Gallon","In-season","cyfluthrin + imidacloprid"]
["Montana4F","oz",128,"Gallon","In-season","imidacloprid"]
["Mustang, Mustang Maxx","oz",128,"Gallon","In-season","cypermethrin (zeta)"]
["Nudrin LV, Nudrin SP","pt",8,"Gallon","In-season","metomyl"]
["Nuprid4F Max, Wrangler Nuprid 2SC","oz",128,"Gallon","In-season","imidacloprid"]
["Orthene 97","lb",1,"Pound","In-season","acephate"]
["Paradigm VC","oz",128,"Gallon","In-season","cyhalothrin (lambda)"]
["Permaster Ag, Perm-Up 3.2EC, Perm-Up 25DF","oz",128,"Gallon","In-season","permethrin"]
["Pounce 25WP","oz",128,"Gallon","In-season","permethrin"]
["Prevathon","oz",128,"Gallon","In-season","chlorantraniliprole"]
["Prey 1.6","oz",128,"Gallon","In-season","imidacloprid"]
["Proaxis","oz",128,"Gallon","In-season","cyhalothrin (gamma)"]
["Province II","oz",128,"Gallon","In-season","cyhalothrin (lambda)"]
["PyGanic EC 1.4 II, Pyganic Specialty","oz",128,"Gallon","In-season","pyrethrins"]
["Radiant SC","oz",128,"Gallon","In-season","spinetoram"]
["Renestra","oz",128,"Gallon","In-season","cypermethrin + afidopyropen"]
["Sefina","oz",128,"Gallon","In-season","afidopyropen"]
["Sevin 4F, Sevin XLR Plus","qt",4,"Gallon","In-season","carbaryl"]
["S-Fenvalostar","oz",128,"Gallon","In-season","esfenvalerate"]
["Sherpa","oz",128,"Gallon","In-season","imidacloprid"]
["Silencer","oz",128,"Gallon","In-season","cyhalothrin (lambda)"]
["Sivanto 200SL, Sivanto HL, Sivanto Prime","oz",128,"Gallon","In-season","flupyradifurone"]
["Skyraider","oz",128,"Gallon","In-season","bifenthrin + imidacloprid"]
["Sluggo","lb",1,"Pound","In-season","iron phosphate"]
["Sniper LFR, Sniper Helios","oz",128,"Gallon","In-season","bifenthrin (liquid)"]
["Steward","oz",128,"Gallon","In-season","indoxacarb"]
["Swagger","oz",128,"Gallon","In-season","bifenthrin + imidacloprid"]
["Tombstone, Tombstone Helios","oz",128,"Gallon","In-season","cyfluthrin"]
["Tracer","oz",128,"Gallon","In-season","spinosad"]
["Transform WG","oz",128,"Gallon","In-season","sulfoxaflor"]
["Tundra EC","oz",128,"Gallon","In-season","bifenthrin (liquid)"]
["Warrior II","oz",128,"Gallon","In-season","cyhalothrin (lambda)"]
["Xentari Insecticide","lb",1,"Pound","In-season","Bacillus thuringiensis"]
["Zeal SC, Zeal Pro","oz",128,"Gallon","In-season","etoxazole"]
["Zyrate","oz",128,"Gallon","In-season","esfenvalerate"]
["Enter","Enter",0,"Enter","Enter","Enter"]
["Enter","Enter",0,"Enter","Enter","Enter"]
["Enter","Enter",0,"Enter","Enter","Enter"]
["Enter","Enter",0,"Enter","Enter","Enter"]

{"sheet":"Chemical List (Wheat)","index":7,"n_rows":102,"n_cols":15,"rows_kept":102,"cut":false,"hidden":false,"merged":[[1,0,1,5],[33,0,33,5],[59,0,59,5]]}
[1,2,3,4,5,"6"]
["Wheat Chemicals",null,null,null,null,null,null,null,"Example:","Name","App Unit","Rate Unit","Selling Unit","Timing","Site of Action"]
["Name","App Unit","Rate Unit","Selling Unit","Timing","Site of Action",null,null,null,"2,4-D","pt",8,"Gallon","Post",4]
["None",null,1,"None","None"]
["2,4-D Amine","pt",8,"Gallon",null,4]
["2,4-D Ester","pt",8,"Gallon",null,"4"]
["Affinity Broadspec","oz",16,"Pound",null,"2/2"]
["Axial Bold","oz",128,"Gallon",null,"1/1"]
["Banvel/Clarity","pt",8,"Gallon",null,"4"]
["Buctril/Moxy","pt",8,"Gallon",null,6]
["Curtail","pt",8,"Gallon",null,"4/4"]
["Express","oz",16,"Pound",null,"2"]
["Harmony","oz",16,"Pound",null,"2"]
["Harmony Extra","oz",16,"Pound",null,"2/2"]
["Huskie","oz",128,"Gallon",null,"6/27"]
["MCPA","pt",8,"Gallon",null,"4"]
["Osprey","oz",16,"Pound",null,"2"]
["Osprey XTRA","oz",16,"Pound",null,"2/2"]
["Peak","oz",16,"Pound",null,"2"]
["Perfect Match","pt",8,"Gallon",null,"2/4/4"]
["Powerflex HL","oz",16,"Pound",null,"2"]
["Prowl H20","pt",8,"Gallon",null,"3"]
["Quelex","oz",16,"Pound",null,"2/4"]
["Starane Ultra","pt",8,"Gallon",null,"4"]
["Stinger","pt",8,"Gallon",null,"4"]
["Talinor","oz",128,"Gallon",null,"6/27"]
["Widematch","pt",8,"Gallon",null,"4/4"]
["Enter","Enter",0,"Enter","Enter",0]
["Enter","Enter",0,"Enter","Enter",0]
["Enter","Enter",0,"Enter","Enter",0]
["Enter","Enter",0,"Enter","Enter",0]
[]
[]
["Wheat Fungicides"]
["Name","App Unit","Rate Unit","Selling Unit",null,"Active Ingredient"]
["None",null,1,"None",null,"None"]
["Absolute Maxx SC","oz",128,"Gallons",null,"tebuconazole + trifloxystrobin"]
["Aproach 2.08 SC","oz",128,"Gallons",null,"picoxystrobin"]
["Aproach Prima 2.34 SC","oz",128,"Gallons",null,"cyproconazole + picoxystrobin"]
["Caramba 0.75 SL","oz",128,"Gallons",null,"metconazole"]
["Delaro 325SC","oz",128,"Gallons",null,"prothioconazole + trifloxystrobin"]
["Folicur 3.6 F","oz",128,"Gallons",null,"tebuconazole"]
["Headline SC","oz",128,"Gallons",null,"pyraclostrobin"]
["Miravis Ace SE","oz",128,"Gallons",null,"pydiflumetofen + propiconazole"]
["Nexicor EC","oz",128,"Gallons",null,"fluapyroxad + pyraclostrobin + propiconazole"]
["Preemptor SC","oz",128,"Gallons",null,"fluoxastrobin + flutriafol"]
["Priaxor","oz",128,"Gallons",null,"pyraclostrobin + fluxapyroxad"]
["Proline 480 SC","oz",128,"Gallons",null,"prothioconazole"]
["Prosaro 421 SC","oz",128,"Gallons",null,"prothioconazole + tebuconazole"]
["Quilt Xcel 2.2 SE","oz",128,"Gallons",null,"azoxystrobin + propiconazole"]
["Stratego  YLD","oz",128,"Gallons",null,"trifloxystrobin + prothioconazole"]
["Tilt 3.6 EC","oz",128,"Gallons",null,"propiconazole"]
["TopGuard EQ","oz",128,"Gallons",null,"flutriafol + azoxystrobin"]
["Trivapro SE","oz",128,"Gallons",null,"benzovindiflupyr + azoxystrobin + propiconazole"]
["Enter","Enter",0,"Enter","Enter","Enter"]
["Enter","Enter",0,"Enter","Enter","Enter"]
["Enter","Enter",0,"Enter","Enter","Enter"]
["Enter","Enter",0,"Enter","Enter","Enter"]
[]
["Wheat Insecticides"]
["Name","App Unit","Rate Unit","Selling Unit","Timing","Active Ingredient"]
["None",null,1,"None"]
["Insecticide (pint rate)","pt",8,"Gallon"]
["Insecticide (ounce rate)","oz",1,"Gallon"]
["Insecticide (pound rate)","lb",1,"Pound"]
["Insecticide (quart rate)","qt",4,"Gallon"]
[]
[]
["None",null,1,"None",null,"None"]
["Baythroid XL","oz",128,"Gallon","At planting/in-season","cyfluthrin"]
["Besiege","oz",128,"Gallon","In-season","chlorantraniliprole + lambda-cyhalothrin"]
["BioBit HP","lb",1,"Pound","In-season","Bacillus thuringiensis"]
["Blackhawk","oz",128,"Gallon","In-season","spinosad"]
["Coragen","oz",128,"Gallon","In-season","chlorantraniliprole"]
["Declare","oz",128,"Gallon","In-season","cyhalothrin (gamma)"]
["Dimate 4E, Dimethoate 4EC, Dimethoate 400","pt",8,"Gallon","In-season","dimethoate"]
["Dipel ES","lb",1,"Pound","In-season","Bacillus thuringiensis"]
["Evergreen EC 60-6","oz",128,"Gallon","In-season","pyrethrins"]
["Fastac CS, Fastac EC","oz",128,"Gallon","In-season","cypermethrin (alpha)"]
["Grizzly Too","oz",128,"Gallon","At planting","cyhalothrin (lambda)"]
["Javelin WG","lb",1,"Pound","In-season","Bacillus thuringiensis"]
["Kendo","oz",128,"Gallon","At planting/in-season","cyhalothrin (lambda)"]
["LambdaStar, Lambda-Cy, Lambda-T, Lambda Cy 1EC","oz",128,"Gallon","At planting/in-season","cyhalothrin (lambda)"]
["Lamcap II","oz",128,"Gallon","At planting","cyhalothrin (lambda)"]
["Mustang, Mustang Maxx","oz",128,"Gallon","In-season","cypermethrin (zeta)"]
["Paradigm VC","oz",128,"Gallon","At planting","cyhalothrin (lambda)"]
["Prevathon","oz",128,"Gallon","In-season","chlorantraniliprole"]
["Proaxis","oz",128,"Gallon","In-season","cyhalothrin (gamma)"]
["Province II","oz",128,"Gallon","At planting","cyhalothrin (lambda)"]
["PyGanic EC 1.4 II, Pyganic Specialty","oz",128,"Gallon","In-season","pyrethrins"]
["Silencer","oz",128,"Gallon","At planting","cyhalothrin (lambda)"]
["Sivanto 200SL, Sivanto HL, Sivanto Prime","oz",128,"Gallon","In-season","flupyradifurone"]
["Tombstone, Tombstone Helios","oz",128,"Gallon","At planting/in-season","cyfluthrin"]
["Tracer","oz",128,"Gallon","In-season","spinosad"]
["Transform WG","oz",128,"Gallon","In-season","sulfoxaflor"]
["Vantacor","oz",128,"Gallon","In-season","chlorantraniliprole"]
["Warrior II","oz",128,"Gallon","At planting","cyhalothrin (lambda)"]
["Xentari","lb",1,"Pound","In-season","Bacillus thuringiensis"]
["Enter","Enter",0,"Enter","Enter","Enter"]
["Enter","Enter",0,"Enter","Enter","Enter"]
["Enter","Enter",0,"Enter","Enter","Enter"]
["Enter","Enter",0,"Enter","Enter","Enter"]

{"sheet":"Product Purchase List (Corn)","index":8,"n_rows":75,"n_cols":14,"rows_kept":75,"cut":false,"hidden":false,"merged":[[0,1,0,3],[0,7,0,13]]}
[null,"Product Purchase List (Corn)",null,null,null,null,null,"Chemical Product Purchase List (Corn)"]
[null,null,null,null,null,"Acres"]
[null,"Chemical Product (Pre-Emergent Herbicides)","Purchase Quantity","Product Unit",null,100,null,"Pre-Emergent Herbicides","Purchase Quantity","Product Unit",null,"Fungicides","Purchase Quantity","Product Unit"]
[null,{"$f":"'Pesticide Plan (Corn)'!C7","v":"None"},{"$f":"'Pesticide Plan (Corn)'!H7/VLOOKUP(B4,CornPreChemicals,3,FALSE)*$F$3","v":{"$error":"#REF!"}},{"$f":"VLOOKUP(B4,CornPreChemicals,4,FALSE)","v":{"$error":"#REF!"}},null,null,null,{"$f":"_xlfn._xlws.SORT(_xlfn.LET(_xlpm.a,B4:B9,_xlpm.b,C4:C9,_xlfn.HSTACK(_xlfn.UNIQUE(_xlpm.a),SUMIFS(_xlpm.b,_xlpm.a,_xlfn.UNIQUE(_xlpm.a)))))","v":"None"},{"$error":"#REF!"},{"$f":"IFERROR(VLOOKUP(H4,CornPreChemicals,4,FALSE),\"\")","v":""},null,{"$f":"_xlfn._xlws.SORT(_xlfn.LET(_xlpm.a,B20:B25,_xlpm.b,C20:C25,_xlfn.HSTACK(_xlfn.UNIQUE(_xlpm.a),SUMIFS(_xlpm.b,_xlpm.a,_xlfn.UNIQUE(_xlpm.a)))))","v":"None"},{"$error":"#REF!"},{"$f":"IFERROR(VLOOKUP(L4,CornFungicides,4,FALSE),\"\")","v":""}]
[null,{"$f":"'Pesticide Plan (Corn)'!C8","v":"None"},{"$f":"'Pesticide Plan (Corn)'!H8/VLOOKUP(B5,CornPreChemicals,3,FALSE)*$F$3","v":{"$error":"#REF!"}},{"$error":"#REF!"},null,null,null,null,null,"",null,null,null,""]
[null,{"$f":"'Pesticide Plan (Corn)'!C9","v":"None"},{"$f":"'Pesticide Plan (Corn)'!H9/VLOOKUP(B6,CornPreChemicals,3,FALSE)*$F$3","v":{"$error":"#REF!"}},{"$error":"#REF!"},null,null,null,null,null,"",null,null,null,""]
[null,{"$f":"'Pesticide Plan (Corn)'!L7","v":"None"},{"$f":"'Pesticide Plan (Corn)'!Q7/VLOOKUP(B7,CornPreChemicals,3,FALSE)*$F$3","v":{"$error":"#REF!"}},{"$error":"#REF!"},null,null,null,null,null,"",null,null,null,""]
[null,{"$f":"'Pesticide Plan (Corn)'!L8","v":"None"},{"$f":"'Pesticide Plan (Corn)'!Q8/VLOOKUP(B8,CornPreChemicals,3,FALSE)*$F$3","v":{"$error":"#REF!"}},{"$error":"#REF!"},null,null,null,null,null,"",null,null,null,""]
[null,{"$f":"'Pesticide Plan (Corn)'!L9","v":"None"},{"$f":"'Pesticide Plan (Corn)'!Q9/VLOOKUP(B9,CornPreChemicals,3,FALSE)*$F$3","v":{"$error":"#REF!"}},{"$error":"#REF!"},null,null,null,null,null,"",null,null,null,""]
[]
[null,"Chemical Product (Post-Emergent Herbicides)","Purchase Quantity","Product Unit",null,null,null,"Post-Emergent Herbicides","Purchase Quantity","Product Unit",null,"Insecticides","Purchase Quantity","Product Unit"]
[null,{"$f":"'Pesticide Plan (Corn)'!C26","v":"None"},{"$f":"'Pesticide Plan (Corn)'!H26/VLOOKUP(B12,CornPostChemicals,3,FALSE)*$F$3","v":{"$error":"#REF!"}},{"$f":"VLOOKUP(B12,CornPostChemicals,4,FALSE)","v":{"$error":"#REF!"}},null,null,null,{"$f":"_xlfn._xlws.SORT(_xlfn.LET(_xlpm.a,B12:B17,_xlpm.b,C12:C17,_xlfn.HSTACK(_xlfn.UNIQUE(_xlpm.a),SUMIFS(_xlpm.b,_xlpm.a,_xlfn.UNIQUE(_xlpm.a)))))","v":"None"},{"$error":"#REF!"},{"$f":"IFERROR(VLOOKUP(H12,CornPreChemicals,4,FALSE),\"\")","v":""},null,{"$f":"_xlfn._xlws.SORT(_xlfn.LET(_xlpm.a,B28:B32,_xlpm.b,C28:C32,_xlfn.HSTACK(_xlfn.UNIQUE(_xlpm.a),SUMIFS(_xlpm.b,_xlpm.a,_xlfn.UNIQUE(_xlpm.a)))))","v":"None"},{"$error":"#REF!"},{"$f":"IFERROR(VLOOKUP(L12,CornInsecticides,4,FALSE),\"\")","v":""}]
[null,{"$f":"'Pesticide Plan (Corn)'!C27","v":"None"},{"$f":"'Pesticide Plan (Corn)'!H27/VLOOKUP(B13,CornPostChemicals,3,FALSE)*$F$3","v":{"$error":"#REF!"}},{"$error":"#REF!"},null,null,null,null,null,"",null,null,null,""]
[null,{"$f":"'Pesticide Plan (Corn)'!C28","v":"None"},{"$f":"'Pesticide Plan (Corn)'!H28/VLOOKUP(B14,CornPostChemicals,3,FALSE)*$F$3","v":{"$error":"#REF!"}},{"$error":"#REF!"},null,null,null,null,null,"",null,null,null,""]
[null,{"$f":"'Pesticide Plan (Corn)'!L26","v":"None"},{"$f":"'Pesticide Plan (Corn)'!Q26/VLOOKUP(B15,CornPostChemicals,3,FALSE)*$F$3","v":{"$error":"#REF!"}},{"$error":"#REF!"},null,null,null,null,null,"",null,null,null,""]
[null,{"$f":"'Pesticide Plan (Corn)'!L27","v":"None"},{"$f":"'Pesticide Plan (Corn)'!Q27/VLOOKUP(B16,CornPostChemicals,3,FALSE)*$F$3","v":{"$error":"#REF!"}},{"$error":"#REF!"},null,null,null,null,null,"",null,null,null,""]
[null,{"$f":"'Pesticide Plan (Corn)'!L28","v":"None"},{"$f":"'Pesticide Plan (Corn)'!Q28/VLOOKUP(B17,CornPostChemicals,3,FALSE)*$F$3","v":{"$error":"#REF!"}},{"$error":"#REF!"},null,null,null,null,null,"",null,null,null,""]
[]
[null,"Chemical Product (Fungicides)","Purchase Quantity","Product Unit",null,null,null,"Adjuvants","Purchase Quantity","Product Unit"]
[null,{"$f":"'Pesticide Plan (Corn)'!C55","v":"None"},{"$f":"'Pesticide Plan (Corn)'!H55/VLOOKUP(B20,CornFungicides,3,FALSE)*$F$3","v":{"$error":"#REF!"}},{"$f":"VLOOKUP(B20,CornFungicides,4,FALSE)","v":{"$error":"#REF!"}},null,null,null,{"$f":"_xlfn._xlws.SORT(_xlfn.LET(_xlpm.a,B36:B75,_xlpm.b,C36:C75,_xlfn.HSTACK(_xlfn.UNIQUE(_xlpm.a),SUMIFS(_xlpm.b,_xlpm.a,_xlfn.UNIQUE(_xlpm.a)))))","v":"None"},0,{"$f":"IFERROR(VLOOKUP(H20,CornAdjuvants,4,FALSE),\"\")","v":""}]
[null,{"$f":"'Pesticide Plan (Corn)'!C56","v":"None"},{"$f":"'Pesticide Plan (Corn)'!H56/VLOOKUP(B21,CornFungicides,3,FALSE)*$F$3","v":{"$error":"#REF!"}},{"$error":"#REF!"},null,null,null,null,null,""]
[null,{"$f":"'Pesticide Plan (Corn)'!C57","v":"None"},{"$f":"'Pesticide Plan (Corn)'!H57/VLOOKUP(B22,CornFungicides,3,FALSE)*$F$3","v":{"$error":"#REF!"}},{"$error":"#REF!"},null,null,null,null,null,""]
[null,{"$f":"'Pesticide Plan (Corn)'!L55","v":"None"},{"$f":"'Pesticide Plan (Corn)'!Q55/VLOOKUP(B23,CornFungicides,3,FALSE)*$F$3","v":{"$error":"#REF!"}},{"$error":"#REF!"},null,null,null,null,null,""]
[null,{"$f":"'Pesticide Plan (Corn)'!L56","v":"None"},{"$f":"'Pesticide Plan (Corn)'!Q56/VLOOKUP(B24,CornFungicides,3,FALSE)*$F$3","v":{"$error":"#REF!"}},{"$error":"#REF!"},null,null,null,null,null,""]
[null,{"$f":"'Pesticide Plan (Corn)'!L57","v":"None"},{"$f":"'Pesticide Plan (Corn)'!Q57/VLOOKUP(B25,CornFungicides,3,FALSE)*$F$3","v":{"$error":"#REF!"}},{"$error":"#REF!"},null,null,null,null,null,""]
[null,null,null,null,null,null,null,null,null,""]
[null,"Chemical Product (Insecticides)","Purchase Quantity","Product Unit",null,null,null,null,null,""]
[null,{"$f":"'Pesticide Plan (Corn)'!C71","v":"None"},{"$f":"'Pesticide Plan (Corn)'!H71/VLOOKUP(B28,CornInsecticides,3,FALSE)*$F$3","v":{"$error":"#REF!"}},{"$f":"VLOOKUP(B28,CornInsecticides,4,FALSE)","v":{"$error":"#REF!"}},null,null,null,null,null,""]
[null,{"$f":"'Pesticide Plan (Corn)'!C72","v":"None"},{"$f":"'Pesticide Plan (Corn)'!H72/VLOOKUP(B29,CornInsecticides,3,FALSE)*$F$3","v":{"$error":"#REF!"}},{"$error":"#REF!"},null,null,null,null,null,""]
[null,{"$f":"'Pesticide Plan (Corn)'!C73","v":"None"},{"$f":"'Pesticide Plan (Corn)'!H73/VLOOKUP(B30,CornInsecticides,3,FALSE)*$F$3","v":{"$error":"#REF!"}},{"$error":"#REF!"},null,null,null,null,null,""]
[null,{"$f":"'Pesticide Plan (Corn)'!L71","v":"None"},{"$f":"'Pesticide Plan (Corn)'!Q71/VLOOKUP(B31,CornInsecticides,3,FALSE)*$F$3","v":{"$error":"#REF!"}},{"$error":"#REF!"},null,null,null,null,null,""]
[null,{"$f":"'Pesticide Plan (Corn)'!L72","v":"None"},{"$f":"'Pesticide Plan (Corn)'!Q72/VLOOKUP(B32,CornInsecticides,3,FALSE)*$F$3","v":{"$error":"#REF!"}},{"$error":"#REF!"},null,null,null,null,null,""]
[null,{"$f":"'Pesticide Plan (Corn)'!L73","v":"None"},{"$f":"'Pesticide Plan (Corn)'!Q73/VLOOKUP(B33,CornInsecticides,3,FALSE)*$F$3","v":{"$error":"#REF!"}},{"$error":"#REF!"},null,null,null,null,null,""]
[null,null,null,null,null,null,null,null,null,""]
[null,"Chemical Product (Adjuvants)","Purchase Quantity","Product Unit",null,null,null,null,null,""]
[1,{"$f":"'Pesticide Plan (Corn)'!C14","v":"None"},{"$f":"'Pesticide Plan (Corn)'!H14/VLOOKUP(B36,Adjuvants,3,FALSE)*$F$3","v":0},{"$f":"VLOOKUP(B36,CornAdjuvants,4,FALSE)","v":{"$error":"#REF!"}},null,null,null,null,null,""]
[2,{"$f":"'Pesticide Plan (Corn)'!C15","v":"None"},{"$f":"'Pesticide Plan (Corn)'!H15/VLOOKUP(B37,Adjuvants,3,FALSE)*$F$3","v":0},{"$error":"#REF!"},null,null,null,null,null,""]
[3,{"$f":"'Pesticide Plan (Corn)'!C16","v":"None"},{"$f":"'Pesticide Plan (Corn)'!H16/VLOOKUP(B38,Adjuvants,3,FALSE)*$F$3","v":0},{"$error":"#REF!"},null,null,null,null,null,""]
[4,{"$f":"'Pesticide Plan (Corn)'!C17","v":"None"},{"$f":"'Pesticide Plan (Corn)'!H17/VLOOKUP(B39,Adjuvants,3,FALSE)*$F$3","v":0},{"$error":"#REF!"},null,null,null,null,null,""]
[5,{"$f":"'Pesticide Plan (Corn)'!C18","v":"None"},{"$f":"'Pesticide Plan (Corn)'!H18/VLOOKUP(B40,Adjuvants,3,FALSE)*$F$3","v":0},{"$error":"#REF!"},null,null,null,null,null,""]
[1,{"$f":"'Pesticide Plan (Corn)'!L14","v":"None"},{"$f":"'Pesticide Plan (Corn)'!Q14/VLOOKUP(B41,Adjuvants,3,FALSE)*$F$3","v":0},{"$error":"#REF!"},null,null,null,null,null,""]
[2,{"$f":"'Pesticide Plan (Corn)'!L15","v":"None"},{"$f":"'Pesticide Plan (Corn)'!Q15/VLOOKUP(B42,Adjuvants,3,FALSE)*$F$3","v":0},{"$error":"#REF!"},null,null,null,null,null,""]
[3,{"$f":"'Pesticide Plan (Corn)'!L16","v":"None"},{"$f":"'Pesticide Plan (Corn)'!Q16/VLOOKUP(B43,Adjuvants,3,FALSE)*$F$3","v":0},{"$error":"#REF!"},null,null,null,null,null,""]
[4,{"$f":"'Pesticide Plan (Corn)'!L17","v":"None"},{"$f":"'Pesticide Plan (Corn)'!Q17/VLOOKUP(B44,Adjuvants,3,FALSE)*$F$3","v":0},{"$error":"#REF!"},null,null,null,null,null,""]
[5,{"$f":"'Pesticide Plan (Corn)'!L18","v":"None"},{"$f":"'Pesticide Plan (Corn)'!Q18/VLOOKUP(B45,Adjuvants,3,FALSE)*$F$3","v":0},{"$error":"#REF!"},null,null,null,null,null,""]
[1,{"$f":"'Pesticide Plan (Corn)'!C33","v":"None"},{"$f":"'Pesticide Plan (Corn)'!H33/VLOOKUP(B46,Adjuvants,3,FALSE)*$F$3","v":0},{"$f":"VLOOKUP(B46,CornAdjuvants,4,FALSE)","v":{"$error":"#REF!"}},null,null,null,null,null,""]
[2,{"$f":"'Pesticide Plan (Corn)'!C34","v":"None"},{"$f":"'Pesticide Plan (Corn)'!H34/VLOOKUP(B47,Adjuvants,3,FALSE)*$F$3","v":0},{"$f":"VLOOKUP(B47,CornAdjuvants,4,FALSE)","v":{"$error":"#REF!"}},null,null,null,null,null,""]
[3,{"$f":"'Pesticide Plan (Corn)'!C35","v":"None"},{"$f":"'Pesticide Plan (Corn)'!H35/VLOOKUP(B48,Adjuvants,3,FALSE)*$F$3","v":0},{"$error":"#REF!"},null,null,null,null,null,""]
[4,{"$f":"'Pesticide Plan (Corn)'!C36","v":"None"},{"$f":"'Pesticide Plan (Corn)'!H36/VLOOKUP(B49,Adjuvants,3,FALSE)*$F$3","v":0},{"$error":"#REF!"},null,null,null,null,null,""]
[5,{"$f":"'Pesticide Plan (Corn)'!C37","v":"None"},{"$f":"'Pesticide Plan (Corn)'!H37/VLOOKUP(B50,Adjuvants,3,FALSE)*$F$3","v":0},{"$error":"#REF!"},null,null,null,null,null,""]
[1,{"$f":"'Pesticide Plan (Corn)'!L33","v":"None"},{"$f":"'Pesticide Plan (Corn)'!Q33/VLOOKUP(B51,Adjuvants,3,FALSE)*$F$3","v":0},{"$error":"#REF!"},null,null,null,null,null,""]
[2,{"$f":"'Pesticide Plan (Corn)'!L34","v":"None"},{"$f":"'Pesticide Plan (Corn)'!Q34/VLOOKUP(B52,Adjuvants,3,FALSE)*$F$3","v":0},{"$f":"VLOOKUP(B52,CornAdjuvants,4,FALSE)","v":{"$error":"#REF!"}},null,null,null,null,null,""]
[3,{"$f":"'Pesticide Plan (Corn)'!L35","v":"None"},{"$f":"'Pesticide Plan (Corn)'!Q35/VLOOKUP(B53,Adjuvants,3,FALSE)*$F$3","v":0},{"$error":"#REF!"},null,null,null,null,null,""]
[4,{"$f":"'Pesticide Plan (Corn)'!L36","v":"None"},{"$f":"'Pesticide Plan (Corn)'!Q36/VLOOKUP(B54,Adjuvants,3,FALSE)*$F$3","v":0},{"$error":"#REF!"},null,null,null,null,null,""]
[5,{"$f":"'Pesticide Plan (Corn)'!L37","v":"None"},{"$f":"'Pesticide Plan (Corn)'!Q37/VLOOKUP(B55,Adjuvants,3,FALSE)*$F$3","v":0},{"$error":"#REF!"},null,null,null,null,null,""]
[1,{"$f":"'Pesticide Plan (Corn)'!C60","v":"None"},{"$f":"'Pesticide Plan (Corn)'!H60/VLOOKUP(B56,Adjuvants,3,FALSE)*$F$3","v":0},{"$error":"#REF!"},null,null,null,null,null,""]
[2,{"$f":"'Pesticide Plan (Corn)'!C61","v":"None"},{"$f":"'Pesticide Plan (Corn)'!H61/VLOOKUP(B57,Adjuvants,3,FALSE)*$F$3","v":0},{"$error":"#REF!"},null,null,null,null,null,""]
[3,{"$f":"'Pesticide Plan (Corn)'!C62","v":"None"},{"$f":"'Pesticide Plan (Corn)'!H62/VLOOKUP(B58,Adjuvants,3,FALSE)*$F$3","v":0},{"$error":"#REF!"},null,null,null,null,null,""]
[4,{"$f":"'Pesticide Plan (Corn)'!C63","v":"None"},{"$f":"'Pesticide Plan (Corn)'!H63/VLOOKUP(B59,Adjuvants,3,FALSE)*$F$3","v":0},{"$error":"#REF!"},null,null,null,null,null,""]
[5,{"$f":"'Pesticide Plan (Corn)'!C64","v":"None"},{"$f":"'Pesticide Plan (Corn)'!H64/VLOOKUP(B60,Adjuvants,3,FALSE)*$F$3","v":0},{"$error":"#REF!"}]
[1,{"$f":"'Pesticide Plan (Corn)'!L60","v":"None"},{"$f":"'Pesticide Plan (Corn)'!Q60/VLOOKUP(B61,Adjuvants,3,FALSE)*$F$3","v":0},{"$error":"#REF!"}]
[2,{"$f":"'Pesticide Plan (Corn)'!L61","v":"None"},{"$f":"'Pesticide Plan (Corn)'!Q61/VLOOKUP(B62,Adjuvants,3,FALSE)*$F$3","v":0},{"$error":"#REF!"}]
[3,{"$f":"'Pesticide Plan (Corn)'!L62","v":"None"},{"$f":"'Pesticide Plan (Corn)'!Q62/VLOOKUP(B63,Adjuvants,3,FALSE)*$F$3","v":0},{"$error":"#REF!"}]
[4,{"$f":"'Pesticide Plan (Corn)'!L63","v":"None"},{"$f":"'Pesticide Plan (Corn)'!Q63/VLOOKUP(B64,Adjuvants,3,FALSE)*$F$3","v":0},{"$error":"#REF!"}]
[5,{"$f":"'Pesticide Plan (Corn)'!L64","v":"None"},{"$f":"'Pesticide Plan (Corn)'!Q64/VLOOKUP(B65,Adjuvants,3,FALSE)*$F$3","v":0},{"$error":"#REF!"}]
[1,{"$f":"'Pesticide Plan (Corn)'!C76","v":"None"},{"$f":"'Pesticide Plan (Corn)'!H76/VLOOKUP(B66,Adjuvants,3,FALSE)*$F$3","v":0},{"$f":"VLOOKUP(B66,CornAdjuvants,4,FALSE)","v":{"$error":"#REF!"}}]
[2,{"$f":"'Pesticide Plan (Corn)'!C77","v":"None"},{"$f":"'Pesticide Plan (Corn)'!H77/VLOOKUP(B67,Adjuvants,3,FALSE)*$F$3","v":0},{"$error":"#REF!"}]
[3,{"$f":"'Pesticide Plan (Corn)'!C78","v":"None"},{"$f":"'Pesticide Plan (Corn)'!H78/VLOOKUP(B68,Adjuvants,3,FALSE)*$F$3","v":0},{"$error":"#REF!"}]
[4,{"$f":"'Pesticide Plan (Corn)'!C79","v":"None"},{"$f":"'Pesticide Plan (Corn)'!H79/VLOOKUP(B69,Adjuvants,3,FALSE)*$F$3","v":0},{"$error":"#REF!"}]
[5,{"$f":"'Pesticide Plan (Corn)'!C80","v":"None"},{"$f":"'Pesticide Plan (Corn)'!H80/VLOOKUP(B70,Adjuvants,3,FALSE)*$F$3","v":0},{"$error":"#REF!"}]
[1,{"$f":"'Pesticide Plan (Corn)'!L76","v":"None"},{"$f":"'Pesticide Plan (Corn)'!Q76/VLOOKUP(B71,Adjuvants,3,FALSE)*$F$3","v":0},{"$error":"#REF!"}]
[2,{"$f":"'Pesticide Plan (Corn)'!L77","v":"None"},{"$f":"'Pesticide Plan (Corn)'!Q77/VLOOKUP(B72,Adjuvants,3,FALSE)*$F$3","v":0},{"$error":"#REF!"}]
[3,{"$f":"'Pesticide Plan (Corn)'!L78","v":"None"},{"$f":"'Pesticide Plan (Corn)'!Q78/VLOOKUP(B73,Adjuvants,3,FALSE)*$F$3","v":0},{"$error":"#REF!"}]
[4,{"$f":"'Pesticide Plan (Corn)'!L79","v":"None"},{"$f":"'Pesticide Plan (Corn)'!Q79/VLOOKUP(B74,Adjuvants,3,FALSE)*$F$3","v":0},{"$error":"#REF!"}]
[5,{"$f":"'Pesticide Plan (Corn)'!L80","v":"None"},{"$f":"'Pesticide Plan (Corn)'!Q80/VLOOKUP(B75,Adjuvants,3,FALSE)*$F$3","v":0},{"$error":"#REF!"}]

{"sheet":"Product Purchase List (Soys)","index":9,"n_rows":75,"n_cols":14,"rows_kept":75,"cut":false,"hidden":false,"merged":[[0,1,0,3],[0,7,0,13]]}
[null,"Product Purchase List (Soybean)",null,null,null,null,null,"Chemical Product Purchase List (Soybean)"]
[null,null,null,null,null,"Acres"]
[null,"Chemical Product (Pre-Emergent Herbicides)","Purchase Quantity","Product Unit",null,100,null,"Pre-Emergent Herbicides","Purchase Quantity","Product Unit",null,"Fungicides","Purchase Quantity","Product Unit"]
[null,{"$f":"'Pesticide Plan (Soybeans)'!C7","v":"None"},{"$f":"'Pesticide Plan (Soybeans)'!H7/VLOOKUP(B4,SoybeanPreChemicals,3,FALSE)*$F$3","v":{"$error":"#REF!"}},{"$f":"VLOOKUP(B4,SoybeanPreChemicals,4,FALSE)","v":{"$error":"#REF!"}},null,null,null,{"$f":"_xlfn._xlws.SORT(_xlfn.LET(_xlpm.a,B4:B9,_xlpm.b,C4:C9,_xlfn.HSTACK(_xlfn.UNIQUE(_xlpm.a),SUMIFS(_xlpm.b,_xlpm.a,_xlfn.UNIQUE(_xlpm.a)))))","v":"None"},{"$error":"#REF!"},{"$f":"IFERROR(VLOOKUP(H4,SoybeanPreChemicals,4,FALSE),\"\")","v":""},null,{"$f":"_xlfn._xlws.SORT(_xlfn.LET(_xlpm.a,B20:B25,_xlpm.b,C20:C25,_xlfn.HSTACK(_xlfn.UNIQUE(_xlpm.a),SUMIFS(_xlpm.b,_xlpm.a,_xlfn.UNIQUE(_xlpm.a)))))","v":"None"},{"$error":"#REF!"},{"$f":"IFERROR(VLOOKUP(L4,SoybeanFungicides,4,FALSE),\"\")","v":""}]
[null,{"$f":"'Pesticide Plan (Soybeans)'!C8","v":"None"},{"$f":"'Pesticide Plan (Soybeans)'!H8/VLOOKUP(B5,SoybeanPreChemicals,3,FALSE)*$F$3","v":{"$error":"#REF!"}},{"$error":"#REF!"},null,null,null,null,null,"",null,null,null,""]
[null,{"$f":"'Pesticide Plan (Soybeans)'!C9","v":"None"},{"$f":"'Pesticide Plan (Soybeans)'!H9/VLOOKUP(B6,SoybeanPreChemicals,3,FALSE)*$F$3","v":{"$error":"#REF!"}},{"$error":"#REF!"},null,null,null,null,null,"",null,null,null,""]
[null,{"$f":"'Pesticide Plan (Soybeans)'!L7","v":"None"},{"$f":"'Pesticide Plan (Soybeans)'!Q7/VLOOKUP(B7,SoybeanPreChemicals,3,FALSE)*$F$3","v":{"$error":"#REF!"}},{"$error":"#REF!"},null,null,null,null,null,"",null,null,null,""]
[null,{"$f":"'Pesticide Plan (Soybeans)'!L8","v":"None"},{"$f":"'Pesticide Plan (Soybeans)'!Q8/VLOOKUP(B8,SoybeanPreChemicals,3,FALSE)*$F$3","v":{"$error":"#REF!"}},{"$error":"#REF!"},null,null,null,null,null,"",null,null,null,""]
[null,{"$f":"'Pesticide Plan (Soybeans)'!L9","v":"None"},{"$f":"'Pesticide Plan (Soybeans)'!Q9/VLOOKUP(B9,SoybeanPreChemicals,3,FALSE)*$F$3","v":{"$error":"#REF!"}},{"$error":"#REF!"},null,null,null,null,null,"",null,null,null,""]
[]
[null,"Chemical Product (Post-Emergent Herbicides)","Purchase Quantity","Product Unit",null,null,null,"Post-Emergent Herbicides","Purchase Quantity","Product Unit",null,"Insecticides","Purchase Quantity","Product Unit"]
[null,{"$f":"'Pesticide Plan (Soybeans)'!C26","v":"None"},{"$f":"'Pesticide Plan (Soybeans)'!H26/VLOOKUP(B12,SoybeanPostChemicals,3,FALSE)*$F$3","v":{"$error":"#REF!"}},{"$f":"VLOOKUP(B12,SoybeanPostChemicals,4,FALSE)","v":{"$error":"#REF!"}},null,null,null,{"$f":"_xlfn._xlws.SORT(_xlfn.LET(_xlpm.a,B12:B17,_xlpm.b,C12:C17,_xlfn.HSTACK(_xlfn.UNIQUE(_xlpm.a),SUMIFS(_xlpm.b,_xlpm.a,_xlfn.UNIQUE(_xlpm.a)))))","v":"None"},{"$error":"#REF!"},{"$f":"IFERROR(VLOOKUP(H12,SoybeanPreChemicals,4,FALSE),\"\")","v":""},null,{"$f":"_xlfn._xlws.SORT(_xlfn.LET(_xlpm.a,B28:B32,_xlpm.b,C28:C32,_xlfn.HSTACK(_xlfn.UNIQUE(_xlpm.a),SUMIFS(_xlpm.b,_xlpm.a,_xlfn.UNIQUE(_xlpm.a)))))","v":"None"},{"$error":"#REF!"},{"$f":"IFERROR(VLOOKUP(L12,SoybeanInsecticides,4,FALSE),\"\")","v":""}]
[null,{"$f":"'Pesticide Plan (Soybeans)'!C27","v":"None"},{"$f":"'Pesticide Plan (Soybeans)'!H27/VLOOKUP(B13,SoybeanPostChemicals,3,FALSE)*$F$3","v":{"$error":"#REF!"}},{"$error":"#REF!"},null,null,null,null,null,"",null,null,null,""]
[null,{"$f":"'Pesticide Plan (Soybeans)'!C28","v":"None"},{"$f":"'Pesticide Plan (Soybeans)'!H28/VLOOKUP(B14,SoybeanPostChemicals,3,FALSE)*$F$3","v":{"$error":"#REF!"}},{"$error":"#REF!"},null,null,null,null,null,"",null,null,null,""]
[null,{"$f":"'Pesticide Plan (Soybeans)'!L26","v":"None"},{"$f":"'Pesticide Plan (Soybeans)'!Q26/VLOOKUP(B15,SoybeanPostChemicals,3,FALSE)*$F$3","v":{"$error":"#REF!"}},{"$error":"#REF!"},null,null,null,null,null,"",null,null,null,""]
[null,{"$f":"'Pesticide Plan (Soybeans)'!L27","v":"None"},{"$f":"'Pesticide Plan (Soybeans)'!Q27/VLOOKUP(B16,SoybeanPostChemicals,3,FALSE)*$F$3","v":{"$error":"#REF!"}},{"$error":"#REF!"},null,null,null,null,null,"",null,null,null,""]
[null,{"$f":"'Pesticide Plan (Soybeans)'!L28","v":"None"},{"$f":"'Pesticide Plan (Soybeans)'!Q28/VLOOKUP(B17,SoybeanPostChemicals,3,FALSE)*$F$3","v":{"$error":"#REF!"}},{"$error":"#REF!"},null,null,null,null,null,"",null,null,null,""]
[]
[null,"Chemical Product (Fungicides)","Purchase Quantity","Product Unit",null,null,null,"Adjuvants","Purchase Quantity","Product Unit"]
[null,{"$f":"'Pesticide Plan (Soybeans)'!C55","v":"None"},{"$f":"'Pesticide Plan (Soybeans)'!H55/VLOOKUP(B20,SoybeanFungicides,3,FALSE)*$F$3","v":{"$error":"#REF!"}},{"$f":"VLOOKUP(B20,SoybeanFungicides,4,FALSE)","v":{"$error":"#REF!"}},null,null,null,{"$f":"_xlfn._xlws.SORT(_xlfn.LET(_xlpm.a,B36:B75,_xlpm.b,C36:C75,_xlfn.HSTACK(_xlfn.UNIQUE(_xlpm.a),SUMIFS(_xlpm.b,_xlpm.a,_xlfn.UNIQUE(_xlpm.a)))))","v":"None"},0,{"$f":"IFERROR(VLOOKUP(H20,Adjuvants,4,FALSE),\"\")","v":"None"}]
[null,{"$f":"'Pesticide Plan (Soybeans)'!C56","v":"None"},{"$f":"'Pesticide Plan (Soybeans)'!H56/VLOOKUP(B21,SoybeanFungicides,3,FALSE)*$F$3","v":{"$error":"#REF!"}},{"$error":"#REF!"},null,null,null,null,null,""]
[null,{"$f":"'Pesticide Plan (Soybeans)'!C57","v":"None"},{"$f":"'Pesticide Plan (Soybeans)'!H57/VLOOKUP(B22,SoybeanFungicides,3,FALSE)*$F$3","v":{"$error":"#REF!"}},{"$error":"#REF!"},null,null,null,null,null,""]
[null,{"$f":"'Pesticide Plan (Soybeans)'!L55","v":"None"},{"$f":"'Pesticide Plan (Soybeans)'!Q55/VLOOKUP(B23,SoybeanFungicides,3,FALSE)*$F$3","v":{"$error":"#REF!"}},{"$error":"#REF!"},null,null,null,null,null,""]
[null,{"$f":"'Pesticide Plan (Soybeans)'!L56","v":"None"},{"$f":"'Pesticide Plan (Soybeans)'!Q56/VLOOKUP(B24,SoybeanFungicides,3,FALSE)*$F$3","v":{"$error":"#REF!"}},{"$error":"#REF!"},null,null,null,null,null,""]
[null,{"$f":"'Pesticide Plan (Soybeans)'!L57","v":"None"},{"$f":"'Pesticide Plan (Soybeans)'!Q57/VLOOKUP(B25,SoybeanFungicides,3,FALSE)*$F$3","v":{"$error":"#REF!"}},{"$error":"#REF!"},null,null,null,null,null,""]
[null,null,null,null,null,null,null,null,null,""]
[null,"Chemical Product (Insecticides)","Purchase Quantity","Product Unit",null,null,null,null,null,""]
[null,{"$f":"'Pesticide Plan (Soybeans)'!C71","v":"None"},{"$f":"'Pesticide Plan (Soybeans)'!H71/VLOOKUP(B28,SoybeanInsecticides,3,FALSE)*$F$3","v":{"$error":"#REF!"}},{"$f":"VLOOKUP(B28,SoybeanInsecticides,4,FALSE)","v":{"$error":"#REF!"}},null,null,null,null,null,""]
[null,{"$f":"'Pesticide Plan (Soybeans)'!C72","v":"None"},{"$f":"'Pesticide Plan (Soybeans)'!H72/VLOOKUP(B29,SoybeanInsecticides,3,FALSE)*$F$3","v":{"$error":"#REF!"}},{"$error":"#REF!"},null,null,null,null,null,""]
[null,{"$f":"'Pesticide Plan (Soybeans)'!C73","v":"None"},{"$f":"'Pesticide Plan (Soybeans)'!H73/VLOOKUP(B30,SoybeanInsecticides,3,FALSE)*$F$3","v":{"$error":"#REF!"}},{"$error":"#REF!"},null,null,null,null,null,""]
[null,{"$f":"'Pesticide Plan (Soybeans)'!L71","v":"None"},{"$f":"'Pesticide Plan (Soybeans)'!Q71/VLOOKUP(B31,SoybeanInsecticides,3,FALSE)*$F$3","v":{"$error":"#REF!"}},{"$error":"#REF!"},null,null,null,null,null,""]
[null,{"$f":"'Pesticide Plan (Soybeans)'!L72","v":"None"},{"$f":"'Pesticide Plan (Soybeans)'!Q72/VLOOKUP(B32,SoybeanInsecticides,3,FALSE)*$F$3","v":{"$error":"#REF!"}},{"$error":"#REF!"},null,null,null,null,null,""]
[null,{"$f":"'Pesticide Plan (Soybeans)'!L73","v":"None"},{"$f":"'Pesticide Plan (Soybeans)'!Q73/VLOOKUP(B33,SoybeanInsecticides,3,FALSE)*$F$3","v":{"$error":"#REF!"}},{"$error":"#REF!"},null,null,null,null,null,""]
[null,null,null,null,null,null,null,null,null,""]
[null,"Chemical Product (Adjuvants)","Purchase Quantity","Product Unit",null,null,null,null,null,""]
[1,{"$f":"'Pesticide Plan (Soybeans)'!C14","v":"None"},{"$f":"'Pesticide Plan (Soybeans)'!H14/VLOOKUP(B36,Adjuvants,3,FALSE)*$F$3","v":0},{"$f":"VLOOKUP(B36,Adjuvants,4,FALSE)","v":"None"},null,null,null,null,null,""]
[2,{"$f":"'Pesticide Plan (Soybeans)'!C15","v":"None"},{"$f":"'Pesticide Plan (Soybeans)'!H15/VLOOKUP(B37,Adjuvants,3,FALSE)*$F$3","v":0},"None",null,null,null,null,null,""]
[3,{"$f":"'Pesticide Plan (Soybeans)'!C16","v":"None"},{"$f":"'Pesticide Plan (Soybeans)'!H16/VLOOKUP(B38,Adjuvants,3,FALSE)*$F$3","v":0},"None",null,null,null,null,null,""]
[4,{"$f":"'Pesticide Plan (Soybeans)'!C17","v":"None"},{"$f":"'Pesticide Plan (Soybeans)'!H17/VLOOKUP(B39,Adjuvants,3,FALSE)*$F$3","v":0},"None",null,null,null,null,null,""]
[5,{"$f":"'Pesticide Plan (Soybeans)'!C18","v":"None"},{"$f":"'Pesticide Plan (Soybeans)'!H18/VLOOKUP(B40,Adjuvants,3,FALSE)*$F$3","v":0},"None",null,null,null,null,null,""]
[1,{"$f":"'Pesticide Plan (Soybeans)'!L14","v":"None"},{"$f":"'Pesticide Plan (Soybeans)'!Q14/VLOOKUP(B41,Adjuvants,3,FALSE)*$F$3","v":0},"None",null,null,null,null,null,""]
[2,{"$f":"'Pesticide Plan (Soybeans)'!L15","v":"None"},{"$f":"'Pesticide Plan (Soybeans)'!Q15/VLOOKUP(B42,Adjuvants,3,FALSE)*$F$3","v":0},"None",null,null,null,null,null,""]
[3,{"$f":"'Pesticide Plan (Soybeans)'!L16","v":"None"},{"$f":"'Pesticide Plan (Soybeans)'!Q16/VLOOKUP(B43,Adjuvants,3,FALSE)*$F$3","v":0},"None",null,null,null,null,null,""]
[4,{"$f":"'Pesticide Plan (Soybeans)'!L17","v":"None"},{"$f":"'Pesticide Plan (Soybeans)'!Q17/VLOOKUP(B44,Adjuvants,3,FALSE)*$F$3","v":0},"None",null,null,null,null,null,""]
[5,{"$f":"'Pesticide Plan (Soybeans)'!L18","v":"None"},{"$f":"'Pesticide Plan (Soybeans)'!Q18/VLOOKUP(B45,Adjuvants,3,FALSE)*$F$3","v":0},"None",null,null,null,null,null,""]
[1,{"$f":"'Pesticide Plan (Soybeans)'!C33","v":"None"},{"$f":"'Pesticide Plan (Soybeans)'!H33/VLOOKUP(B46,Adjuvants,3,FALSE)*$F$3","v":0},"None",null,null,null,null,null,""]
[2,{"$f":"'Pesticide Plan (Soybeans)'!C34","v":"None"},{"$f":"'Pesticide Plan (Soybeans)'!H34/VLOOKUP(B47,Adjuvants,3,FALSE)*$F$3","v":0},"None",null,null,null,null,null,""]
[3,{"$f":"'Pesticide Plan (Soybeans)'!C35","v":"None"},{"$f":"'Pesticide Plan (Soybeans)'!H35/VLOOKUP(B48,Adjuvants,3,FALSE)*$F$3","v":0},"None",null,null,null,null,null,""]
[4,{"$f":"'Pesticide Plan (Soybeans)'!C36","v":"None"},{"$f":"'Pesticide Plan (Soybeans)'!H36/VLOOKUP(B49,Adjuvants,3,FALSE)*$F$3","v":0},"None",null,null,null,null,null,""]
[5,{"$f":"'Pesticide Plan (Soybeans)'!C37","v":"None"},{"$f":"'Pesticide Plan (Soybeans)'!H37/VLOOKUP(B50,Adjuvants,3,FALSE)*$F$3","v":0},"None",null,null,null,null,null,""]
[1,{"$f":"'Pesticide Plan (Soybeans)'!L33","v":"None"},{"$f":"'Pesticide Plan (Soybeans)'!Q33/VLOOKUP(B51,Adjuvants,3,FALSE)*$F$3","v":0},"None",null,null,null,null,null,""]
[2,{"$f":"'Pesticide Plan (Soybeans)'!L34","v":"None"},{"$f":"'Pesticide Plan (Soybeans)'!Q34/VLOOKUP(B52,Adjuvants,3,FALSE)*$F$3","v":0},"None",null,null,null,null,null,""]
[3,{"$f":"'Pesticide Plan (Soybeans)'!L35","v":"None"},{"$f":"'Pesticide Plan (Soybeans)'!Q35/VLOOKUP(B53,Adjuvants,3,FALSE)*$F$3","v":0},"None",null,null,null,null,null,""]
[4,{"$f":"'Pesticide Plan (Soybeans)'!L36","v":"None"},{"$f":"'Pesticide Plan (Soybeans)'!Q36/VLOOKUP(B54,Adjuvants,3,FALSE)*$F$3","v":0},"None",null,null,null,null,null,""]
[5,{"$f":"'Pesticide Plan (Soybeans)'!L37","v":"None"},{"$f":"'Pesticide Plan (Soybeans)'!Q37/VLOOKUP(B55,Adjuvants,3,FALSE)*$F$3","v":0},"None",null,null,null,null,null,""]
[1,{"$f":"'Pesticide Plan (Soybeans)'!C60","v":"None"},{"$f":"'Pesticide Plan (Soybeans)'!H60/VLOOKUP(B56,Adjuvants,3,FALSE)*$F$3","v":0},"None",null,null,null,null,null,""]
[2,{"$f":"'Pesticide Plan (Soybeans)'!C61","v":"None"},{"$f":"'Pesticide Plan (Soybeans)'!H61/VLOOKUP(B57,Adjuvants,3,FALSE)*$F$3","v":0},"None",null,null,null,null,null,""]
[3,{"$f":"'Pesticide Plan (Soybeans)'!C62","v":"None"},{"$f":"'Pesticide Plan (Soybeans)'!H62/VLOOKUP(B58,Adjuvants,3,FALSE)*$F$3","v":0},"None",null,null,null,null,null,""]
[4,{"$f":"'Pesticide Plan (Soybeans)'!C63","v":"None"},{"$f":"'Pesticide Plan (Soybeans)'!H63/VLOOKUP(B59,Adjuvants,3,FALSE)*$F$3","v":0},"None",null,null,null,null,null,""]
[5,{"$f":"'Pesticide Plan (Soybeans)'!C64","v":"None"},{"$f":"'Pesticide Plan (Soybeans)'!H64/VLOOKUP(B60,Adjuvants,3,FALSE)*$F$3","v":0},"None"]
[1,{"$f":"'Pesticide Plan (Soybeans)'!L60","v":"None"},{"$f":"'Pesticide Plan (Soybeans)'!Q60/VLOOKUP(B61,Adjuvants,3,FALSE)*$F$3","v":0},"None"]
[2,{"$f":"'Pesticide Plan (Soybeans)'!L61","v":"None"},{"$f":"'Pesticide Plan (Soybeans)'!Q61/VLOOKUP(B62,Adjuvants,3,FALSE)*$F$3","v":0},"None"]
[3,{"$f":"'Pesticide Plan (Soybeans)'!L62","v":"None"},{"$f":"'Pesticide Plan (Soybeans)'!Q62/VLOOKUP(B63,Adjuvants,3,FALSE)*$F$3","v":0},"None"]
[4,{"$f":"'Pesticide Plan (Soybeans)'!L63","v":"None"},{"$f":"'Pesticide Plan (Soybeans)'!Q63/VLOOKUP(B64,Adjuvants,3,FALSE)*$F$3","v":0},"None"]
[5,{"$f":"'Pesticide Plan (Soybeans)'!L64","v":"None"},{"$f":"'Pesticide Plan (Soybeans)'!Q64/VLOOKUP(B65,Adjuvants,3,FALSE)*$F$3","v":0},"None"]
[1,{"$f":"'Pesticide Plan (Soybeans)'!C76","v":"None"},{"$f":"'Pesticide Plan (Soybeans)'!H76/VLOOKUP(B66,Adjuvants,3,FALSE)*$F$3","v":0},"None"]
[2,{"$f":"'Pesticide Plan (Soybeans)'!C77","v":"None"},{"$f":"'Pesticide Plan (Soybeans)'!H77/VLOOKUP(B67,Adjuvants,3,FALSE)*$F$3","v":0},"None"]
[3,{"$f":"'Pesticide Plan (Soybeans)'!C78","v":"None"},{"$f":"'Pesticide Plan (Soybeans)'!H78/VLOOKUP(B68,Adjuvants,3,FALSE)*$F$3","v":0},"None"]
[4,{"$f":"'Pesticide Plan (Soybeans)'!C79","v":"None"},{"$f":"'Pesticide Plan (Soybeans)'!H79/VLOOKUP(B69,Adjuvants,3,FALSE)*$F$3","v":0},"None"]
[5,{"$f":"'Pesticide Plan (Soybeans)'!C80","v":"None"},{"$f":"'Pesticide Plan (Soybeans)'!H80/VLOOKUP(B70,Adjuvants,3,FALSE)*$F$3","v":0},"None"]
[1,{"$f":"'Pesticide Plan (Soybeans)'!L76","v":"None"},{"$f":"'Pesticide Plan (Soybeans)'!Q76/VLOOKUP(B71,Adjuvants,3,FALSE)*$F$3","v":0},"None"]
[2,{"$f":"'Pesticide Plan (Soybeans)'!L77","v":"None"},{"$f":"'Pesticide Plan (Soybeans)'!Q77/VLOOKUP(B72,Adjuvants,3,FALSE)*$F$3","v":0},"None"]
[3,{"$f":"'Pesticide Plan (Soybeans)'!L78","v":"None"},{"$f":"'Pesticide Plan (Soybeans)'!Q78/VLOOKUP(B73,Adjuvants,3,FALSE)*$F$3","v":0},"None"]
[4,{"$f":"'Pesticide Plan (Soybeans)'!L79","v":"None"},{"$f":"'Pesticide Plan (Soybeans)'!Q79/VLOOKUP(B74,Adjuvants,3,FALSE)*$F$3","v":0},"None"]
[5,{"$f":"'Pesticide Plan (Soybeans)'!L80","v":"None"},{"$f":"'Pesticide Plan (Soybeans)'!Q80/VLOOKUP(B75,Adjuvants,3,FALSE)*$F$3","v":0},"None"]

{"sheet":"Product Purchase List (Wheat)","index":10,"n_rows":75,"n_cols":14,"rows_kept":75,"cut":false,"hidden":false,"merged":[[0,1,0,3],[0,7,0,13]]}
[null,"Product Purchase List (Wheat)",null,null,null,null,null,"Chemical Product Purchase List (Wheat)"]
[null,null,null,null,null,"Acres"]
[null,"Chemical Product (Pre-Emergent Herbicides)","Purchase Quantity","Product Unit",null,100,null,"Pre-Emergent Herbicides","Purchase Quantity","Product Unit",null,"Fungicides","Purchase Quantity","Product Unit"]
[null,{"$f":"'Pesticide Plan (Wheat)'!C7","v":"None"},{"$f":"'Pesticide Plan (Wheat)'!H7/VLOOKUP(B4,WheatChemicals,3,FALSE)*$F$3","v":{"$error":"#REF!"}},{"$f":"VLOOKUP(B4,WheatPreChemicals,4,FALSE)","v":{"$error":"#NAME?"}},null,null,null,{"$f":"_xlfn._xlws.SORT(_xlfn.LET(_xlpm.a,B4:B9,_xlpm.b,C4:C9,_xlfn.HSTACK(_xlfn.UNIQUE(_xlpm.a),SUMIFS(_xlpm.b,_xlpm.a,_xlfn.UNIQUE(_xlpm.a)))))","v":"None"},{"$error":"#REF!"},{"$f":"IFERROR(VLOOKUP(H4,WheatPreChemicals,4,FALSE),\"\")","v":""},null,{"$f":"_xlfn._xlws.SORT(_xlfn.LET(_xlpm.a,B20:B25,_xlpm.b,C20:C25,_xlfn.HSTACK(_xlfn.UNIQUE(_xlpm.a),SUMIFS(_xlpm.b,_xlpm.a,_xlfn.UNIQUE(_xlpm.a)))))","v":"None"},{"$error":"#REF!"},{"$f":"IFERROR(VLOOKUP(L4,WheatFungicides,4,FALSE),\"\")","v":""}]
[null,{"$f":"'Pesticide Plan (Wheat)'!C8","v":"None"},{"$f":"'Pesticide Plan (Wheat)'!H8/VLOOKUP(B5,WheatChemicals,3,FALSE)*$F$3","v":{"$error":"#REF!"}},{"$f":"VLOOKUP(B5,WheatPreChemicals,4,FALSE)","v":{"$error":"#NAME?"}},null,null,null,null,null,{"$f":"IFERROR(VLOOKUP(H5,WheatPreChemicals,4,FALSE),\"\")","v":""},null,null,null,""]
[null,{"$f":"'Pesticide Plan (Wheat)'!C9","v":"None"},{"$f":"'Pesticide Plan (Wheat)'!H9/VLOOKUP(B6,WheatChemicals,3,FALSE)*$F$3","v":{"$error":"#REF!"}},{"$f":"VLOOKUP(B6,WheatPreChemicals,4,FALSE)","v":{"$error":"#NAME?"}},null,null,null,null,null,{"$f":"IFERROR(VLOOKUP(H6,WheatPreChemicals,4,FALSE),\"\")","v":""},null,null,null,""]
[null,{"$f":"'Pesticide Plan (Wheat)'!L7","v":"None"},{"$f":"'Pesticide Plan (Wheat)'!Q7/VLOOKUP(B7,WheatChemicals,3,FALSE)*$F$3","v":{"$error":"#REF!"}},{"$f":"VLOOKUP(B7,WheatPreChemicals,4,FALSE)","v":{"$error":"#NAME?"}},null,null,null,null,null,{"$f":"IFERROR(VLOOKUP(H7,WheatPreChemicals,4,FALSE),\"\")","v":""},null,null,null,""]
[null,{"$f":"'Pesticide Plan (Wheat)'!L8","v":"None"},{"$f":"'Pesticide Plan (Wheat)'!Q8/VLOOKUP(B8,WheatChemicals,3,FALSE)*$F$3","v":{"$error":"#REF!"}},{"$f":"VLOOKUP(B8,WheatPreChemicals,4,FALSE)","v":{"$error":"#NAME?"}},null,null,null,null,null,{"$f":"IFERROR(VLOOKUP(H8,WheatPreChemicals,4,FALSE),\"\")","v":""},null,null,null,""]
[null,{"$f":"'Pesticide Plan (Wheat)'!L9","v":"None"},{"$f":"'Pesticide Plan (Wheat)'!Q9/VLOOKUP(B9,WheatChemicals,3,FALSE)*$F$3","v":{"$error":"#REF!"}},{"$f":"VLOOKUP(B9,WheatPreChemicals,4,FALSE)","v":{"$error":"#NAME?"}},null,null,null,null,null,{"$f":"IFERROR(VLOOKUP(H9,WheatPreChemicals,4,FALSE),\"\")","v":""},null,null,null,""]
[]
[null,"Chemical Product (Post-Emergent Herbicides)","Purchase Quantity","Product Unit",null,null,null,"Post-Emergent Herbicides","Purchase Quantity","Product Unit",null,"Insecticides","Purchase Quantity","Product Unit"]
[null,{"$f":"'Pesticide Plan (Wheat)'!C26","v":"None"},{"$f":"'Pesticide Plan (Wheat)'!H26/VLOOKUP(B12,WheatChemicals,3,FALSE)*$F$3","v":{"$error":"#REF!"}},{"$f":"VLOOKUP(B12,WheatPostChemicals,4,FALSE)","v":{"$error":"#NAME?"}},null,null,null,{"$f":"_xlfn._xlws.SORT(_xlfn.LET(_xlpm.a,B12:B17,_xlpm.b,C12:C17,_xlfn.HSTACK(_xlfn.UNIQUE(_xlpm.a),SUMIFS(_xlpm.b,_xlpm.a,_xlfn.UNIQUE(_xlpm.a)))))","v":"None"},{"$error":"#REF!"},{"$f":"IFERROR(VLOOKUP(H12,WheatPreChemicals,4,FALSE),\"\")","v":""},null,{"$f":"_xlfn._xlws.SORT(_xlfn.LET(_xlpm.a,B28:B32,_xlpm.b,C28:C32,_xlfn.HSTACK(_xlfn.UNIQUE(_xlpm.a),SUMIFS(_xlpm.b,_xlpm.a,_xlfn.UNIQUE(_xlpm.a)))))","v":"None"},{"$error":"#REF!"},{"$f":"IFERROR(VLOOKUP(L12,WheatInsecticides,4,FALSE),\"\")","v":""}]
[null,{"$f":"'Pesticide Plan (Wheat)'!C27","v":"None"},{"$f":"'Pesticide Plan (Wheat)'!H27/VLOOKUP(B13,WheatChemicals,3,FALSE)*$F$3","v":{"$error":"#REF!"}},{"$f":"VLOOKUP(B13,WheatPostChemicals,4,FALSE)","v":{"$error":"#NAME?"}},null,null,null,null,null,{"$f":"IFERROR(VLOOKUP(H13,WheatPreChemicals,4,FALSE),\"\")","v":""},null,null,null,""]
[null,{"$f":"'Pesticide Plan (Wheat)'!C28","v":"None"},{"$f":"'Pesticide Plan (Wheat)'!H28/VLOOKUP(B14,WheatChemicals,3,FALSE)*$F$3","v":{"$error":"#REF!"}},{"$f":"VLOOKUP(B14,WheatPostChemicals,4,FALSE)","v":{"$error":"#NAME?"}},null,null,null,null,null,{"$f":"IFERROR(VLOOKUP(H14,WheatPreChemicals,4,FALSE),\"\")","v":""},null,null,null,""]
[null,{"$f":"'Pesticide Plan (Wheat)'!L26","v":"None"},{"$f":"'Pesticide Plan (Wheat)'!Q26/VLOOKUP(B15,WheatChemicals,3,FALSE)*$F$3","v":{"$error":"#REF!"}},{"$f":"VLOOKUP(B15,WheatPostChemicals,4,FALSE)","v":{"$error":"#NAME?"}},null,null,null,null,null,{"$f":"IFERROR(VLOOKUP(H15,WheatPreChemicals,4,FALSE),\"\")","v":""},null,null,null,""]
[null,{"$f":"'Pesticide Plan (Wheat)'!L27","v":"None"},{"$f":"'Pesticide Plan (Wheat)'!Q27/VLOOKUP(B16,WheatChemicals,3,FALSE)*$F$3","v":{"$error":"#REF!"}},{"$f":"VLOOKUP(B16,WheatPostChemicals,4,FALSE)","v":{"$error":"#NAME?"}},null,null,null,null,null,{"$f":"IFERROR(VLOOKUP(H16,WheatPreChemicals,4,FALSE),\"\")","v":""},null,null,null,""]
[null,{"$f":"'Pesticide Plan (Wheat)'!L28","v":"None"},{"$f":"'Pesticide Plan (Wheat)'!Q28/VLOOKUP(B17,WheatChemicals,3,FALSE)*$F$3","v":{"$error":"#REF!"}},{"$f":"VLOOKUP(B17,WheatPostChemicals,4,FALSE)","v":{"$error":"#NAME?"}},null,null,null,null,null,{"$f":"IFERROR(VLOOKUP(H17,WheatPreChemicals,4,FALSE),\"\")","v":""},null,null,null,""]
[]
[null,"Chemical Product (Fungicides)","Purchase Quantity","Product Unit",null,null,null,"Adjuvants","Purchase Quantity","Product Unit"]
[null,{"$f":"'Pesticide Plan (Wheat)'!C55","v":"None"},{"$f":"'Pesticide Plan (Wheat)'!H55/VLOOKUP(B20,WheatFungicides,3,FALSE)*$F$3","v":{"$error":"#REF!"}},{"$f":"VLOOKUP(B20,WheatFungicides,4,FALSE)","v":{"$error":"#REF!"}},null,null,null,{"$f":"_xlfn._xlws.SORT(_xlfn.LET(_xlpm.a,B36:B75,_xlpm.b,C36:C75,_xlfn.HSTACK(_xlfn.UNIQUE(_xlpm.a),SUMIFS(_xlpm.b,_xlpm.a,_xlfn.UNIQUE(_xlpm.a)))))","v":"None"},0,{"$f":"IFERROR(VLOOKUP(H20,WheatAdjuvants,4,FALSE),\"\")","v":""}]
[null,{"$f":"'Pesticide Plan (Wheat)'!C56","v":"None"},{"$f":"'Pesticide Plan (Wheat)'!H56/VLOOKUP(B21,WheatFungicides,3,FALSE)*$F$3","v":{"$error":"#REF!"}},{"$error":"#REF!"},null,null,null,null,null,{"$f":"IFERROR(VLOOKUP(H21,WheatAdjuvants,4,FALSE),\"\")","v":""}]
[null,{"$f":"'Pesticide Plan (Wheat)'!C57","v":"None"},{"$f":"'Pesticide Plan (Wheat)'!H57/VLOOKUP(B22,WheatFungicides,3,FALSE)*$F$3","v":{"$error":"#REF!"}},{"$error":"#REF!"},null,null,null,null,null,{"$f":"IFERROR(VLOOKUP(H22,WheatAdjuvants,4,FALSE),\"\")","v":""}]
[null,{"$f":"'Pesticide Plan (Wheat)'!L55","v":"None"},{"$f":"'Pesticide Plan (Wheat)'!Q55/VLOOKUP(B23,WheatFungicides,3,FALSE)*$F$3","v":{"$error":"#REF!"}},{"$error":"#REF!"},null,null,null,null,null,{"$f":"IFERROR(VLOOKUP(H23,WheatAdjuvants,4,FALSE),\"\")","v":""}]
[null,{"$f":"'Pesticide Plan (Wheat)'!L56","v":"None"},{"$f":"'Pesticide Plan (Wheat)'!Q56/VLOOKUP(B24,WheatFungicides,3,FALSE)*$F$3","v":{"$error":"#REF!"}},{"$error":"#REF!"},null,null,null,null,null,{"$f":"IFERROR(VLOOKUP(H24,WheatAdjuvants,4,FALSE),\"\")","v":""}]
[null,{"$f":"'Pesticide Plan (Wheat)'!L57","v":"None"},{"$f":"'Pesticide Plan (Wheat)'!Q57/VLOOKUP(B25,WheatFungicides,3,FALSE)*$F$3","v":{"$error":"#REF!"}},{"$error":"#REF!"},null,null,null,null,null,{"$f":"IFERROR(VLOOKUP(H25,WheatAdjuvants,4,FALSE),\"\")","v":""}]
[null,null,null,null,null,null,null,null,null,{"$f":"IFERROR(VLOOKUP(H26,WheatAdjuvants,4,FALSE),\"\")","v":""}]
[null,"Chemical Product (Insecticides)","Purchase Quantity","Product Unit",null,null,null,null,null,{"$f":"IFERROR(VLOOKUP(H27,WheatAdjuvants,4,FALSE),\"\")","v":""}]
[null,{"$f":"'Pesticide Plan (Wheat)'!C71","v":"None"},{"$f":"'Pesticide Plan (Wheat)'!H71/VLOOKUP(B28,WheatInsecticides,3,FALSE)*$F$3","v":{"$error":"#REF!"}},{"$f":"VLOOKUP(B28,WheatInsecticides,4,FALSE)","v":{"$error":"#REF!"}},null,null,null,null,null,{"$f":"IFERROR(VLOOKUP(H28,WheatAdjuvants,4,FALSE),\"\")","v":""}]
[null,{"$f":"'Pesticide Plan (Wheat)'!C72","v":"None"},{"$f":"'Pesticide Plan (Wheat)'!H72/VLOOKUP(B29,WheatInsecticides,3,FALSE)*$F$3","v":{"$error":"#REF!"}},{"$error":"#REF!"},null,null,null,null,null,{"$f":"IFERROR(VLOOKUP(H29,WheatAdjuvants,4,FALSE),\"\")","v":""}]
[null,{"$f":"'Pesticide Plan (Wheat)'!C73","v":"None"},{"$f":"'Pesticide Plan (Wheat)'!H73/VLOOKUP(B30,WheatInsecticides,3,FALSE)*$F$3","v":{"$error":"#REF!"}},{"$error":"#REF!"},null,null,null,null,null,{"$f":"IFERROR(VLOOKUP(H30,WheatAdjuvants,4,FALSE),\"\")","v":""}]
[null,{"$f":"'Pesticide Plan (Wheat)'!L71","v":"None"},{"$f":"'Pesticide Plan (Wheat)'!Q71/VLOOKUP(B31,WheatInsecticides,3,FALSE)*$F$3","v":{"$error":"#REF!"}},{"$error":"#REF!"},null,null,null,null,null,{"$f":"IFERROR(VLOOKUP(H31,WheatAdjuvants,4,FALSE),\"\")","v":""}]
[null,{"$f":"'Pesticide Plan (Wheat)'!L72","v":"None"},{"$f":"'Pesticide Plan (Wheat)'!Q72/VLOOKUP(B32,WheatInsecticides,3,FALSE)*$F$3","v":{"$error":"#REF!"}},{"$error":"#REF!"},null,null,null,null,null,{"$f":"IFERROR(VLOOKUP(H32,WheatAdjuvants,4,FALSE),\"\")","v":""}]
[null,{"$f":"'Pesticide Plan (Wheat)'!L73","v":"None"},{"$f":"'Pesticide Plan (Wheat)'!Q73/VLOOKUP(B33,WheatInsecticides,3,FALSE)*$F$3","v":{"$error":"#REF!"}},{"$error":"#REF!"},null,null,null,null,null,{"$f":"IFERROR(VLOOKUP(H33,WheatAdjuvants,4,FALSE),\"\")","v":""}]
[null,null,null,null,null,null,null,null,null,{"$f":"IFERROR(VLOOKUP(H34,WheatAdjuvants,4,FALSE),\"\")","v":""}]
[null,"Chemical Product (Adjuvants)","Purchase Quantity","Product Unit",null,null,null,null,null,{"$f":"IFERROR(VLOOKUP(H35,WheatAdjuvants,4,FALSE),\"\")","v":""}]
[1,{"$f":"'Pesticide Plan (Wheat)'!C14","v":"None"},{"$f":"'Pesticide Plan (Wheat)'!H14/VLOOKUP(B36,Adjuvants,3,FALSE)*$F$3","v":0},{"$f":"VLOOKUP(B36,WheatAdjuvants,4,FALSE)","v":{"$error":"#NAME?"}},null,null,null,null,null,{"$f":"IFERROR(VLOOKUP(H36,WheatAdjuvants,4,FALSE),\"\")","v":""}]
[2,{"$f":"'Pesticide Plan (Wheat)'!C15","v":"None"},{"$f":"'Pesticide Plan (Wheat)'!H15/VLOOKUP(B37,Adjuvants,3,FALSE)*$F$3","v":0},{"$f":"VLOOKUP(B37,WheatAdjuvants,4,FALSE)","v":{"$error":"#NAME?"}},null,null,null,null,null,{"$f":"IFERROR(VLOOKUP(H37,WheatAdjuvants,4,FALSE),\"\")","v":""}]
[3,{"$f":"'Pesticide Plan (Wheat)'!C16","v":"None"},{"$f":"'Pesticide Plan (Wheat)'!H16/VLOOKUP(B38,Adjuvants,3,FALSE)*$F$3","v":0},{"$f":"VLOOKUP(B38,WheatAdjuvants,4,FALSE)","v":{"$error":"#NAME?"}},null,null,null,null,null,{"$f":"IFERROR(VLOOKUP(H38,WheatAdjuvants,4,FALSE),\"\")","v":""}]
[4,{"$f":"'Pesticide Plan (Wheat)'!C17","v":"None"},{"$f":"'Pesticide Plan (Wheat)'!H17/VLOOKUP(B39,Adjuvants,3,FALSE)*$F$3","v":0},{"$f":"VLOOKUP(B39,WheatAdjuvants,4,FALSE)","v":{"$error":"#NAME?"}},null,null,null,null,null,{"$f":"IFERROR(VLOOKUP(H39,WheatAdjuvants,4,FALSE),\"\")","v":""}]
[5,{"$f":"'Pesticide Plan (Wheat)'!C18","v":"None"},{"$f":"'Pesticide Plan (Wheat)'!H18/VLOOKUP(B40,Adjuvants,3,FALSE)*$F$3","v":0},{"$f":"VLOOKUP(B40,WheatAdjuvants,4,FALSE)","v":{"$error":"#NAME?"}},null,null,null,null,null,{"$f":"IFERROR(VLOOKUP(H40,WheatAdjuvants,4,FALSE),\"\")","v":""}]
[1,{"$f":"'Pesticide Plan (Wheat)'!L14","v":"None"},{"$f":"'Pesticide Plan (Wheat)'!Q14/VLOOKUP(B41,Adjuvants,3,FALSE)*$F$3","v":0},{"$f":"VLOOKUP(B41,WheatAdjuvants,4,FALSE)","v":{"$error":"#NAME?"}},null,null,null,null,null,{"$f":"IFERROR(VLOOKUP(H41,WheatAdjuvants,4,FALSE),\"\")","v":""}]
[2,{"$f":"'Pesticide Plan (Wheat)'!L15","v":"None"},{"$f":"'Pesticide Plan (Wheat)'!Q15/VLOOKUP(B42,Adjuvants,3,FALSE)*$F$3","v":0},{"$f":"VLOOKUP(B42,WheatAdjuvants,4,FALSE)","v":{"$error":"#NAME?"}},null,null,null,null,null,{"$f":"IFERROR(VLOOKUP(H42,WheatAdjuvants,4,FALSE),\"\")","v":""}]
[3,{"$f":"'Pesticide Plan (Wheat)'!L16","v":"None"},{"$f":"'Pesticide Plan (Wheat)'!Q16/VLOOKUP(B43,Adjuvants,3,FALSE)*$F$3","v":0},{"$f":"VLOOKUP(B43,WheatAdjuvants,4,FALSE)","v":{"$error":"#NAME?"}},null,null,null,null,null,{"$f":"IFERROR(VLOOKUP(H43,WheatAdjuvants,4,FALSE),\"\")","v":""}]
[4,{"$f":"'Pesticide Plan (Wheat)'!L17","v":"None"},{"$f":"'Pesticide Plan (Wheat)'!Q17/VLOOKUP(B44,Adjuvants,3,FALSE)*$F$3","v":0},{"$f":"VLOOKUP(B44,WheatAdjuvants,4,FALSE)","v":{"$error":"#NAME?"}},null,null,null,null,null,{"$f":"IFERROR(VLOOKUP(H44,WheatAdjuvants,4,FALSE),\"\")","v":""}]
[5,{"$f":"'Pesticide Plan (Wheat)'!L18","v":"None"},{"$f":"'Pesticide Plan (Wheat)'!Q18/VLOOKUP(B45,Adjuvants,3,FALSE)*$F$3","v":0},{"$f":"VLOOKUP(B45,WheatAdjuvants,4,FALSE)","v":{"$error":"#NAME?"}},null,null,null,null,null,{"$f":"IFERROR(VLOOKUP(H45,WheatAdjuvants,4,FALSE),\"\")","v":""}]
[1,{"$f":"'Pesticide Plan (Wheat)'!C33","v":"None"},{"$f":"'Pesticide Plan (Wheat)'!H33/VLOOKUP(B46,Adjuvants,3,FALSE)*$F$3","v":0},{"$f":"VLOOKUP(B46,WheatAdjuvants,4,FALSE)","v":{"$error":"#NAME?"}},null,null,null,null,null,{"$f":"IFERROR(VLOOKUP(H46,WheatAdjuvants,4,FALSE),\"\")","v":""}]
[2,{"$f":"'Pesticide Plan (Wheat)'!C34","v":"None"},{"$f":"'Pesticide Plan (Wheat)'!H34/VLOOKUP(B47,Adjuvants,3,FALSE)*$F$3","v":0},{"$f":"VLOOKUP(B47,WheatAdjuvants,4,FALSE)","v":{"$error":"#NAME?"}},null,null,null,null,null,{"$f":"IFERROR(VLOOKUP(H47,WheatAdjuvants,4,FALSE),\"\")","v":""}]
[3,{"$f":"'Pesticide Plan (Wheat)'!C35","v":"None"},{"$f":"'Pesticide Plan (Wheat)'!H35/VLOOKUP(B48,Adjuvants,3,FALSE)*$F$3","v":0},{"$f":"VLOOKUP(B48,WheatAdjuvants,4,FALSE)","v":{"$error":"#NAME?"}},null,null,null,null,null,{"$f":"IFERROR(VLOOKUP(H48,WheatAdjuvants,4,FALSE),\"\")","v":""}]
[4,{"$f":"'Pesticide Plan (Wheat)'!C36","v":"None"},{"$f":"'Pesticide Plan (Wheat)'!H36/VLOOKUP(B49,Adjuvants,3,FALSE)*$F$3","v":0},{"$f":"VLOOKUP(B49,WheatAdjuvants,4,FALSE)","v":{"$error":"#NAME?"}},null,null,null,null,null,{"$f":"IFERROR(VLOOKUP(H49,WheatAdjuvants,4,FALSE),\"\")","v":""}]
[5,{"$f":"'Pesticide Plan (Wheat)'!C37","v":"None"},{"$f":"'Pesticide Plan (Wheat)'!H37/VLOOKUP(B50,Adjuvants,3,FALSE)*$F$3","v":0},{"$f":"VLOOKUP(B50,WheatAdjuvants,4,FALSE)","v":{"$error":"#NAME?"}},null,null,null,null,null,{"$f":"IFERROR(VLOOKUP(H50,WheatAdjuvants,4,FALSE),\"\")","v":""}]
[1,{"$f":"'Pesticide Plan (Wheat)'!L33","v":"None"},{"$f":"'Pesticide Plan (Wheat)'!Q33/VLOOKUP(B51,Adjuvants,3,FALSE)*$F$3","v":0},{"$f":"VLOOKUP(B51,WheatAdjuvants,4,FALSE)","v":{"$error":"#NAME?"}},null,null,null,null,null,{"$f":"IFERROR(VLOOKUP(H51,WheatAdjuvants,4,FALSE),\"\")","v":""}]
[2,{"$f":"'Pesticide Plan (Wheat)'!L34","v":"None"},{"$f":"'Pesticide Plan (Wheat)'!Q34/VLOOKUP(B52,Adjuvants,3,FALSE)*$F$3","v":0},{"$f":"VLOOKUP(B52,WheatAdjuvants,4,FALSE)","v":{"$error":"#NAME?"}},null,null,null,null,null,{"$f":"IFERROR(VLOOKUP(H52,WheatAdjuvants,4,FALSE),\"\")","v":""}]
[3,{"$f":"'Pesticide Plan (Wheat)'!L35","v":"None"},{"$f":"'Pesticide Plan (Wheat)'!Q35/VLOOKUP(B53,Adjuvants,3,FALSE)*$F$3","v":0},{"$f":"VLOOKUP(B53,WheatAdjuvants,4,FALSE)","v":{"$error":"#NAME?"}},null,null,null,null,null,{"$f":"IFERROR(VLOOKUP(H53,WheatAdjuvants,4,FALSE),\"\")","v":""}]
[4,{"$f":"'Pesticide Plan (Wheat)'!L36","v":"None"},{"$f":"'Pesticide Plan (Wheat)'!Q36/VLOOKUP(B54,Adjuvants,3,FALSE)*$F$3","v":0},{"$f":"VLOOKUP(B54,WheatAdjuvants,4,FALSE)","v":{"$error":"#NAME?"}},null,null,null,null,null,{"$f":"IFERROR(VLOOKUP(H54,WheatAdjuvants,4,FALSE),\"\")","v":""}]
[5,{"$f":"'Pesticide Plan (Wheat)'!L37","v":"None"},{"$f":"'Pesticide Plan (Wheat)'!Q37/VLOOKUP(B55,Adjuvants,3,FALSE)*$F$3","v":0},{"$f":"VLOOKUP(B55,WheatAdjuvants,4,FALSE)","v":{"$error":"#NAME?"}},null,null,null,null,null,{"$f":"IFERROR(VLOOKUP(H55,WheatAdjuvants,4,FALSE),\"\")","v":""}]
[1,{"$f":"'Pesticide Plan (Wheat)'!C60","v":"None"},{"$f":"'Pesticide Plan (Wheat)'!H60/VLOOKUP(B56,Adjuvants,3,FALSE)*$F$3","v":0},{"$f":"VLOOKUP(B56,WheatAdjuvants,4,FALSE)","v":{"$error":"#NAME?"}},null,null,null,null,null,{"$f":"IFERROR(VLOOKUP(H56,WheatAdjuvants,4,FALSE),\"\")","v":""}]
[2,{"$f":"'Pesticide Plan (Wheat)'!C61","v":"None"},{"$f":"'Pesticide Plan (Wheat)'!H61/VLOOKUP(B57,Adjuvants,3,FALSE)*$F$3","v":0},{"$f":"VLOOKUP(B57,WheatAdjuvants,4,FALSE)","v":{"$error":"#NAME?"}},null,null,null,null,null,{"$f":"IFERROR(VLOOKUP(H57,WheatAdjuvants,4,FALSE),\"\")","v":""}]
[3,{"$f":"'Pesticide Plan (Wheat)'!C62","v":"None"},{"$f":"'Pesticide Plan (Wheat)'!H62/VLOOKUP(B58,Adjuvants,3,FALSE)*$F$3","v":0},{"$f":"VLOOKUP(B58,WheatAdjuvants,4,FALSE)","v":{"$error":"#NAME?"}},null,null,null,null,null,{"$f":"IFERROR(VLOOKUP(H58,WheatAdjuvants,4,FALSE),\"\")","v":""}]
[4,{"$f":"'Pesticide Plan (Wheat)'!C63","v":"None"},{"$f":"'Pesticide Plan (Wheat)'!H63/VLOOKUP(B59,Adjuvants,3,FALSE)*$F$3","v":0},{"$f":"VLOOKUP(B59,WheatAdjuvants,4,FALSE)","v":{"$error":"#NAME?"}},null,null,null,null,null,{"$f":"IFERROR(VLOOKUP(H59,WheatAdjuvants,4,FALSE),\"\")","v":""}]
[5,{"$f":"'Pesticide Plan (Wheat)'!C64","v":"None"},{"$f":"'Pesticide Plan (Wheat)'!H64/VLOOKUP(B60,Adjuvants,3,FALSE)*$F$3","v":0},{"$f":"VLOOKUP(B60,WheatAdjuvants,4,FALSE)","v":{"$error":"#NAME?"}}]
[1,{"$f":"'Pesticide Plan (Wheat)'!L60","v":"None"},{"$f":"'Pesticide Plan (Wheat)'!Q60/VLOOKUP(B61,Adjuvants,3,FALSE)*$F$3","v":0},{"$f":"VLOOKUP(B61,WheatAdjuvants,4,FALSE)","v":{"$error":"#NAME?"}}]
[2,{"$f":"'Pesticide Plan (Wheat)'!L61","v":"None"},{"$f":"'Pesticide Plan (Wheat)'!Q61/VLOOKUP(B62,Adjuvants,3,FALSE)*$F$3","v":0},{"$f":"VLOOKUP(B62,WheatAdjuvants,4,FALSE)","v":{"$error":"#NAME?"}}]
[3,{"$f":"'Pesticide Plan (Wheat)'!L62","v":"None"},{"$f":"'Pesticide Plan (Wheat)'!Q62/VLOOKUP(B63,Adjuvants,3,FALSE)*$F$3","v":0},{"$f":"VLOOKUP(B63,WheatAdjuvants,4,FALSE)","v":{"$error":"#NAME?"}}]
[4,{"$f":"'Pesticide Plan (Wheat)'!L63","v":"None"},{"$f":"'Pesticide Plan (Wheat)'!Q63/VLOOKUP(B64,Adjuvants,3,FALSE)*$F$3","v":0},{"$f":"VLOOKUP(B64,WheatAdjuvants,4,FALSE)","v":{"$error":"#NAME?"}}]
[5,{"$f":"'Pesticide Plan (Wheat)'!L64","v":"None"},{"$f":"'Pesticide Plan (Wheat)'!Q64/VLOOKUP(B65,Adjuvants,3,FALSE)*$F$3","v":0},{"$f":"VLOOKUP(B65,WheatAdjuvants,4,FALSE)","v":{"$error":"#NAME?"}}]
[1,{"$f":"'Pesticide Plan (Wheat)'!C76","v":"None"},{"$f":"'Pesticide Plan (Wheat)'!H76/VLOOKUP(B66,Adjuvants,3,FALSE)*$F$3","v":0},{"$f":"VLOOKUP(B66,WheatAdjuvants,4,FALSE)","v":{"$error":"#NAME?"}}]
[2,{"$f":"'Pesticide Plan (Wheat)'!C77","v":"None"},{"$f":"'Pesticide Plan (Wheat)'!H77/VLOOKUP(B67,Adjuvants,3,FALSE)*$F$3","v":0},{"$f":"VLOOKUP(B67,WheatAdjuvants,4,FALSE)","v":{"$error":"#NAME?"}}]
[3,{"$f":"'Pesticide Plan (Wheat)'!C78","v":"None"},{"$f":"'Pesticide Plan (Wheat)'!H78/VLOOKUP(B68,Adjuvants,3,FALSE)*$F$3","v":0},{"$f":"VLOOKUP(B68,WheatAdjuvants,4,FALSE)","v":{"$error":"#NAME?"}}]
[4,{"$f":"'Pesticide Plan (Wheat)'!C79","v":"None"},{"$f":"'Pesticide Plan (Wheat)'!H79/VLOOKUP(B69,Adjuvants,3,FALSE)*$F$3","v":0},{"$f":"VLOOKUP(B69,WheatAdjuvants,4,FALSE)","v":{"$error":"#NAME?"}}]
[5,{"$f":"'Pesticide Plan (Wheat)'!C80","v":"None"},{"$f":"'Pesticide Plan (Wheat)'!H80/VLOOKUP(B70,Adjuvants,3,FALSE)*$F$3","v":0},{"$f":"VLOOKUP(B70,WheatAdjuvants,4,FALSE)","v":{"$error":"#NAME?"}}]
[1,{"$f":"'Pesticide Plan (Wheat)'!L76","v":"None"},{"$f":"'Pesticide Plan (Wheat)'!Q76/VLOOKUP(B71,Adjuvants,3,FALSE)*$F$3","v":0},{"$f":"VLOOKUP(B71,WheatAdjuvants,4,FALSE)","v":{"$error":"#NAME?"}}]
[2,{"$f":"'Pesticide Plan (Wheat)'!L77","v":"None"},{"$f":"'Pesticide Plan (Wheat)'!Q77/VLOOKUP(B72,Adjuvants,3,FALSE)*$F$3","v":0},{"$f":"VLOOKUP(B72,WheatAdjuvants,4,FALSE)","v":{"$error":"#NAME?"}}]
[3,{"$f":"'Pesticide Plan (Wheat)'!L78","v":"None"},{"$f":"'Pesticide Plan (Wheat)'!Q78/VLOOKUP(B73,Adjuvants,3,FALSE)*$F$3","v":0},{"$f":"VLOOKUP(B73,WheatAdjuvants,4,FALSE)","v":{"$error":"#NAME?"}}]
[4,{"$f":"'Pesticide Plan (Wheat)'!L79","v":"None"},{"$f":"'Pesticide Plan (Wheat)'!Q79/VLOOKUP(B74,Adjuvants,3,FALSE)*$F$3","v":0},{"$f":"VLOOKUP(B74,WheatAdjuvants,4,FALSE)","v":{"$error":"#NAME?"}}]
[5,{"$f":"'Pesticide Plan (Wheat)'!L80","v":"None"},{"$f":"'Pesticide Plan (Wheat)'!Q80/VLOOKUP(B75,Adjuvants,3,FALSE)*$F$3","v":0},{"$f":"VLOOKUP(B75,WheatAdjuvants,4,FALSE)","v":{"$error":"#NAME?"}}]